Workbook

Sheet Projekt węzła
A1: OPIS TECHNICZNY
A3: Węzeł cieplny dwufunkycjny centralnego ogrzewania oraz ciepłej wody użytkowej DSA WALL 2F-3 o kodzie 146B8774
A6: *Moduł przyłączeniowy nie jest ujęty w projekcie i obliczeniach węzła. Należy go wykonać zgodnie z wymaganiami lokalnego przedsiębiorstwa energetyki cieplnej
A9: Spis treści:
A10: =A46 -> 1. Opis techniczny
A11: =A47 -> 1.1. Podstawa opracowania
A12: =A54 -> 1.2. Zakres opracowania
A13: =A59 -> 1.3. Opis ogólny węzła
A14: =A90 -> 2. Wyposażenie węzła cieplnego
A15: =A105 -> 2.1.1. Wymienniki ciepła
A16: =A123 -> 2.1.2. Pompa obiegowa c.o.
A17: =A127 -> 2.1.3. Pompa cyrkulacyjna
A18: =A134 -> 2.1.4. Urządzenia automatycznej regulacji
A19: =A148 -> 2.1.5. Urządzenia filtrujące
A20: =A152 -> 2.1.6. Układ uzupełniania instalacji c.o.
A21: =A159 -> 2.1.7. Naczynie wzbiorcze ciśnieniowe
A22: =A178 -> 2.1.8. Osprzęt (zawory zaporowe, bezpieczeństwa)
A23: =A190 -> 2.1.9. Połączenia rurowe
A24: =A195 -> 3. Założenia konstrukcyjne.
A25: =A222 -> 4. Wymagania dotyczące miejsca zamontowania węzła (wg PN-99/B-02423)
A26: =A266 -> 5. Obliczenia hydrauliczne
A27: 6. Załączniki
A42: Dokumentacja, wykonana zgodnie z obowiązującymi wytycznymi i normami, została sprawdzona i uznana za sporządzoną prawidłowo. Może ona być skierowana do realizacji.
A46: 1. Opis techniczny
A47: 1.1. Podstawa opracowania
A48: • zlecenie inwestora,
A49: • wytyczne projektowania węzłów cieplnych,
A50: • uzgodnienia branżowe,
A51: • katalogi urządzeń i liczników ciepła,
A52: • obowiązujące normy i przepisy.
A54: 1.2. Zakres opracowania
A55: Przedmiotem opracowania jest projekt kompaktowego węzła cieplnego pracującego na potrzeby centralnego ogrzewania oraz podgrzewu ciepłej wody użytkowej. Węzeł będzie zasilany w czynnik grzewczy z zewnętrznej sieci wysokoparametrowej.
A59: 1.3. Opis ogólny węzła
A60: Węzeł projektuje się jako dwufunkcyjny centralnego ogrzewania i ciepłej wody użytkowej typu DSA WALL
A62: Od storny pierwotnej węzeł cieplny zostanie połączony z miejską siecią cieplną, natomiast od strony wtórnej c.o. z instalacją centralnego ogrzewania, a od strony c.w.u. z zimną wodą i ciepłą wodą oraz cytkulacją. Ciepło przekazywane będzie z sieci cieplnej do instalacji c.o. i c.w.u. za pośrednictwem wysokosprawnych płytowych wymienników ciepła. Prawidłowy obieg wody instalacyjnej c.o. będzie zapewniony poprzez pompę obiegową, zamontowaną na rurociągu zasilającym, natomiast przepływ ciepłej wody w przewodzie głównym i cyrkulacyjnym będzie wymuszany za pomocą pompy cyrkulacyjnej. Połączenie pośrednie instalacji c.o. z zewnętrzną siecią cieplną wymaga zastosowania naczyń ciśnieniowych, które przejmują zmiany objętości czynnika grzewczego przy wzroście temperatury oraz stabilizację ciśnienia statycznego. Instalacja c.o. i c.w.u. będzie zabezpieczona przed nadmiernym wzrostem ciśnienia za pomocą zaworów bezpieczeństwa, natomiast ubytki wody instalacyjnej będą uzupełniane wodą z powrotu sieciowego. Projektowany węzeł cieplny wyposażony będzie w układy kontrolno-pomiarowe, które będą spełniać następujące funkcje:
A76: • automatyczna kontrola temperatury instalacji c.o. i c.w.u. będzie realizowana za pomocą elektronicznego regulatora pogodowego,
A78: • pomiar temperatury i ciśnienia instalacyjnego zapewnią termomanometry.
A79: Projektowany węzeł cieplny wyposażony będzie w skrzynkę bezpiecznikową z której zasialne będą urządzenia elektryczne - wg załączonego schematu
A90: 2. Wyposażenie węzła cieplnego
A91: Zakładanym celem przy projektowaniu węzła cieplnego na potrzeby c.o. i c.w.u. jest uzyskanie komfortu cieplnego ogrzewanych pomieszczeń oraz ciepłej wody użytkowej. Aby to osiągnąć, węzeł powinien być wyposażony w następujące urządzęnia:
A94: 1. wymienniki ciepła c.o. i c.w.u.,
A95: 2. pompę obiegową c.o. i cyrkulacyjną c.w.u.,
A96: 3. urządzenia automatycznej regulacji,
A97: 4. urządzenia filtrujące,
A98: 5. układ uzupełniania instalacji c.o.,
A99: 6. naczynie wzbiorcze ciśnieniowe,
A100: 7. osprzęt (zawory zaporowe, bezpieczeństwa),
A101: 8. urządzenia do kontroli i pomiarów,
A102: 9. urządzenia elektryczne,
A103: 10. wszelkie niezbędne połączenia rurowe.
A105: 2.1.1. Wymienniki ciepła
A106: Transformacja parametrów termodynamicznych w węźle następuje w wymiennikach płytowych typu Micro PlateTM firmy Danfoss. Konstrukcja wymienników tego typu pozwala na osiągnięcie bardziej efektywnego transferu ciepła, zmniejszenia oporów przepływu oraz wydłużenia żywotności produktu. Wymienniki te zapewniają wysokie schłodzenie wody sieciowej. Wymienniki ciepła wykonane są ze stali konstrukcyjnej wysokiej jakości - jest to stal kwasoodporna typu AISI 316L. Wymienniki posiadają podstawę umożliwiającą instalację na konstrukcji wsporczej węzła, dzięki czemu unika się występowania dodatkowych obciążeń pojawiąjących się po napełnieniu wymiennika medium i naprężenia nie są przenoszone na krócće. Klasa wymienników jest zgodna z PED, jest to klasyfikacja wymienników ciepła na kategorie wg Dyrektywy dot. Urządzeń Ciśnieniowych (PED) 97/23/EC.
A117: ="W projektowanym węźle cieplnym na potrzeby centralnego ogrzewania dobrano wymiennik XB37L-1-10, który dla projektowych warunków generuje spadki ciśnienia po stronie sieciowej "&I322&"kPa i "&I323&"kPa po stronie instalacyjnej. Natomiast dla ciepłej wody użytkowej dobrano wymiennik XB37M-1-16, który dla projektowych warunków generuje spadki ciśnienia po stronie sieciowej "&I337&"kPa i "&I338&"kPa po stronie instalacyjnej." -> W projektowanym węźle cieplnym na potrzeby centralnego ogrzewania dobrano wymiennik XB37L-1-10, który dla projektowych warunków generuje spadki ciśnienia po stronie sieciowej 0kPa i 0kPa po stronie instalacyjnej. Natomiast dla ciepłej wody użytkowej dobrano wymiennik XB37M-1-16, który dla projektowych warunków generuje spadki ciśnienia po stronie sieciowej 0kPa i 0kPa po stronie instalacyjnej.
A123: 2.1.2. Pompa obiegowa c.o.
A124: =" Prawidłowy obieg wody instalacyjnej zapewnia elektroniczna pompa obiegowa c.o. Alpha 2L 25-60 produkowana przez firmę Grundfos, której punkt pracy wynosi "&ROUND(I502,2)&" m3/h i "&ROUND(I509,2)&" kPa." -> 
A127: 2.1.3. Pompa cyrkulacyjna
A128: =" Prawidłowy obieg ciepłej wody użytkowej zapewnia pompa cyrkulacyjna UPS 25-60N produkowana przez firmę Grundfos, której punkt pracy wynosi "&ROUND(I634,2)&" m3/h i "&ROUND(I640,2)&" kPa." -> Prawidłowy obieg ciepłej wody użytkowej zapewnia pompa cyrkulacyjna UPS 25-60N produkowana przez firmę Grundfos, której punkt pracy wynosi 0 m3/h i 28 kPa.
A134: 2.1.4. Urządzenia automatycznej regulacji
A135: Układ automatyki oparty jest na elektronicznym regulatorze temperatury ECL 310 z regulacją pogodową posiadającym możliwość ustawienia harmonogramu tygodniowego indywidualnie dla każdego dnia tygodnia i obiegu oraz plan świąteczny. W funkcji pogodowej regulacji temperatury mierzona jest temperatura zewnętrzna i odpowiednio do niej dostosowywana temperatura zasilania instalacji ogrzewania. Przed uruchomieniem węzła regulator należy sparametryzować według wytycznych użytkownika. W skład urządzeń automatycznej regulacji wchodzą:
A141: • elektroniczny regulator temperatury c.o. i c.w.u. typu ECL 310 firmy Danfoss
A142: • zawór regulacyjny c.o. typu VS2 z siłownikiem AMV10 firmy Danfoss
A143: • zawór regulacyjny c.w.u. typu VM2 z siłownikiem AMV11 firmy Danfoss
A144: • czujnik temperatury instalacji c.o. typu ESM-11,
A145: • czujnik temperatury instalacji c.w.u. typu ESMU-100,
A146: • czujnik temperatury zewnętrznej typu ESMT,
A148: 2.1.5. Urządzenia filtrujące
A149: W celu zabezpieczenia urządzeń przed zanieczyszczeniami mechanicznnymi zastosowano po stronie instalacyjnej c.o. i c.w.u. filtry siatkowe typu BVR-DZR firmy Danfoss.
A152: 2.1.6. Układ uzupełniania instalacji c.o.
A153: Projektowany węzeł cieplny zostanie wyposażony w system uzupełniania instalacji c.o. składający się z:
A155: • zaworów odcinających,
A156: • wodomierza wody gorącej,
A157: =IF(I273>=90,"zaworu zwrotnego.","• zaworu uzupełniania zładu.") -> • zaworu uzupełniania zładu.
A159: 2.1.7. Naczynie wzbiorcze ciśnieniowe
A160: =" W celu zabezpieczenia instalacji c.o. przed nadmiernym wzrostem ciśnienia na skutek powiększenia objętości nośnika ciepła przy zmianie temperatury zaprojektowano wg normy PN-B-02414:1999 ciśnieniowe naczynie przeponowe firmy Ferro typu CO18W " -> W celu zabezpieczenia instalacji c.o. przed nadmiernym wzrostem ciśnienia na skutek powiększenia objętości nośnika ciepła przy zmianie temperatury zaprojektowano wg normy PN-B-02414:1999 ciśnieniowe naczynie przeponowe firmy Ferro typu CO18W
A163: Są to naczynia przeponowe typu zamkniętego. Wewnątrz znajduje się elastyczna przepona oddzielająca przestrzeń gazową od nośnika ciepła, która zabezpiecza zład przed napowietrzeniem. Głównym zadaniem naczyń wzbiorczych jest wyrównywanie wahań ciśnienia występującego przy zmianie temperatury czynnika. Projektowane naczynie wzbiorcze będzie zamontowane w pomieszczeniu węzła, co znacznie uprości jego obsługę eksploatacyjną.
A178: 2.1.8. Osprzęt (zawory zaporowe, bezpieczeństwa)
A179: Węzeł cieplny wyposażony będzie w następującą armaturę odcinającą:
A180: • po stronie parametrów wysokich - zawory kulowe gwintowane
A181: • po stronie parametrów niskich c.o. i c.w.u. - zawory kulowe gwintowane.
A182: Cały system c.o. wraz z urządzeniami współpracującymi (wymiennik, pompa, naczynie ciśnieniowe) jest zabezpieczony od wzrostu ciśnienia ponad wartość dopuszczalną za pomocą zaworów bezpieczeństwa typu Syr 1915 dobranych zgodnie z normą PN-B-02414:1999. Po stronie wody sieciowej nie jest wymagany zawór bezpieczeństwa, ponieważ wszystkie urządzenia w tym obiegu muszą wytrzymać ciśnienie robocze sieci, a cały system jest zabezpieczony w źródle ciepła.
A187: Obieg c.w.u. Został zabezpieczony przed wzrostem ciśnienia ponad dopuszczalną wartość zaworem bezpieczeństwa typu Syr 2115 zgodnie z normą PN-76/B-02440
A190: 2.1.9. Połączenia rurowe
A191: Wszystkie instalacje po stronie wysokich parametrów oraz niskiej strony CO wykonane będą z rur ze stali St37-8 łączonych przez spawanie. Rurociągi po stronie CWU zostaną wykonane ze stali nierdzewnej AISI304.
A195: 3. Założenia konstrukcyjne.
A196: 3.1. Po wykonaniu montażu urządzeń, należy przeprowadzić próbę ciśnieniową, w celu wyeliminowania ewentualnych nieszczelności w całym układzie.
A199: 3.2. Wszystkie przewody przesyłowe i urządzenia zostaną zabezpieczone przed korozją za pomocą powłok ochronnych.
A202: 3.3. Wymienniki cieplne zostaną pokryte fabryczną izolacją cieplną, natomiast osprzęt i linie przesyłowe w granicach węzła cieplnego zostaną pokryte izolacją termiczną typu Steinonorm.
A205: 3.4. Projektowany węzeł cieplny zainstalowany będzie w przeznaczonym do tego celu pomieszczeniu. Jest to węzeł o konstrukcji przystosowanej do montażu naściennego lub stojącego. Niewielkie wymiary pozwalają na zastosowanie transportu ręcznego poprzez drzwi o wymiarach 0.8x2.0 metra.
A209: 3.5. Włączenie węzła do pracy wymaga podłączenia zasilania i powrotu wody sieciowej, podłączenia zasilania i powrotu wody instalacyjnej centralnego ogrzewania oraz podłączenia zimnej wody użytkowej, ciepłej wody użytkowej i cyrkulacji, a także naczyń wzbiorczych przeponowych. Aby zapewnić prawidłową pracę węzła należy, po uruchomieniu układu przeprowadzić regulację automatyki ciepłowniczej.
A222: 4. Wymagania dotyczące miejsca zamontowania węzła (wg PN-99/B-02423)
A223: Pomieszczenie, w którym będzie podłączony węzeł cieplny musi spełniać określone wymagania oraz być wyposażone w instalacje umożliwiające spełnienie założonych funkcji węzła cieplnego:
A225: • pomieszczenie węzła cieplnego powinno mieć oświetlenie elektryczne i dzienne,
A226: • drzwi stalowe zamontowane tak, aby otwierały się pod naciskiem od strony pomieszczenia węzła, zabezpieczone zamkiem patentowym,
A228: • w pomieszczeniu węzła wykonać wpust podłogowy do studzienki schładzającej wg projektu wodno-kanalizacyjnego,
A230: • posadzka pomieszczenia powinna być gładka, zabezpieczona przed poślizgiem, niepalna, wytrzymała na uderzenia mechaniczne i nagłe zmiany temperatury oraz prowadzona ze spadkiem nie mniejszym niż 1% w kierunku kratki ściekowej lub studzienki schładzającej,
A233: • wentylacja grawitacyjna nawiewna - kanał w kształcie litery "Z",
A234: • kanał wentylacji wywiewnej grawitacyjnej,
A235: Pozostałe warunki wykonania i odbioru węzłów cieplnych określone są w normach:
A236: PN-64/B-10400 - Urządzenia centralnego ogrzewania w budownictwie powszechnym. Wymagania i badania techniczne przy odbiorze.
A238: PN-92/M-34031 - Rurociągi pary i wody gorącej. Wymagania i badania techniczne.
A239: PN-B-02414:1999 - Zabezpieczenie instalacji ogrzewań wodnych systemu zamkniętego z naczyniami wzbiorczymi przeponowymi - wymagania.
A266: 5. Obliczenia hydrauliczne
A268: Dane do obliczeń
A270: 1. Parametry temperaturowe sieci ZIMA | G270: zasilanie | H270: Tzsz | I270: ='Dane wejściowe'!C5 -> 0 | J270: °C
G271: powrót | H271: Tpsz | I271: ='Dane wejściowe'!C6 ->  | J271: °C
A273: 2. Parametry temperaturowe sieci LATO | G273: zasilanie | H273: Tzsl | I273: ='Dane wejściowe'!C13 -> 0 | J273: °C
G274: powrót | H274: Tpsl | I274: ='Dane wejściowe'!C14 -> 0 | J274: °C
A276: 4. Ciśnienie dyspozycyjne | H276: Pd | I276: 100 | J276: kPa
A278: 6. Ciśnienie dopuszczalne wody sieciowej | H278: Pmax | I278: 1.6 | J278: Mpa
A280: 7. Parametry temperaturowe instalacji C.O. | G280: zasilanie | H280: Tzico | I280: ='Dane wejściowe'!C7 -> 0 | J280: °C
G281: powrót | H281: Tpico | I281: ='Dane wejściowe'!C8 ->  | J281: °C
A283: 8. Parametry temperaturowe instalacji C.W.U. | G283: zasilanie | H283: Tzicw | I283: ='Dane wejściowe'!C15 -> 60 | J283: °C
G284: powrót | H284: Tpicw | I284: ='Dane wejściowe'!C16 -> 5 | J284: °C
A286: 9. Zapotrzebowanie ciepła C.O. | H286: Nco | I286: =Arkusz3!G15 -> 0 | J286: kW
A288: 10. Zapotrzebowanie ciepła C.W.U. | H288: Ncwu | I288: =Arkusz3!G16 -> 0 | J288: kW
A290: 11. Opory instalacji C.O. | H290: Hico | I290: 20 | J290: kPa
A292: 12. Opory instalacji C.W.U. | H292: Hicw | I292: 25 | J292: kPa
A294: 8. Ciśnienie dopuszczalne instalacji C.O. | H294: Pmaxco | I294: 2.5 | J294: bar
A296: 9. Ciśnienie dopuszczalne instalacji C.W.U. | H296: Pmaxcw | I296: 10 | J296: bar
A298: 10. Ciśnienie statyczne | H298: Ps | I298: ='Dane wejściowe'!C10/10 -> 0 | J298: bar
A300: 11. Pojemność instalacji C.O. | H300: Vico | I300: =I286*8/1000 -> 0 | J300: m3
A311: Dobór wymiennika C.O.
A313: Obliczeniowa moc cieplna | H313: Nco | I313: =I286 -> 0 | J313: kW
A314: Temperatury do doboru wymiennika
H315: Tzsz | I315: =I270 -> 0 | J315: °C
H316: Tpsz | I316: =I271 ->  | J316: °C
H317: Tzico | I317: =I280 -> 0 | J317: °C
H318: Tpico | I318: =I281 ->  | J318: °C
A320: Dla powyższych parametrów dobrano wymiennik: | G320: Danfoss | H320: XB37L-1-10
A321: Materiał płyt dobranego wymiennika | H321: EN1,4404(AISI316L)
A322: Spadek ciśnienia po stronie sieciowej | H322: Hwsco | I322: ='Wymienniki CO'!AY3 -> 0 | J322: kPa
A323: Spadek ciśnienia po stronie instalacyjnej | H323: Hwico | I323: ='Wymienniki CO'!AZ3 -> 0 | J323: kPa
A326: Dobór wymiennika C.W.U.
A328: Obliczeniowa moc cieplna | H328: Ncw | I328: =I288 -> 0 | J328: kW
A329: Temperatury do doboru wymiennika
H330: Tzsl | I330: =I273 -> 0 | J330: °C
H331: Tpsl | I331: =I274 -> 0 | J331: °C
H332: Tzicw | I332: =I283 -> 60 | J332: °C
H333: Tpicw | I333: =I284 -> 5 | J333: °C
A335: Dla powyższych parametrów dobrano wymiennik: | G335: Danfoss | H335: XB37M-1-16
A336: Materiał płyt dobranego wymiennika | H336: EN1,4404(AISI316L)
A337: Spadek ciśnienia po stronie sieciowej | H337: Hwscw | I337: ='Wymienniki CWU'!AY3 -> 0 | J337: kPa
A338: Spadek ciśnienia po stronie instalacyjnej | H338: Hwi | I338: ='Wymienniki CWU'!AZ3 -> 0 | J338: kPa
A355: Obliczenia przepływów
A357: Moc cieplna C.O. | H357: Nco | I357: =I286 -> 0 | J357: kW
A358: Moc cieplna C.W.U. | H358: Ncwu | I358: =I288 -> 0 | J358: kW
A360: Temperatury do obliczeń przepływów | H360: Tzsz | I360: =I270 -> 0 | J360: °C
H361: Tpsz | I361: =I271 ->  | J361: °C
H362: Tzico | I362: =I280 -> 0 | J362: °C
H363: Tpico | I363: =I281 ->  | J363: °C
H365: Tzsl | I365: =I273 -> 0 | J365: °C
H366: Tpsl | I366: =I274 -> 0 | J366: °C
H367: Tzicw | I367: =I332 -> 60 | J367: °C
H368: Tpicw | I368: =I333 -> 5 | J368: °C
A370: Dla powyższych parametrów obliczono przepływy:
A372: Przepływ czynnika sieciowego C.O. | H372: Gco | I372: =(I357*0.86)/(I360-I361) ->  | J372: mᵌ/h
A373: Przepływ czynnika sieciowego C.W.U. | H373: Gcw | I373: =(I358*0.86)/(I365-I366) ->  | J373: mᵌ/h
A376: Przepływ czynnika instalacyjnego C.O. | H376: Gico | I376: =(I357*0.86)/(I362-I363) ->  | J376: mᵌ/h
A377: Przepływ czynnika instalacyjnego C.W.U. | H377: Gicw | I377: =(I358*0.86)/(I367-I368) -> 0 | J377: mᵌ/h
A378: Przepływ czynnika cyrkulacji C.W.U. | H378: Gicy | I378: =I377*0.3 -> 0 | J378: mᵌ/h
A399: Dobór średnic rurociągów
A401: Dobór średnicy rurociągu sieciowego wymiennika C.O.
A403: Przepływ czynnika sieciowego | H403: Gs | I403: =I372 ->  | J403: mᵌ/h
A404: Dobrano średnicę rurociągu sieciowego: | H404: DN | I404: 20 | J404: mm
A405: Prędkość przepływu czynnika przez rurociąg: | H405: Ws | I405: =I403/(3.14*(I404/1000)^2/4)/3600 ->  | J405: m/s
A407: Dobór średnicy rurociągu sieciowego wymiennika C.W.U.
A409: Przepływ czynnika sieciowego | H409: Gs | I409: =I373 ->  | J409: mᵌ/h
A410: Dobrano średnicę rurociągu sieciowego: | H410: DN | I410: 20 | J410: mm
A411: Prędkość przepływu czynnika przez rurociąg: | H411: Ws | I411: =I409/(3.14*(I410/1000)^2/4)/3600 ->  | J411: m/s
A413: Dobór średnicy rurociągu instalacyjnego C.O.
A415: Przepływ czynnika instalacyjnego | H415: Gico | I415: =I376 ->  | J415: mᵌ/h
A416: Dobrano średnicę rurociągu instalacyjnego: | H416: DN | I416: 25 | J416: mm
A417: Prędkość przepływu czynnika przez rurociąg: | H417: Wico | I417: =I415/(3.14*(I416/1000)^2/4)/3600 ->  | J417: m/s
A419: Dobór średnicy rurociągu instalacyjnego C.W.U.
A421: Przepływ czynnika instalacyjnego | H421: Gicw | I421: =I377 -> 0 | J421: mᵌ/h
A422: Dobrano średnicę rurociągu instalacyjnego: | H422: DN | I422: 20 | J422: mm
A423: Prędkość przepływu czynnika przez rurociąg: | H423: Wicw | I423: =I421/(3.14*(I422/1000)^2/4)/3600 -> 0 | J423: m/s
A425: Przepływ czynnika cyrkulacji | H425: Gicwc | I425: =I378 -> 0 | J425: mᵌ/h
A426: Dobrano średnicę rurociągu cyrkulacji: | H426: DN | I426: 15 | J426: mm
A427: Prędkość przepływu czynnika przez rurociąg: | H427: Wicwc | I427: =I425/(3.14*(I426/1000)^2/4)/3600 -> 0 | J427: m/s
A443: Dobór zaworu regulacyjnego C.O.
A445: Przepływ wody sieciowej przez zawór | H445: Gs | I445: =I372 ->  | J445: mᵌ/h
A447: Dobrano zawór VS2 produkcji Danfoss
A449: Kvs zaworu | H449: Kvs | I449: 1.6 | J449: mᵌ/h
A450: Średnica nominalna | H450: DN | I450: 15 | J450: mm
A451: Oopór zaworu całkowicie otwartego | H451: Hzco | I451: =((I445/I449)^2)*100 ->  | J451: kPa
A452: Prędkość przepływu na wylocie zaworu | H452: Wzco | I452: =I445/(3.14*(I450/1000)^2/4)/3600 ->  | J452: mᵌ/h
A453: Autorytet zaworu regulacyjnego | I453: =I451/(I451+I322+2) -> 
A455: Dobór zaworu regulacyjnego C.W.U.
A457: Przepływ wody sieciowej przez zawór | H457: Gs | I457: =I373 ->  | J457: mᵌ/h
A459: Dobrano zawór VM2 produkcji Danfoss
A461: Kvs zaworu | H461: Kvs | I461: 2.5 | J461: mᵌ/h
A462: Średnica nominalna | H462: DN | I462: 15 | J462: mm
A463: Opór zaworu całkowicie otwartego | H463: Hzcw | I463: =((I457/I461)^2)*100 ->  | J463: kPa
A464: Prędkość przepływu na wylocie zaworu | H464: Wzcw | I464: =I457/(3.14*(I462/1000)^2/4)/3600 ->  | J464: mᵌ/h
A465: Autorytet zaworu regulacyjnego | I465: =I463/(I463+I337+2) -> 
A487: Dobór komponentów modułu C.O.
A489: Dobór urządzeń filtrujących
A491: Przepływ wody instalacyjnej przez filtr | H491: Gi | I491: =I376 ->  | J491: mᵌ/h
A493: Dobrano filtr (z siatką 280 oczek/cm2) firmy Danfoss | H493: typu | I493: BVR-DZR
... 151 more rows

Sheet Dane wejściowe
B2: Dane do obliczeń (należy wypełnić białe pola)
B4: Wybierz program temperatur C.O.
B5: Temperatura zasilania wody sieciowej (z warunków uzyskanych od dostawcy ciepła systemowego) | D5: °C
B6: Temperatura powrotu wody sieciowej | C6: =IF(C7>=70,C8+5,"") ->  | D6: °C
B7: Temperatura zasilania instalacji c.o. | D7: °C
B8: Temperatura powrotu instalacji c.o. | C8: =IF(C7<50,"",C7-20) ->  | D8: °C
B10: Wysokość budynku | D10: m
B12: Wybierz program temperatur C.W.U.
B13: Temperatura zasilania wody sieciowej (z warunków uzyskanych od dostawcy ciepła systemowego) | D13: °C
B14: Temperatura powrotu wody sieciowej (z warunków uzyskanych od dostawcy ciepła systemowego) | D14: °C
B15: Temperatura zasilania c.w.u. | C15: 60 | D15: °C
B16: Temperatura wody zimnej | C16: 5 | D16: °C
B18: Moc C.O. (1do30kW) (jeżeli nie znasz, przejdź do tabeli poniżej) | D18: kW
B19: Moc C.W.U.(1do60kW) (jeżeli nie znasz, przejdź do tabeli poniżej) | D19: kW
B22: Jeżeli nie znasz mocy podaj:
B23: Powierzchnia ogrzewanych pomieszczeń | D23: m2
B24: Wysokość ogrzewanych pomieszczeń | D24: m
B25: Izolacja budynku
B26: Na podstawie powyższych danych obliczono | C26: =Arkusz3!D20 -> 0 | D26: kW
B28: Ilość użytkowników C.W.U. | D28: osoby
B29: Na podstawie powyższych danych obliczono | C29: =Arkusz3!D21 -> 0 | D29: kW
A35: =IF(Arkusz3!G23=0,"","Dla podanych danych należy zakupić dodatkowe naczynie o pojemności "&Arkusz3!G23&" litrów lub należy wymienić istniejące na zgodne z kartą doboru") -> 

Sheet Wymienniki CWU (hidden)
A1: Data | B1: 2017-09-09T11:22:52
A2: aplikacja | B2: X Danfoss-XB | AY2: spadek po str siec | AZ2: spadek po str inst
A3: Tryb | B3: Sprawdzenie | AY3: =SUM(AY5:AY484) -> 0 | AZ3: 0
A4: isROT | B4: Standardowy | C4: Dozw. komb. płyt M Mieszanie płyt | D4: Współprądowy | E4: Równoległy | F4: J.m. | G4: Ilość stopni | H4: Wymiennik ciepła | I4: Typ płyty | J4: Ilość kanałów kanału nr 1 Strona1 | K4: Ilość kanałów kanału nr 1 Strona2 | L4: Ilość kanałów kanału nr 2 Strona1 | M4: Ilość kanałów kanału nr 2 Strona2 | N4: Moc [kW] | O4: Zapas powierzchni [%] | P4: Czynnik Strona 1 | Q4: Gaz1 | R4: Stężenie1 [%] | S4: Abs. Pressure1 [bar] | T4: Czynnik Strona 2 | U4: Gaz2 | V4: Stężenie2 [%] | W4: Abs. Pressure2 [bar] | X4: Temperatura na wlocie1 [°C] | Y4: Temperatura na wylocie1 [°C] | Z4: Masowe Natężenie przepływu1 [kg/h] | AA4: Objętościowe Natężenie przepływu1 [L/min] | AB4: Maks. spadek ciśnienia1 [kPa] | AC4: Temperatura na wlocie2 [°C] | AD4: Temperatura na wylocie2 [°C] | AE4: Masowe Natężenie przepływu2 [kg/h] | AF4: Objętościowe Natężenie przepływu2 [L/min] | AG4: Maks. spadek ciśnienia2 [kPa] | AH4: Masowe Natężenie przepływu Szer.-Równ. [kg/h] | AI4: Objętościowe Natężenie przepływu Szer.-Równ. [L/min] | AJ4: Maks. spadek ciśnienia Szer.-Równ. [kPa] | AK4: FrameExtension(%) | AL4: Wymiennik ciepła | AM4: Grupowanie | AN4: Termin dostawy | AO4: PED | AP4: Zapas powierzchni [%] | AQ4: Całkowita pow. [m^2] | AR4: HTC(Dostępny / Wymagany) [W/m^2-K] | AS4: LMTD [K] | AT4: NTU-1 | AU4: NTU-2 | AV4: Całkowity spadek ciśnienia-1 [kPa] | AW4: Całkowity spadek ciśnienia-2 [kPa] | AY4: =ROUNDUP(Arkusz3!G16,0) -> 0 | AZ4: ='Dane wejściowe'!C13 -> 0 | BA4: ='Dane wejściowe'!C14 -> 0
A5: 0 | B5: 0 | C5: 0 | D5: 0 | E5: 1 | F5: 1 | G5: 1 | H5: XB37 | I5: M | J5: 7 | K5: 8 | N5: 1 | P5: Woda | T5: Woda | X5: 70 | Y5: 35 | AC5: 5 | AD5: 60 | AK5: 0 | AL5: XB37M-1-16 G 1 (20mm) | AM5: 1*7M/1*8M | AN5: A | AO5: PED Art 4.3 | AP5: 373,4 | AQ5: 0,78 | AR5: 331,7/70,1 | AS5: 18,20 | AT5: 1,92 | AU5: 3,03 | AV5: 0,02 | AW5: 0,01 | AX5: =AND(N5=$AY$4,X5=$AZ$4,Y5=$BA$4) -> FALSE | AY5: =AX5*AV5 -> 0 | AZ5: =AX5*AW5 -> 0
A6: 0 | B6: 1 | C6: 0 | D6: 0 | E6: 1 | F6: 1 | G6: 1 | H6: XB37 | I6: M | J6: 7 | N6: 2 | P6: Woda | T6: Woda | X6: 70 | Y6: 35 | AC6: 5 | AD6: 60 | AK6: 0 | AL6: XB37M-1-16 G 1 (20mm) | AM6: 1*7M/1*8M | AN6: A | AO6: PED Art 4.3 | AP6: 287,4 | AQ6: 0,78 | AR6: 542,9/140,1 | AS6: 18,20 | AT6: 1,92 | AU6: 3,03 | AV6: 0,06 | AW6: 0,03 | AX6: =AND(N6=$AY$4,X6=$AZ$4,Y6=$BA$4) -> FALSE | AY6: =AX6*AV6 -> 0 | AZ6: =AX6*AW6 -> 0 | BC6: 1 | BD6: 3 | BE6: =AND('Dane wejściowe'!$C$28>=BC6,'Dane wejściowe'!$C$28<BC7) -> FALSE | BF6: =BD6*BE6 -> 0
A7: 0 | B7: 1 | C7: 0 | D7: 0 | E7: 1 | F7: 1 | G7: 1 | H7: XB37 | I7: M | J7: 7 | N7: 3 | P7: Woda | T7: Woda | X7: 70 | Y7: 35 | AC7: 5 | AD7: 60 | AK7: 0 | AL7: XB37M-1-16 G 1 (20mm) | AM7: 1*7M/1*8M | AN7: A | AO7: PED Art 4.3 | AP7: 244,6 | AQ7: 0,78 | AR7: 724,4/210,2 | AS7: 18,20 | AT7: 1,92 | AU7: 3,03 | AV7: 0,11 | AW7: 0,05 | AX7: FALSE | AY7: 0 | AZ7: 0 | BC7: 2 | BD7: 3.5 | BE7: =AND('Dane wejściowe'!$C$28>=BC7,'Dane wejściowe'!$C$28<BC8) -> FALSE | BF7: =BD7*BE7 -> 0
A8: 0 | B8: 1 | C8: 0 | D8: 0 | E8: 1 | F8: 1 | G8: 1 | H8: XB37 | I8: M | J8: 7 | N8: 4 | P8: Woda | T8: Woda | X8: 70 | Y8: 35 | AC8: 5 | AD8: 60 | AK8: 0 | AL8: XB37M-1-16 G 1 (20mm) | AM8: 1*7M/1*8M | AN8: A | AO8: PED Art 4.3 | AP8: 217,2 | AQ8: 0,78 | AR8: 888,8/280,3 | AS8: 18,20 | AT8: 1,92 | AU8: 3,03 | AV8: 0,18 | AW8: 0,08 | AX8: FALSE | AY8: 0 | AZ8: 0 | BC8: 3 | BD8: 4 | BE8: =AND('Dane wejściowe'!$C$28>=BC8,'Dane wejściowe'!$C$28<BC9) -> FALSE | BF8: 0
A9: 0 | B9: 1 | C9: 0 | D9: 0 | E9: 1 | F9: 1 | G9: 1 | H9: XB37 | I9: M | J9: 7 | N9: 5 | P9: Woda | T9: Woda | X9: 70 | Y9: 35 | AC9: 5 | AD9: 60 | AK9: 0 | AL9: XB37M-1-16 G 1 (20mm) | AM9: 1*7M/1*8M | AN9: A | AO9: PED Art 4.3 | AP9: 197,3 | AQ9: 0,78 | AR9: 1041,7/350,3 | AS9: 18,20 | AT9: 1,92 | AU9: 3,03 | AV9: 0,26 | AW9: 0,11 | AX9: FALSE | AY9: 0 | AZ9: 0 | BC9: 4 | BD9: 4.5 | BE9: =AND('Dane wejściowe'!$C$28>=BC9,'Dane wejściowe'!$C$28<BC10) -> FALSE | BF9: 0
A10: 0 | B10: 1 | C10: 0 | D10: 0 | E10: 1 | F10: 1 | G10: 1 | H10: XB37 | I10: M | J10: 7 | N10: 6 | P10: Woda | T10: Woda | X10: 70 | Y10: 35 | AC10: 5 | AD10: 60 | AK10: 0 | AL10: XB37M-1-16 G 1 (20mm) | AM10: 1*7M/1*8M | AN10: A | AO10: PED Art 4.3 | AP10: 182,1 | AQ10: 0,78 | AR10: 1185,8/420,4 | AS10: 18,20 | AT10: 1,92 | AU10: 3,03 | AV10: 0,36 | AW10: 0,15 | AX10: FALSE | AY10: 0 | AZ10: 0 | BC10: 5 | BD10: 5 | BE10: =AND('Dane wejściowe'!$C$28>=BC10,'Dane wejściowe'!$C$28<BC11) -> FALSE | BF10: 0
A11: 0 | B11: 1 | C11: 0 | D11: 0 | E11: 1 | F11: 1 | G11: 1 | H11: XB37 | I11: M | J11: 7 | N11: 7 | P11: Woda | T11: Woda | X11: 70 | Y11: 35 | AC11: 5 | AD11: 60 | AK11: 0 | AL11: XB37M-1-16 G 1 (20mm) | AM11: 1*7M/1*8M | AN11: A | AO11: PED Art 4.3 | AP11: 169,8 | AQ11: 0,78 | AR11: 1323,0/490,5 | AS11: 18,20 | AT11: 1,92 | AU11: 3,03 | AV11: 0,46 | AW11: 0,20 | AX11: FALSE | AY11: 0 | AZ11: 0 | BC11: 6 | BD11: 5.5 | BE11: =AND('Dane wejściowe'!$C$28>=BC11,'Dane wejściowe'!$C$28<BC12) -> FALSE | BF11: 0
A12: 0 | B12: 1 | C12: 0 | D12: 0 | E12: 1 | F12: 1 | G12: 1 | H12: XB37 | I12: M | J12: 7 | N12: 8 | P12: Woda | T12: Woda | X12: 70 | Y12: 35 | AC12: 5 | AD12: 60 | AK12: 0 | AL12: XB37M-1-16 G 1 (20mm) | AM12: 1*7M/1*8M | AN12: A | AO12: PED Art 4.3 | AP12: 159,5 | AQ12: 0,78 | AR12: 1454,6/560,5 | AS12: 18,20 | AT12: 1,92 | AU12: 3,03 | AV12: 0,57 | AW12: 0,25 | AX12: FALSE | AY12: 0 | AZ12: 0 | BC12: 7 | BD12: 6 | BE12: =AND('Dane wejściowe'!$C$28>=BC12,'Dane wejściowe'!$C$28<BC13) -> FALSE | BF12: 0
A13: 0 | B13: 1 | C13: 0 | D13: 0 | E13: 1 | F13: 1 | G13: 1 | H13: XB37 | I13: M | J13: 7 | N13: 9 | P13: Woda | T13: Woda | X13: 70 | Y13: 35 | AC13: 5 | AD13: 60 | AK13: 0 | AL13: XB37M-1-16 G 1 (20mm) | AM13: 1*7M/1*8M | AN13: A | AO13: PED Art 4.3 | AP13: 150,8 | AQ13: 0,78 | AR13: 1581,4/630,6 | AS13: 18,20 | AT13: 1,92 | AU13: 3,03 | AV13: 0,70 | AW13: 0,30 | AX13: FALSE | AY13: 0 | AZ13: 0 | BC13: 8 | BD13: 6.5 | BE13: =AND('Dane wejściowe'!$C$28>=BC13,'Dane wejściowe'!$C$28<BC14) -> FALSE | BF13: 0
A14: 0 | B14: 1 | C14: 0 | D14: 0 | E14: 1 | F14: 1 | G14: 1 | H14: XB37 | I14: M | J14: 7 | N14: 10 | P14: Woda | T14: Woda | X14: 70 | Y14: 35 | AC14: 5 | AD14: 60 | AK14: 0 | AL14: XB37M-1-16 G 1 (20mm) | AM14: 1*7M/1*8M | AN14: A | AO14: PED Art 4.3 | AP14: 143,2 | AQ14: 0,78 | AR14: 1704,1/700,6 | AS14: 18,20 | AT14: 1,92 | AU14: 3,03 | AV14: 0,83 | AW14: 0,36 | AX14: FALSE | AY14: 0 | AZ14: 0 | BC14: 9 | BD14: 7 | BE14: =AND('Dane wejściowe'!$C$28>=BC14,'Dane wejściowe'!$C$28<BC15) -> FALSE | BF14: 0
A15: 0 | B15: 1 | C15: 0 | D15: 0 | E15: 1 | F15: 1 | G15: 1 | H15: XB37 | I15: M | J15: 7 | N15: 11 | P15: Woda | T15: Woda | X15: 70 | Y15: 35 | AC15: 5 | AD15: 60 | AK15: 0 | AL15: XB37M-1-16 G 1 (20mm) | AM15: 1*7M/1*8M | AN15: A | AO15: PED Art 4.3 | AP15: 136,6 | AQ15: 0,78 | AR15: 1823,3/770,7 | AS15: 18,20 | AT15: 1,92 | AU15: 3,03 | AV15: 0,97 | AW15: 0,42 | AX15: FALSE | AY15: 0 | AZ15: 0 | BC15: 10 | BD15: 7.5 | BE15: =AND('Dane wejściowe'!$C$28>=BC15,'Dane wejściowe'!$C$28<BC16) -> FALSE | BF15: 0
A16: 0 | B16: 1 | C16: 0 | D16: 0 | E16: 1 | F16: 1 | G16: 1 | H16: XB37 | I16: M | J16: 7 | N16: 12 | P16: Woda | T16: Woda | X16: 70 | Y16: 35 | AC16: 5 | AD16: 60 | AK16: 0 | AL16: XB37M-1-16 G 1 (20mm) | AM16: 1*7M/1*8M | AN16: A | AO16: PED Art 4.3 | AP16: 130,6 | AQ16: 0,78 | AR16: 1939,2/840,8 | AS16: 18,20 | AT16: 1,92 | AU16: 3,03 | AV16: 1,12 | AW16: 0,48 | AX16: FALSE | AY16: 0 | AZ16: 0 | BC16: 12 | BD16: 8 | BE16: =AND('Dane wejściowe'!$C$28>=BC16,'Dane wejściowe'!$C$28<BC17) -> FALSE | BF16: 0
A17: 0 | B17: 1 | C17: 0 | D17: 0 | E17: 1 | F17: 1 | G17: 1 | H17: XB37 | I17: M | J17: 7 | N17: 13 | P17: Woda | T17: Woda | X17: 70 | Y17: 35 | AC17: 5 | AD17: 60 | AK17: 0 | AL17: XB37M-1-16 G 1 (20mm) | AM17: 1*7M/1*8M | AN17: A | AO17: PED Art 4.3 | AP17: 125,3 | AQ17: 0,78 | AR17: 2052,3/910,8 | AS17: 18,20 | AT17: 1,92 | AU17: 3,03 | AV17: 1,27 | AW17: 0,55 | AX17: FALSE | AY17: 0 | AZ17: 0 | BC17: 15 | BD17: 9 | BE17: =AND('Dane wejściowe'!$C$28>=BC17,'Dane wejściowe'!$C$28<BC18) -> FALSE | BF17: 0
A18: 0 | B18: 1 | C18: 0 | D18: 0 | E18: 1 | F18: 1 | G18: 1 | H18: XB37 | I18: M | J18: 7 | N18: 14 | P18: Woda | T18: Woda | X18: 70 | Y18: 35 | AC18: 5 | AD18: 60 | AK18: 0 | AL18: XB37M-1-16 G 1 (20mm) | AM18: 1*7M/1*8M | AN18: A | AO18: PED Art 4.3 | AP18: 120,5 | AQ18: 0,78 | AR18: 2162,8/980,9 | AS18: 18,20 | AT18: 1,92 | AU18: 3,03 | AV18: 1,44 | AW18: 0,62 | AX18: FALSE | AY18: 0 | AZ18: 0 | BC18: 20 | BD18: 10 | BE18: =AND('Dane wejściowe'!$C$28>=BC18,'Dane wejściowe'!$C$28<BC19) -> FALSE | BF18: 0
A19: 0 | B19: 1 | C19: 0 | D19: 0 | E19: 1 | F19: 1 | G19: 1 | H19: XB37 | I19: M | J19: 7 | N19: 15 | P19: Woda | T19: Woda | X19: 70 | Y19: 35 | AC19: 5 | AD19: 60 | AK19: 0 | AL19: XB37M-1-16 G 1 (20mm) | AM19: 1*7M/1*8M | AN19: A | AO19: PED Art 4.3 | AP19: 116,1 | AQ19: 0,78 | AR19: 2271,0/1051,0 | AS19: 18,20 | AT19: 1,92 | AU19: 3,03 | AV19: 1,61 | AW19: 0,69 | AX19: FALSE | AY19: 0 | AZ19: 0 | BC19: 30 | BD19: 12 | BE19: =AND('Dane wejściowe'!$C$28>=BC19,'Dane wejściowe'!$C$28<BC20) -> FALSE | BF19: 0
A20: 0 | B20: 1 | C20: 0 | D20: 0 | E20: 1 | F20: 1 | G20: 1 | H20: XB37 | I20: M | J20: 7 | N20: 16 | P20: Woda | T20: Woda | X20: 70 | Y20: 35 | AC20: 5 | AD20: 60 | AK20: 0 | AL20: XB37M-1-16 G 1 (20mm) | AM20: 1*7M/1*8M | AN20: A | AO20: PED Art 4.3 | AP20: 112,0 | AQ20: 0,78 | AR20: 2377,1/1121,0 | AS20: 18,20 | AT20: 1,92 | AU20: 3,03 | AV20: 1,79 | AW20: 0,77 | AX20: FALSE | AY20: 0 | AZ20: 0 | BC20: 40 | BD20: 14 | BE20: =AND('Dane wejściowe'!$C$28>=BC20,'Dane wejściowe'!$C$28<BC21) -> FALSE | BF20: 0
A21: 0 | B21: 1 | C21: 0 | D21: 0 | E21: 1 | F21: 1 | G21: 1 | H21: XB37 | I21: M | J21: 7 | N21: 17 | P21: Woda | T21: Woda | X21: 70 | Y21: 35 | AC21: 5 | AD21: 60 | AK21: 0 | AL21: XB37M-1-16 G 1 (20mm) | AM21: 1*7M/1*8M | AN21: A | AO21: PED Art 4.3 | AP21: 108,3 | AQ21: 0,78 | AR21: 2481,1/1191,1 | AS21: 18,20 | AT21: 1,92 | AU21: 3,03 | AV21: 1,98 | AW21: 0,85 | AX21: FALSE | AY21: 0 | AZ21: 0 | BC21: 50 | BD21: 16 | BE21: =AND('Dane wejściowe'!$C$28>=BC21,'Dane wejściowe'!$C$28<BC22) -> FALSE | BF21: 0
A22: 0 | B22: 1 | C22: 0 | D22: 0 | E22: 1 | F22: 1 | G22: 1 | H22: XB37 | I22: M | J22: 7 | N22: 18 | P22: Woda | T22: Woda | X22: 70 | Y22: 35 | AC22: 5 | AD22: 60 | AK22: 0 | AL22: XB37M-1-16 G 1 (20mm) | AM22: 1*7M/1*8M | AN22: A | AO22: PED Art 4.3 | AP22: 104,8 | AQ22: 0,78 | AR22: 2583,3/1261,2 | AS22: 18,20 | AT22: 1,92 | AU22: 3,03 | AV22: 2,18 | AW22: 0,94 | AX22: FALSE | AY22: 0 | AZ22: 0 | BC22: 65 | BD22: 17 | BE22: =AND('Dane wejściowe'!$C$28>=BC22,'Dane wejściowe'!$C$28<BC23) -> FALSE | BF22: 0
A23: 0 | B23: 1 | C23: 0 | D23: 0 | E23: 1 | F23: 1 | G23: 1 | H23: XB37 | I23: M | J23: 7 | N23: 19 | P23: Woda | T23: Woda | X23: 70 | Y23: 35 | AC23: 5 | AD23: 60 | AK23: 0 | AL23: XB37M-1-16 G 1 (20mm) | AM23: 1*7M/1*8M | AN23: A | AO23: PED Art 4.3 | AP23: 101,6 | AQ23: 0,78 | AR23: 2683,8/1331,2 | AS23: 18,20 | AT23: 1,92 | AU23: 3,03 | AV23: 2,38 | AW23: 1,03 | AX23: FALSE | AY23: 0 | AZ23: 0 | BC23: 100 | BD23: 18 | BE23: =AND('Dane wejściowe'!$C$28>=BC23,'Dane wejściowe'!$C$28<BC24) -> FALSE | BF23: 0
A24: 0 | B24: 1 | C24: 0 | D24: 0 | E24: 1 | F24: 1 | G24: 1 | H24: XB37 | I24: M | J24: 7 | N24: 20 | P24: Woda | T24: Woda | X24: 70 | Y24: 35 | AC24: 5 | AD24: 60 | AK24: 0 | AL24: XB37M-1-16 G 1 (20mm) | AM24: 1*7M/1*8M | AN24: A | AO24: PED Art 4.3 | AP24: 98,6 | AQ24: 0,78 | AR24: 2782,7/1401,3 | AS24: 18,20 | AT24: 1,92 | AU24: 3,03 | AV24: 2,59 | AW24: 1,12 | AX24: FALSE | AY24: 0 | AZ24: 0 | BC24: 1000 | BD24: 18 | BE24: =AND('Dane wejściowe'!$C$28>=BC24,'Dane wejściowe'!$C$28<BC25) -> FALSE | BF24: 0
A25: 0 | B25: 1 | C25: 0 | D25: 0 | E25: 1 | F25: 1 | G25: 1 | H25: XB37 | I25: M | J25: 7 | N25: 21 | P25: Woda | T25: Woda | X25: 70 | Y25: 35 | AC25: 5 | AD25: 60 | AK25: 0 | AL25: XB37M-1-16 G 1 (20mm) | AM25: 1*7M/1*8M | AN25: A | AO25: PED Art 4.3 | AP25: 95,7 | AQ25: 0,78 | AR25: 2880,1/1471,4 | AS25: 18,20 | AT25: 1,92 | AU25: 3,03 | AV25: 2,96 | AW25: 1,21 | AX25: FALSE | AY25: 0 | AZ25: 0 | BF25: =SUM(BF6:BF24) -> 0
A26: 0 | B26: 1 | C26: 0 | D26: 0 | E26: 1 | F26: 1 | G26: 1 | H26: XB37 | I26: M | J26: 7 | N26: 22 | P26: Woda | T26: Woda | X26: 70 | Y26: 35 | AC26: 5 | AD26: 60 | AK26: 0 | AL26: XB37M-1-16 G 1 (20mm) | AM26: 1*7M/1*8M | AN26: A | AO26: PED Art 4.3 | AP26: 93,1 | AQ26: 0,78 | AR26: 2976,1/1541,4 | AS26: 18,20 | AT26: 1,92 | AU26: 3,03 | AV26: 3,22 | AW26: 1,31 | AX26: FALSE | AY26: 0 | AZ26: 0
A27: 0 | B27: 1 | C27: 0 | D27: 0 | E27: 1 | F27: 1 | G27: 1 | H27: XB37 | I27: M | J27: 7 | N27: 23 | P27: Woda | T27: Woda | X27: 70 | Y27: 35 | AC27: 5 | AD27: 60 | AK27: 0 | AL27: XB37M-1-16 G 1 (20mm) | AM27: 1*7M/1*8M | AN27: A | AO27: PED Art 4.3 | AP27: 90,6 | AQ27: 0,78 | AR27: 3070,7/1611,5 | AS27: 18,20 | AT27: 1,92 | AU27: 3,03 | AV27: 3,50 | AW27: 1,40 | AX27: FALSE | AY27: 0 | AZ27: 0
A28: 0 | B28: 1 | C28: 0 | D28: 0 | E28: 1 | F28: 1 | G28: 1 | H28: XB37 | I28: M | J28: 7 | N28: 24 | P28: Woda | T28: Woda | X28: 70 | Y28: 35 | AC28: 5 | AD28: 60 | AK28: 0 | AL28: XB37M-1-16 G 1 (20mm) | AM28: 1*7M/1*8M | AN28: A | AO28: PED Art 4.3 | AP28: 88,2 | AQ28: 0,78 | AR28: 3164,1/1681,5 | AS28: 18,20 | AT28: 1,92 | AU28: 3,03 | AV28: 3,78 | AW28: 1,51 | AX28: FALSE | AY28: 0 | AZ28: 0
A29: 0 | B29: 1 | C29: 0 | D29: 0 | E29: 1 | F29: 1 | G29: 1 | H29: XB37 | I29: M | J29: 7 | N29: 25 | P29: Woda | T29: Woda | X29: 70 | Y29: 35 | AC29: 5 | AD29: 60 | AK29: 0 | AL29: XB37M-1-16 G 1 (20mm) | AM29: 1*7M/1*8M | AN29: A | AO29: PED Art 4.3 | AP29: 85,9 | AQ29: 0,78 | AR29: 3256,3/1751,6 | AS29: 18,20 | AT29: 1,92 | AU29: 3,03 | AV29: 4,07 | AW29: 1,61 | AX29: FALSE | AY29: 0 | AZ29: 0
A30: 0 | B30: 1 | C30: 0 | D30: 0 | E30: 1 | F30: 1 | G30: 1 | H30: XB37 | I30: M | J30: 7 | N30: 26 | P30: Woda | T30: Woda | X30: 70 | Y30: 35 | AC30: 5 | AD30: 60 | AK30: 0 | AL30: XB37M-1-16 G 1 (20mm) | AM30: 1*7M/1*8M | AN30: A | AO30: PED Art 4.3 | AP30: 83,8 | AQ30: 0,78 | AR30: 3347,4/1821,7 | AS30: 18,20 | AT30: 1,92 | AU30: 3,03 | AV30: 4,37 | AW30: 1,72 | AX30: FALSE | AY30: 0 | AZ30: 0
A31: 0 | B31: 1 | C31: 0 | D31: 0 | E31: 1 | F31: 1 | G31: 1 | H31: XB37 | I31: M | J31: 7 | N31: 27 | P31: Woda | T31: Woda | X31: 70 | Y31: 35 | AC31: 5 | AD31: 60 | AK31: 0 | AL31: XB37M-1-16 G 1 (20mm) | AM31: 1*7M/1*8M | AN31: A | AO31: PED Art 4.3 | AP31: 81,7 | AQ31: 0,78 | AR31: 3437,4/1891,7 | AS31: 18,20 | AT31: 1,92 | AU31: 3,03 | AV31: 4,69 | AW31: 1,83 | AX31: FALSE | AY31: 0 | AZ31: 0
A32: 0 | B32: 1 | C32: 0 | D32: 0 | E32: 1 | F32: 1 | G32: 1 | H32: XB37 | I32: M | J32: 7 | N32: 28 | P32: Woda | T32: Woda | X32: 70 | Y32: 35 | AC32: 5 | AD32: 60 | AK32: 0 | AL32: XB37M-1-16 G 1 (20mm) | AM32: 1*7M/1*8M | AN32: A | AO32: PED Art 4.3 | AP32: 79,7 | AQ32: 0,78 | AR32: 3526,3/1961,8 | AS32: 18,20 | AT32: 1,92 | AU32: 3,03 | AV32: 5,01 | AW32: 1,94 | AX32: FALSE | AY32: 0 | AZ32: 0
A33: 0 | B33: 1 | C33: 0 | D33: 0 | E33: 1 | F33: 1 | G33: 1 | H33: XB37 | I33: M | J33: 7 | N33: 29 | P33: Woda | T33: Woda | X33: 70 | Y33: 35 | AC33: 5 | AD33: 60 | AK33: 0 | AL33: XB37M-1-16 G 1 (20mm) | AM33: 1*7M/1*8M | AN33: A | AO33: PED Art 4.3 | AP33: 77,9 | AQ33: 0,78 | AR33: 3614,3/2031,9 | AS33: 18,20 | AT33: 1,92 | AU33: 3,03 | AV33: 5,34 | AW33: 2,06 | AX33: FALSE | AY33: 0 | AZ33: 0
A34: 0 | B34: 1 | C34: 0 | D34: 0 | E34: 1 | F34: 1 | G34: 1 | H34: XB37 | I34: M | J34: 7 | N34: 30 | P34: Woda | T34: Woda | X34: 70 | Y34: 35 | AC34: 5 | AD34: 60 | AK34: 0 | AL34: XB37M-1-16 G 1 (20mm) | AM34: 1*7M/1*8M | AN34: A | AO34: PED Art 4.3 | AP34: 76,1 | AQ34: 0,78 | AR34: 3701,3/2101,9 | AS34: 18,20 | AT34: 1,92 | AU34: 3,03 | AV34: 5,68 | AW34: 2,18 | AX34: FALSE | AY34: 0 | AZ34: 0
A35: 0 | B35: 1 | C35: 0 | D35: 0 | E35: 1 | F35: 1 | G35: 1 | H35: XB37 | I35: M | J35: 7 | N35: 31 | P35: Woda | T35: Woda | X35: 70 | Y35: 35 | AC35: 5 | AD35: 60 | AK35: 0 | AL35: XB37M-1-16 G 1 (20mm) | AM35: 1*7M/1*8M | AN35: A | AO35: PED Art 4.3 | AP35: 74,4 | AQ35: 0,78 | AR35: 3787,4/2172,0 | AS35: 18,20 | AT35: 1,92 | AU35: 3,03 | AV35: 6,03 | AW35: 2,30 | AX35: FALSE | AY35: 0 | AZ35: 0
A36: 0 | B36: 1 | C36: 0 | D36: 0 | E36: 1 | F36: 1 | G36: 1 | H36: XB37 | I36: M | J36: 7 | N36: 32 | P36: Woda | T36: Woda | X36: 70 | Y36: 35 | AC36: 5 | AD36: 60 | AK36: 0 | AL36: XB37M-1-16 G 1 (20mm) | AM36: 1*7M/1*8M | AN36: A | AO36: PED Art 4.3 | AP36: 72,7 | AQ36: 0,78 | AR36: 3872,6/2242,1 | AS36: 18,20 | AT36: 1,92 | AU36: 3,03 | AV36: 6,39 | AW36: 2,42 | AX36: FALSE | AY36: 0 | AZ36: 0
A37: 0 | B37: 1 | C37: 0 | D37: 0 | E37: 1 | F37: 1 | G37: 1 | H37: XB37 | I37: M | J37: 7 | N37: 33 | P37: Woda | T37: Woda | X37: 70 | Y37: 35 | AC37: 5 | AD37: 60 | AK37: 0 | AL37: XB37M-1-16 G 1 (20mm) | AM37: 1*7M/1*8M | AN37: A | AO37: PED Art 4.3 | AP37: 71,1 | AQ37: 0,78 | AR37: 3957,0/2312,1 | AS37: 18,20 | AT37: 1,92 | AU37: 3,03 | AV37: 6,76 | AW37: 2,55 | AX37: FALSE | AY37: 0 | AZ37: 0
A38: 0 | B38: 1 | C38: 0 | D38: 0 | E38: 1 | F38: 1 | G38: 1 | H38: XB37 | I38: M | J38: 7 | N38: 34 | P38: Woda | T38: Woda | X38: 70 | Y38: 35 | AC38: 5 | AD38: 60 | AK38: 0 | AL38: XB37M-1-16 G 1 (20mm) | AM38: 1*7M/1*8M | AN38: A | AO38: PED Art 4.3 | AP38: 69,6 | AQ38: 0,78 | AR38: 4040,6/2382,2 | AS38: 18,20 | AT38: 1,92 | AU38: 3,03 | AV38: 7,14 | AW38: 2,68 | AX38: FALSE | AY38: 0 | AZ38: 0
A39: 0 | B39: 1 | C39: 0 | D39: 0 | E39: 1 | F39: 1 | G39: 1 | H39: XB37 | I39: M | J39: 7 | N39: 35 | P39: Woda | T39: Woda | X39: 70 | Y39: 35 | AC39: 5 | AD39: 60 | AK39: 0 | AL39: XB37M-1-16 G 1 (20mm) | AM39: 1*7M/1*8M | AN39: A | AO39: PED Art 4.3 | AP39: 68,1 | AQ39: 0,78 | AR39: 4123,5/2452,3 | AS39: 18,20 | AT39: 1,92 | AU39: 3,03 | AV39: 7,53 | AW39: 2,81 | AX39: FALSE | AY39: 0 | AZ39: 0
A40: 0 | B40: 1 | C40: 0 | D40: 0 | E40: 1 | F40: 1 | G40: 1 | H40: XB37 | I40: M | J40: 7 | N40: 36 | P40: Woda | T40: Woda | X40: 70 | Y40: 35 | AC40: 5 | AD40: 60 | AK40: 0 | AL40: XB37M-1-16 G 1 (20mm) | AM40: 1*7M/1*8M | AN40: A | AO40: PED Art 4.3 | AP40: 66,7 | AQ40: 0,78 | AR40: 4205,5/2522,3 | AS40: 18,20 | AT40: 1,92 | AU40: 3,03 | AV40: 7,92 | AW40: 2,94 | AX40: FALSE | AY40: 0 | AZ40: 0
A41: 0 | B41: 1 | C41: 0 | D41: 0 | E41: 1 | F41: 1 | G41: 1 | H41: XB37 | I41: M | J41: 7 | N41: 37 | P41: Woda | T41: Woda | X41: 70 | Y41: 35 | AC41: 5 | AD41: 60 | AK41: 0 | AL41: XB37M-1-16 G 1 (20mm) | AM41: 1*7M/1*8M | AN41: A | AO41: PED Art 4.3 | AP41: 65,4 | AQ41: 0,78 | AR41: 4286,9/2592,4 | AS41: 18,20 | AT41: 1,92 | AU41: 3,03 | AV41: 8,33 | AW41: 3,08 | AX41: FALSE | AY41: 0 | AZ41: 0
A42: 0 | B42: 1 | C42: 0 | D42: 0 | E42: 1 | F42: 1 | G42: 1 | H42: XB37 | I42: M | J42: 7 | N42: 38 | P42: Woda | T42: Woda | X42: 70 | Y42: 35 | AC42: 5 | AD42: 60 | AK42: 0 | AL42: XB37M-1-16 G 1 (20mm) | AM42: 1*7M/1*8M | AN42: A | AO42: PED Art 4.3 | AP42: 64,0 | AQ42: 0,78 | AR42: 4367,6/2662,5 | AS42: 18,20 | AT42: 1,92 | AU42: 3,03 | AV42: 8,74 | AW42: 3,22 | AX42: FALSE | AY42: 0 | AZ42: 0
A43: 0 | B43: 1 | C43: 0 | D43: 0 | E43: 1 | F43: 1 | G43: 1 | H43: XB37 | I43: M | J43: 7 | N43: 39 | P43: Woda | T43: Woda | X43: 70 | Y43: 35 | AC43: 5 | AD43: 60 | AK43: 0 | AL43: XB37M-1-16 G 1 (20mm) | AM43: 1*7M/1*8M | AN43: A | AO43: PED Art 4.3 | AP43: 62,8 | AQ43: 0,78 | AR43: 4447,5/2732,5 | AS43: 18,20 | AT43: 1,92 | AU43: 3,03 | AV43: 9,17 | AW43: 3,36 | AX43: FALSE | AY43: 0 | AZ43: 0
A44: 0 | B44: 1 | C44: 0 | D44: 0 | E44: 1 | F44: 1 | G44: 1 | H44: XB37 | I44: M | J44: 7 | N44: 40 | P44: Woda | T44: Woda | X44: 70 | Y44: 35 | AC44: 5 | AD44: 60 | AK44: 0 | AL44: XB37M-1-16 G 1 (20mm) | AM44: 1*7M/1*8M | AN44: A | AO44: PED Art 4.3 | AP44: 61,5 | AQ44: 0,78 | AR44: 4526,9/2802,6 | AS44: 18,20 | AT44: 1,92 | AU44: 3,03 | AV44: 9,60 | AW44: 3,50 | AX44: FALSE | AY44: 0 | AZ44: 0
A45: 0 | B45: 1 | C45: 0 | D45: 0 | E45: 1 | F45: 1 | G45: 1 | H45: XB37 | I45: M | J45: 7 | N45: 41 | P45: Woda | T45: Woda | X45: 70 | Y45: 35 | AC45: 5 | AD45: 60 | AK45: 0 | AL45: XB37M-1-16 G 1 (20mm) | AM45: 1*7M/1*8M | AN45: A | AO45: PED Art 4.3 | AP45: 60,3 | AQ45: 0,78 | AR45: 4605,6/2872,6 | AS45: 18,20 | AT45: 1,92 | AU45: 3,03 | AV45: 10,05 | AW45: 3,65 | AX45: FALSE | AY45: 0 | AZ45: 0
A46: 0 | B46: 1 | C46: 0 | D46: 0 | E46: 1 | F46: 1 | G46: 1 | H46: XB37 | I46: M | J46: 7 | N46: 42 | P46: Woda | T46: Woda | X46: 70 | Y46: 35 | AC46: 5 | AD46: 60 | AK46: 0 | AL46: XB37M-1-16 G 1 (20mm) | AM46: 1*7M/1*8M | AN46: A | AO46: PED Art 4.3 | AP46: 59,2 | AQ46: 0,78 | AR46: 4683,6/2942,7 | AS46: 18,20 | AT46: 1,92 | AU46: 3,03 | AV46: 10,50 | AW46: 3,79 | AX46: FALSE | AY46: 0 | AZ46: 0
A47: 0 | B47: 1 | C47: 0 | D47: 0 | E47: 1 | F47: 1 | G47: 1 | H47: XB37 | I47: M | J47: 7 | N47: 43 | P47: Woda | T47: Woda | X47: 70 | Y47: 35 | AC47: 5 | AD47: 60 | AK47: 0 | AL47: XB37M-1-16 G 1 (20mm) | AM47: 1*7M/1*8M | AN47: A | AO47: PED Art 4.3 | AP47: 58,0 | AQ47: 0,78 | AR47: 4761,1/3012,8 | AS47: 18,20 | AT47: 1,92 | AU47: 3,03 | AV47: 10,96 | AW47: 3,94 | AX47: FALSE | AY47: 0 | AZ47: 0
A48: 0 | B48: 1 | C48: 0 | D48: 0 | E48: 1 | F48: 1 | G48: 1 | H48: XB37 | I48: M | J48: 7 | N48: 44 | P48: Woda | T48: Woda | X48: 70 | Y48: 35 | AC48: 5 | AD48: 60 | AK48: 0 | AL48: XB37M-1-16 G 1 (20mm) | AM48: 1*7M/1*8M | AN48: A | AO48: PED Art 4.3 | AP48: 56,9 | AQ48: 0,78 | AR48: 4838,0/3082,8 | AS48: 18,20 | AT48: 1,92 | AU48: 3,03 | AV48: 11,43 | AW48: 4,10 | AX48: FALSE | AY48: 0 | AZ48: 0
A49: 0 | B49: 1 | C49: 0 | D49: 0 | E49: 1 | F49: 1 | G49: 1 | H49: XB37 | I49: M | J49: 7 | N49: 45 | P49: Woda | T49: Woda | X49: 70 | Y49: 35 | AC49: 5 | AD49: 60 | AK49: 0 | AL49: XB37M-1-16 G 1 (20mm) | AM49: 1*7M/1*8M | AN49: A | AO49: PED Art 4.3 | AP49: 55,9 | AQ49: 0,78 | AR49: 4914,4/3152,9 | AS49: 18,20 | AT49: 1,92 | AU49: 3,03 | AV49: 11,91 | AW49: 4,25 | AX49: FALSE | AY49: 0 | AZ49: 0
A50: 0 | B50: 1 | C50: 0 | D50: 0 | E50: 1 | F50: 1 | G50: 1 | H50: XB37 | I50: M | J50: 7 | N50: 46 | P50: Woda | T50: Woda | X50: 70 | Y50: 35 | AC50: 5 | AD50: 60 | AK50: 0 | AL50: XB37M-1-16 G 1 (20mm) | AM50: 1*7M/1*8M | AN50: A | AO50: PED Art 4.3 | AP50: 54,8 | AQ50: 0,78 | AR50: 4990,1/3223,0 | AS50: 18,20 | AT50: 1,92 | AU50: 3,03 | AV50: 12,40 | AW50: 4,41 | AX50: FALSE | AY50: 0 | AZ50: 0
A51: 0 | B51: 1 | C51: 0 | D51: 0 | E51: 1 | F51: 1 | G51: 1 | H51: XB37 | I51: M | J51: 7 | N51: 47 | P51: Woda | T51: Woda | X51: 70 | Y51: 35 | AC51: 5 | AD51: 60 | AK51: 0 | AL51: XB37M-1-16 G 1 (20mm) | AM51: 1*7M/1*8M | AN51: A | AO51: PED Art 4.3 | AP51: 53,8 | AQ51: 0,78 | AR51: 5065,4/3293,0 | AS51: 18,20 | AT51: 1,92 | AU51: 3,03 | AV51: 12,89 | AW51: 4,57 | AX51: FALSE | AY51: 0 | AZ51: 0
A52: 0 | B52: 1 | C52: 0 | D52: 0 | E52: 1 | F52: 1 | G52: 1 | H52: XB37 | I52: M | J52: 7 | N52: 48 | P52: Woda | T52: Woda | X52: 70 | Y52: 35 | AC52: 5 | AD52: 60 | AK52: 0 | AL52: XB37M-1-16 G 1 (20mm) | AM52: 1*7M/1*8M | AN52: A | AO52: PED Art 4.3 | AP52: 52,8 | AQ52: 0,78 | AR52: 5140,1/3363,1 | AS52: 18,20 | AT52: 1,92 | AU52: 3,03 | AV52: 13,40 | AW52: 4,73 | AX52: FALSE | AY52: 0 | AZ52: 0
A53: 0 | B53: 1 | C53: 0 | D53: 0 | E53: 1 | F53: 1 | G53: 1 | H53: XB37 | I53: M | J53: 7 | N53: 49 | P53: Woda | T53: Woda | X53: 70 | Y53: 35 | AC53: 5 | AD53: 60 | AK53: 0 | AL53: XB37M-1-16 G 1 (20mm) | AM53: 1*7M/1*8M | AN53: A | AO53: PED Art 4.3 | AP53: 51,9 | AQ53: 0,78 | AR53: 5214,4/3433,2 | AS53: 18,20 | AT53: 1,92 | AU53: 3,03 | AV53: 13,91 | AW53: 4,89 | AX53: FALSE | AY53: 0 | AZ53: 0
A54: 0 | B54: 1 | C54: 0 | D54: 0 | E54: 1 | F54: 1 | G54: 1 | H54: XB37 | I54: M | J54: 7 | N54: 50 | P54: Woda | T54: Woda | X54: 70 | Y54: 35 | AC54: 5 | AD54: 60 | AK54: 0 | AL54: XB37M-1-16 G 1 (20mm) | AM54: 1*7M/1*8M | AN54: A | AO54: PED Art 4.3 | AP54: 50,9 | AQ54: 0,78 | AR54: 5288,1/3503,2 | AS54: 18,20 | AT54: 1,92 | AU54: 3,03 | AV54: 14,43 | AW54: 5,06 | AX54: FALSE | AY54: 0 | AZ54: 0
A55: 0 | B55: 1 | C55: 0 | D55: 0 | E55: 1 | F55: 1 | G55: 1 | H55: XB37 | I55: M | J55: 7 | N55: 51 | P55: Woda | T55: Woda | X55: 70 | Y55: 35 | AC55: 5 | AD55: 60 | AK55: 0 | AL55: XB37M-1-16 G 1 (20mm) | AM55: 1*7M/1*8M | AN55: A | AO55: PED Art 4.3 | AP55: 50,0 | AQ55: 0,78 | AR55: 5361,3/3573,3 | AS55: 18,20 | AT55: 1,92 | AU55: 3,03 | AV55: 14,97 | AW55: 5,23 | AX55: FALSE | AY55: 0 | AZ55: 0
A56: 0 | B56: 1 | C56: 0 | D56: 0 | E56: 1 | F56: 1 | G56: 1 | H56: XB37 | I56: M | J56: 7 | N56: 52 | P56: Woda | T56: Woda | X56: 70 | Y56: 35 | AC56: 5 | AD56: 60 | AK56: 0 | AL56: XB37M-1-16 G 1 (20mm) | AM56: 1*7M/1*8M | AN56: A | AO56: PED Art 4.3 | AP56: 49,2 | AQ56: 0,78 | AR56: 5434,1/3643,4 | AS56: 18,20 | AT56: 1,92 | AU56: 3,03 | AV56: 15,51 | AW56: 5,40 | AX56: FALSE | AY56: 0 | AZ56: 0
A57: 0 | B57: 1 | C57: 0 | D57: 0 | E57: 1 | F57: 1 | G57: 1 | H57: XB37 | I57: M | J57: 7 | N57: 53 | P57: Woda | T57: Woda | X57: 70 | Y57: 35 | AC57: 5 | AD57: 60 | AK57: 0 | AL57: XB37M-1-16 G 1 (20mm) | AM57: 1*7M/1*8M | AN57: A | AO57: PED Art 4.3 | AP57: 48,3 | AQ57: 0,78 | AR57: 5506,4/3713,4 | AS57: 18,20 | AT57: 1,92 | AU57: 3,03 | AV57: 16,05 | AW57: 5,83 | AX57: FALSE | AY57: 0 | AZ57: 0
A58: 0 | B58: 1 | C58: 0 | D58: 0 | E58: 1 | F58: 1 | G58: 1 | H58: XB37 | I58: M | J58: 7 | N58: 54 | P58: Woda | T58: Woda | X58: 70 | Y58: 35 | AC58: 5 | AD58: 60 | AK58: 0 | AL58: XB37M-1-16 G 1 (20mm) | AM58: 1*7M/1*8M | AN58: A | AO58: PED Art 4.3 | AP58: 47,4 | AQ58: 0,78 | AR58: 5578,3/3783,5 | AS58: 18,20 | AT58: 1,92 | AU58: 3,03 | AV58: 16,61 | AW58: 6,04 | AX58: FALSE | AY58: 0 | AZ58: 0
A59: 0 | B59: 1 | C59: 0 | D59: 0 | E59: 1 | F59: 1 | G59: 1 | H59: XB37 | I59: M | J59: 7 | N59: 55 | P59: Woda | T59: Woda | X59: 70 | Y59: 35 | AC59: 5 | AD59: 60 | AK59: 0 | AL59: XB37M-1-16 G 1 (20mm) | AM59: 1*7M/1*8M | AN59: A | AO59: PED Art 4.3 | AP59: 46,6 | AQ59: 0,78 | AR59: 5649,8/3853,6 | AS59: 18,20 | AT59: 1,92 | AU59: 3,03 | AV59: 17,18 | AW59: 6,24 | AX59: FALSE | AY59: 0 | AZ59: 0
A60: 0 | B60: 1 | C60: 0 | D60: 0 | E60: 1 | F60: 1 | G60: 1 | H60: XB37 | I60: M | J60: 7 | N60: 56 | P60: Woda | T60: Woda | X60: 70 | Y60: 35 | AC60: 5 | AD60: 60 | AK60: 0 | AL60: XB37M-1-16 G 1 (20mm) | AM60: 1*7M/1*8M | AN60: A | AO60: PED Art 4.3 | AP60: 45,8 | AQ60: 0,78 | AR60: 5720,8/3923,6 | AS60: 18,20 | AT60: 1,92 | AU60: 3,03 | AV60: 17,75 | AW60: 6,45 | AX60: FALSE | AY60: 0 | AZ60: 0
A61: 0 | B61: 1 | C61: 0 | D61: 0 | E61: 1 | F61: 1 | G61: 1 | H61: XB37 | I61: M | J61: 7 | N61: 57 | P61: Woda | T61: Woda | X61: 70 | Y61: 35 | AC61: 5 | AD61: 60 | AK61: 0 | AL61: XB37M-1-16 G 1 (20mm) | AM61: 1*7M/1*8M | AN61: A | AO61: PED Art 4.3 | AP61: 45,0 | AQ61: 0,78 | AR61: 5791,4/3993,7 | AS61: 18,20 | AT61: 1,92 | AU61: 3,03 | AV61: 18,34 | AW61: 6,66 | AX61: FALSE | AY61: 0 | AZ61: 0
A62: 0 | B62: 1 | C62: 0 | D62: 0 | E62: 1 | F62: 1 | G62: 1 | H62: XB37 | I62: M | J62: 7 | N62: 58 | P62: Woda | T62: Woda | X62: 70 | Y62: 35 | AC62: 5 | AD62: 60 | AK62: 0 | AL62: XB37M-1-16 G 1 (20mm) | AM62: 1*7M/1*8M | AN62: A | AO62: PED Art 4.3 | AP62: 44,2 | AQ62: 0,78 | AR62: 5861,6/4063,7 | AS62: 18,20 | AT62: 1,92 | AU62: 3,03 | AV62: 18,93 | AW62: 6,88 | AX62: FALSE | AY62: 0 | AZ62: 0
A63: 0 | B63: 1 | C63: 0 | D63: 0 | E63: 1 | F63: 1 | G63: 1 | H63: XB37 | I63: M | J63: 7 | N63: 59 | P63: Woda | T63: Woda | X63: 70 | Y63: 35 | AC63: 5 | AD63: 60 | AK63: 0 | AL63: XB37M-1-16 G 1 (20mm) | AM63: 1*7M/1*8M | AN63: A | AO63: PED Art 4.3 | AP63: 43,5 | AQ63: 0,78 | AR63: 5931,3/4133,8 | AS63: 18,20 | AT63: 1,92 | AU63: 3,03 | AV63: 19,53 | AW63: 7,10 | AX63: FALSE | AY63: 0 | AZ63: 0
A64: 0 | B64: 1 | C64: 0 | D64: 0 | E64: 1 | F64: 1 | G64: 1 | H64: XB37 | I64: M | J64: 7 | N64: 60 | P64: Woda | T64: Woda | X64: 70 | Y64: 35 | AC64: 5 | AD64: 60 | AK64: 0 | AL64: XB37M-1-16 G 1 (20mm) | AM64: 1*7M/1*8M | AN64: A | AO64: PED Art 4.3 | AP64: 42,7 | AQ64: 0,78 | AR64: 6000,8/4203,9 | AS64: 18,20 | AT64: 1,92 | AU64: 3,03 | AV64: 20,14 | AW64: 7,32 | AX64: FALSE | AY64: 0 | AZ64: 0
A65: 0 | B65: 1 | C65: 0 | D65: 0 | E65: 1 | F65: 1 | G65: 1 | H65: XB37 | I65: M | J65: 7 | N65: 1 | P65: Woda | T65: Woda | X65: 70 | Y65: 30 | AC65: 5 | AD65: 60 | AK65: 0 | AL65: XB37M-1-16 G 1 (20mm) | AM65: 1*7M/1*8M | AN65: A | AO65: PED Art 4.3 | AP65: 307,7 | AQ65: 0,78 | AR65: 317,7/77,9 | AS65: 16,37 | AT65: 2,44 | AU65: 3,37 | AV65: 0,02 | AW65: 0,01 | AX65: FALSE | AY65: 0 | AZ65: 0
A66: 0 | B66: 1 | C66: 0 | D66: 0 | E66: 1 | F66: 1 | G66: 1 | H66: XB37 | I66: M | J66: 7 | N66: 2 | P66: Woda | T66: Woda | X66: 70 | Y66: 30 | AC66: 5 | AD66: 60 | AK66: 0 | AL66: XB37M-1-16 G 1 (20mm) | AM66: 1*7M/1*8M | AN66: A | AO66: PED Art 4.3 | AP66: 234,5 | AQ66: 0,78 | AR66: 521,3/155,8 | AS66: 16,37 | AT66: 2,44 | AU66: 3,37 | AV66: 0,05 | AW66: 0,03 | AX66: FALSE | AY66: 0 | AZ66: 0
A67: 0 | B67: 1 | C67: 0 | D67: 0 | E67: 1 | F67: 1 | G67: 1 | H67: XB37 | I67: M | J67: 7 | N67: 3 | P67: Woda | T67: Woda | X67: 70 | Y67: 30 | AC67: 5 | AD67: 60 | AK67: 0 | AL67: XB37M-1-16 G 1 (20mm) | AM67: 1*7M/1*8M | AN67: A | AO67: PED Art 4.3 | AP67: 198,0 | AQ67: 0,78 | AR67: 696,6/233,7 | AS67: 16,37 | AT67: 2,44 | AU67: 3,37 | AV67: 0,09 | AW67: 0,05 | AX67: FALSE | AY67: 0 | AZ67: 0
A68: 0 | B68: 1 | C68: 0 | D68: 0 | E68: 1 | F68: 1 | G68: 1 | H68: XB37 | I68: M | J68: 7 | N68: 4 | P68: Woda | T68: Woda | X68: 70 | Y68: 30 | AC68: 5 | AD68: 60 | AK68: 0 | AL68: XB37M-1-16 G 1 (20mm) | AM68: 1*7M/1*8M | AN68: A | AO68: PED Art 4.3 | AP68: 174,6 | AQ68: 0,78 | AR68: 855,9/311,7 | AS68: 16,37 | AT68: 2,44 | AU68: 3,37 | AV68: 0,15 | AW68: 0,08 | AX68: FALSE | AY68: 0 | AZ68: 0
A69: 0 | B69: 1 | C69: 0 | D69: 0 | E69: 1 | F69: 1 | G69: 1 | H69: XB37 | I69: M | J69: 7 | N69: 5 | P69: Woda | T69: Woda | X69: 70 | Y69: 30 | AC69: 5 | AD69: 60 | AK69: 0 | AL69: XB37M-1-16 G 1 (20mm) | AM69: 1*7M/1*8M | AN69: A | AO69: PED Art 4.3 | AP69: 157,7 | AQ69: 0,78 | AR69: 1004,1/389,6 | AS69: 16,37 | AT69: 2,44 | AU69: 3,37 | AV69: 0,21 | AW69: 0,11 | AX69: FALSE | AY69: 0 | AZ69: 0
A70: 0 | B70: 1 | C70: 0 | D70: 0 | E70: 1 | F70: 1 | G70: 1 | H70: XB37 | I70: M | J70: 7 | N70: 6 | P70: Woda | T70: Woda | X70: 70 | Y70: 30 | AC70: 5 | AD70: 60 | AK70: 0 | AL70: XB37M-1-16 G 1 (20mm) | AM70: 1*7M/1*8M | AN70: A | AO70: PED Art 4.3 | AP70: 144,7 | AQ70: 0,78 | AR70: 1144,0/467,5 | AS70: 16,37 | AT70: 2,44 | AU70: 3,37 | AV70: 0,29 | AW70: 0,15 | AX70: =AND(N70=$AY$4,X70=$AZ$4,Y70=$BA$4) -> FALSE | AY70: =AX70*AV70 -> 0 | AZ70: =AX70*AW70 -> 0
A71: 0 | B71: 1 | C71: 0 | D71: 0 | E71: 1 | F71: 1 | G71: 1 | H71: XB37 | I71: M | J71: 7 | N71: 7 | P71: Woda | T71: Woda | X71: 70 | Y71: 30 | AC71: 5 | AD71: 60 | AK71: 0 | AL71: XB37M-1-16 G 1 (20mm) | AM71: 1*7M/1*8M | AN71: A | AO71: PED Art 4.3 | AP71: 134,2 | AQ71: 0,78 | AR71: 1277,4/545,4 | AS71: 16,37 | AT71: 2,44 | AU71: 3,37 | AV71: 0,37 | AW71: 0,20 | AX71: FALSE | AY71: 0 | AZ71: 0
A72: 0 | B72: 1 | C72: 0 | D72: 0 | E72: 1 | F72: 1 | G72: 1 | H72: XB37 | I72: M | J72: 7 | N72: 8 | P72: Woda | T72: Woda | X72: 70 | Y72: 30 | AC72: 5 | AD72: 60 | AK72: 0 | AL72: XB37M-1-16 G 1 (20mm) | AM72: 1*7M/1*8M | AN72: A | AO72: PED Art 4.3 | AP72: 125,5 | AQ72: 0,78 | AR72: 1405,5/623,3 | AS72: 16,37 | AT72: 2,44 | AU72: 3,37 | AV72: 0,47 | AW72: 0,25 | AX72: FALSE | AY72: 0 | AZ72: 0
A73: 0 | B73: 1 | C73: 0 | D73: 0 | E73: 1 | F73: 1 | G73: 1 | H73: XB37 | I73: M | J73: 7 | N73: 9 | P73: Woda | T73: Woda | X73: 70 | Y73: 30 | AC73: 5 | AD73: 60 | AK73: 0 | AL73: XB37M-1-16 G 1 (20mm) | AM73: 1*7M/1*8M | AN73: A | AO73: PED Art 4.3 | AP73: 118,1 | AQ73: 0,78 | AR73: 1529,1/701,2 | AS73: 16,37 | AT73: 2,44 | AU73: 3,37 | AV73: 0,57 | AW73: 0,30 | AX73: FALSE | AY73: 0 | AZ73: 0
A74: 0 | B74: 1 | C74: 0 | D74: 0 | E74: 1 | F74: 1 | G74: 1 | H74: XB37 | I74: M | J74: 7 | N74: 10 | P74: Woda | T74: Woda | X74: 70 | Y74: 30 | AC74: 5 | AD74: 60 | AK74: 0 | AL74: XB37M-1-16 G 1 (20mm) | AM74: 1*7M/1*8M | AN74: A | AO74: PED Art 4.3 | AP74: 111,6 | AQ74: 0,78 | AR74: 1648,8/779,2 | AS74: 16,37 | AT74: 2,44 | AU74: 3,37 | AV74: 0,67 | AW74: 0,36 | AX74: FALSE | AY74: 0 | AZ74: 0
A75: 0 | B75: 1 | C75: 0 | D75: 0 | E75: 1 | F75: 1 | G75: 1 | H75: XB37 | I75: M | J75: 7 | N75: 11 | P75: Woda | T75: Woda | X75: 70 | Y75: 30 | AC75: 5 | AD75: 60 | AK75: 0 | AL75: XB37M-1-16 G 1 (20mm) | AM75: 1*7M/1*8M | AN75: A | AO75: PED Art 4.3 | AP75: 105,9 | AQ75: 0,78 | AR75: 1765,1/857,1 | AS75: 16,37 | AT75: 2,44 | AU75: 3,37 | AV75: 0,79 | AW75: 0,42 | AX75: FALSE | AY75: 0 | AZ75: 0
A76: 0 | B76: 1 | C76: 0 | D76: 0 | E76: 1 | F76: 1 | G76: 1 | H76: XB37 | I76: M | J76: 7 | N76: 12 | P76: Woda | T76: Woda | X76: 70 | Y76: 30 | AC76: 5 | AD76: 60 | AK76: 0 | AL76: XB37M-1-16 G 1 (20mm) | AM76: 1*7M/1*8M | AN76: A | AO76: PED Art 4.3 | AP76: 100,9 | AQ76: 0,78 | AR76: 1878,3/935,0 | AS76: 16,37 | AT76: 2,44 | AU76: 3,37 | AV76: 0,91 | AW76: 0,48 | AX76: FALSE | AY76: 0 | AZ76: 0
A77: 0 | B77: 1 | C77: 0 | D77: 0 | E77: 1 | F77: 1 | G77: 1 | H77: XB37 | I77: M | J77: 7 | N77: 13 | P77: Woda | T77: Woda | X77: 70 | Y77: 30 | AC77: 5 | AD77: 60 | AK77: 0 | AL77: XB37M-1-16 G 1 (20mm) | AM77: 1*7M/1*8M | AN77: A | AO77: PED Art 4.3 | AP77: 96,4 | AQ77: 0,78 | AR77: 1988,9/1012,9 | AS77: 16,37 | AT77: 2,44 | AU77: 3,37 | AV77: 1,04 | AW77: 0,55 | AX77: FALSE | AY77: 0 | AZ77: 0
A78: 0 | B78: 1 | C78: 0 | D78: 0 | E78: 1 | F78: 1 | G78: 1 | H78: XB37 | I78: M | J78: 7 | N78: 14 | P78: Woda | T78: Woda | X78: 70 | Y78: 30 | AC78: 5 | AD78: 60 | AK78: 0 | AL78: XB37M-1-16 G 1 (20mm) | AM78: 1*7M/1*8M | AN78: A | AO78: PED Art 4.3 | AP78: 92,2 | AQ78: 0,78 | AR78: 2097,1/1090,8 | AS78: 16,37 | AT78: 2,44 | AU78: 3,37 | AV78: 1,17 | AW78: 0,62 | AX78: FALSE | AY78: 0 | AZ78: 0
A79: 0 | B79: 1 | C79: 0 | D79: 0 | E79: 1 | F79: 1 | G79: 1 | H79: XB37 | I79: M | J79: 7 | N79: 15 | P79: Woda | T79: Woda | X79: 70 | Y79: 30 | AC79: 5 | AD79: 60 | AK79: 0 | AL79: XB37M-1-16 G 1 (20mm) | AM79: 1*7M/1*8M | AN79: A | AO79: PED Art 4.3 | AP79: 88,5 | AQ79: 0,78 | AR79: 2203,0/1168,7 | AS79: 16,37 | AT79: 2,44 | AU79: 3,37 | AV79: 1,31 | AW79: 0,69 | AX79: FALSE | AY79: 0 | AZ79: 0
A80: 0 | B80: 1 | C80: 0 | D80: 0 | E80: 1 | F80: 1 | G80: 1 | H80: XB37 | I80: M | J80: 7 | N80: 16 | P80: Woda | T80: Woda | X80: 70 | Y80: 30 | AC80: 5 | AD80: 60 | AK80: 0 | AL80: XB37M-1-16 G 1 (20mm) | AM80: 1*7M/1*8M | AN80: A | AO80: PED Art 4.3 | AP80: 85,0 | AQ80: 0,78 | AR80: 2306,9/1246,7 | AS80: 16,37 | AT80: 2,44 | AU80: 3,37 | AV80: 1,46 | AW80: 0,77 | AX80: FALSE | AY80: 0 | AZ80: 0
A81: 0 | B81: 1 | C81: 0 | D81: 0 | E81: 1 | F81: 1 | G81: 1 | H81: XB37 | I81: M | J81: 7 | N81: 17 | P81: Woda | T81: Woda | X81: 70 | Y81: 30 | AC81: 5 | AD81: 60 | AK81: 0 | AL81: XB37M-1-16 G 1 (20mm) | AM81: 1*7M/1*8M | AN81: A | AO81: PED Art 4.3 | AP81: 81,9 | AQ81: 0,78 | AR81: 2408,9/1324,6 | AS81: 16,37 | AT81: 2,44 | AU81: 3,37 | AV81: 1,61 | AW81: 0,85 | AX81: FALSE | AY81: 0 | AZ81: 0
A82: 0 | B82: 1 | C82: 0 | D82: 0 | E82: 1 | F82: 1 | G82: 1 | H82: XB37 | I82: M | J82: 7 | N82: 18 | P82: Woda | T82: Woda | X82: 70 | Y82: 30 | AC82: 5 | AD82: 60 | AK82: 0 | AL82: XB37M-1-16 G 1 (20mm) | AM82: 1*7M/1*8M | AN82: A | AO82: PED Art 4.3 | AP82: 78,9 | AQ82: 0,78 | AR82: 2509,1/1402,5 | AS82: 16,37 | AT82: 2,44 | AU82: 3,37 | AV82: 1,77 | AW82: 0,94 | AX82: FALSE | AY82: 0 | AZ82: 0
A83: 0 | B83: 1 | C83: 0 | D83: 0 | E83: 1 | F83: 1 | G83: 1 | H83: XB37 | I83: M | J83: 7 | N83: 19 | P83: Woda | T83: Woda | X83: 70 | Y83: 30 | AC83: 5 | AD83: 60 | AK83: 0 | AL83: XB37M-1-16 G 1 (20mm) | AM83: 1*7M/1*8M | AN83: A | AO83: PED Art 4.3 | AP83: 76,2 | AQ83: 0,78 | AR83: 2607,8/1480,4 | AS83: 16,37 | AT83: 2,44 | AU83: 3,37 | AV83: 1,94 | AW83: 1,03 | AX83: FALSE | AY83: 0 | AZ83: 0
A84: 0 | B84: 1 | C84: 0 | D84: 0 | E84: 1 | F84: 1 | G84: 1 | H84: XB37 | I84: M | J84: 7 | N84: 20 | P84: Woda | T84: Woda | X84: 70 | Y84: 30 | AC84: 5 | AD84: 60 | AK84: 0 | AL84: XB37M-1-16 G 1 (20mm) | AM84: 1*7M/1*8M | AN84: A | AO84: PED Art 4.3 | AP84: 73,6 | AQ84: 0,78 | AR84: 2704,9/1558,3 | AS84: 16,37 | AT84: 2,44 | AU84: 3,37 | AV84: 2,11 | AW84: 1,12 | AX84: FALSE | AY84: 0 | AZ84: 0
A85: 0 | B85: 1 | C85: 0 | D85: 0 | E85: 1 | F85: 1 | G85: 1 | H85: XB37 | I85: M | J85: 7 | N85: 21 | P85: Woda | T85: Woda | X85: 70 | Y85: 30 | AC85: 5 | AD85: 60 | AK85: 0 | AL85: XB37M-1-16 G 1 (20mm) | AM85: 1*7M/1*8M | AN85: A | AO85: PED Art 4.3 | AP85: 71,2 | AQ85: 0,78 | AR85: 2800,6/1636,2 | AS85: 16,37 | AT85: 2,44 | AU85: 3,37 | AV85: 2,29 | AW85: 1,21 | AX85: FALSE | AY85: 0 | AZ85: 0
A86: 0 | B86: 1 | C86: 0 | D86: 0 | E86: 1 | F86: 1 | G86: 1 | H86: XB37 | I86: M | J86: 7 | N86: 22 | P86: Woda | T86: Woda | X86: 70 | Y86: 30 | AC86: 5 | AD86: 60 | AK86: 0 | AL86: XB37M-1-16 G 1 (20mm) | AM86: 1*7M/1*8M | AN86: A | AO86: PED Art 4.3 | AP86: 68,9 | AQ86: 0,78 | AR86: 2895,0/1714,1 | AS86: 16,37 | AT86: 2,44 | AU86: 3,37 | AV86: 2,47 | AW86: 1,31 | AX86: FALSE | AY86: 0 | AZ86: 0
A87: 0 | B87: 1 | C87: 0 | D87: 0 | E87: 1 | F87: 1 | G87: 1 | H87: XB37 | I87: M | J87: 7 | N87: 23 | P87: Woda | T87: Woda | X87: 70 | Y87: 30 | AC87: 5 | AD87: 60 | AK87: 0 | AL87: XB37M-1-16 G 1 (20mm) | AM87: 1*7M/1*8M | AN87: A | AO87: PED Art 4.3 | AP87: 66,7 | AQ87: 0,78 | AR87: 2988,1/1792,1 | AS87: 16,37 | AT87: 2,44 | AU87: 3,37 | AV87: 2,65 | AW87: 1,40 | AX87: FALSE | AY87: 0 | AZ87: 0
A88: 0 | B88: 1 | C88: 0 | D88: 0 | E88: 1 | F88: 1 | G88: 1 | H88: XB37 | I88: M | J88: 7 | N88: 24 | P88: Woda | T88: Woda | X88: 70 | Y88: 30 | AC88: 5 | AD88: 60 | AK88: 0 | AL88: XB37M-1-16 G 1 (20mm) | AM88: 1*7M/1*8M | AN88: A | AO88: PED Art 4.3 | AP88: 64,7 | AQ88: 0,78 | AR88: 3080,0/1870,0 | AS88: 16,37 | AT88: 2,44 | AU88: 3,37 | AV88: 2,98 | AW88: 1,51 | AX88: FALSE | AY88: 0 | AZ88: 0
A89: 0 | B89: 1 | C89: 0 | D89: 0 | E89: 1 | F89: 1 | G89: 1 | H89: XB37 | I89: M | J89: 7 | N89: 25 | P89: Woda | T89: Woda | X89: 70 | Y89: 30 | AC89: 5 | AD89: 60 | AK89: 0 | AL89: XB37M-1-16 G 1 (20mm) | AM89: 1*7M/1*8M | AN89: A | AO89: PED Art 4.3 | AP89: 62,8 | AQ89: 0,78 | AR89: 3170,7/1947,9 | AS89: 16,37 | AT89: 2,44 | AU89: 3,37 | AV89: 3,21 | AW89: 1,61 | AX89: FALSE | AY89: 0 | AZ89: 0
A90: 0 | B90: 1 | C90: 0 | D90: 0 | E90: 1 | F90: 1 | G90: 1 | H90: XB37 | I90: M | J90: 7 | N90: 26 | P90: Woda | T90: Woda | X90: 70 | Y90: 30 | AC90: 5 | AD90: 60 | AK90: 0 | AL90: XB37M-1-16 G 1 (20mm) | AM90: 1*7M/1*8M | AN90: A | AO90: PED Art 4.3 | AP90: 60,9 | AQ90: 0,78 | AR90: 3260,4/2025,8 | AS90: 16,37 | AT90: 2,44 | AU90: 3,37 | AV90: 3,45 | AW90: 1,72 | AX90: FALSE | AY90: 0 | AZ90: 0
A91: 0 | B91: 1 | C91: 0 | D91: 0 | E91: 1 | F91: 1 | G91: 1 | H91: XB37 | I91: M | J91: 7 | N91: 27 | P91: Woda | T91: Woda | X91: 70 | Y91: 30 | AC91: 5 | AD91: 60 | AK91: 0 | AL91: XB37M-1-16 G 1 (20mm) | AM91: 1*7M/1*8M | AN91: A | AO91: PED Art 4.3 | AP91: 59,2 | AQ91: 0,78 | AR91: 3349,1/2103,7 | AS91: 16,37 | AT91: 2,44 | AU91: 3,37 | AV91: 3,69 | AW91: 1,83 | AX91: FALSE | AY91: 0 | AZ91: 0
A92: 0 | B92: 1 | C92: 0 | D92: 0 | E92: 1 | F92: 1 | G92: 1 | H92: XB37 | I92: M | J92: 7 | N92: 28 | P92: Woda | T92: Woda | X92: 70 | Y92: 30 | AC92: 5 | AD92: 60 | AK92: 0 | AL92: XB37M-1-16 G 1 (20mm) | AM92: 1*7M/1*8M | AN92: A | AO92: PED Art 4.3 | AP92: 57,5 | AQ92: 0,78 | AR92: 3436,8/2181,6 | AS92: 16,37 | AT92: 2,44 | AU92: 3,37 | AV92: 3,95 | AW92: 1,94 | AX92: FALSE | AY92: 0 | AZ92: 0
A93: 0 | B93: 1 | C93: 0 | D93: 0 | E93: 1 | F93: 1 | G93: 1 | H93: XB37 | I93: M | J93: 7 | N93: 29 | P93: Woda | T93: Woda | X93: 70 | Y93: 30 | AC93: 5 | AD93: 60 | AK93: 0 | AL93: XB37M-1-16 G 1 (20mm) | AM93: 1*7M/1*8M | AN93: A | AO93: PED Art 4.3 | AP93: 55,9 | AQ93: 0,78 | AR93: 3523,6/2259,6 | AS93: 16,37 | AT93: 2,44 | AU93: 3,37 | AV93: 4,21 | AW93: 2,06 | AX93: FALSE | AY93: 0 | AZ93: 0
A94: 0 | B94: 1 | C94: 0 | D94: 0 | E94: 1 | F94: 1 | G94: 1 | H94: XB37 | I94: M | J94: 7 | N94: 30 | P94: Woda | T94: Woda | X94: 70 | Y94: 30 | AC94: 5 | AD94: 60 | AK94: 0 | AL94: XB37M-1-16 G 1 (20mm) | AM94: 1*7M/1*8M | AN94: A | AO94: PED Art 4.3 | AP94: 54,4 | AQ94: 0,78 | AR94: 3609,5/2337,5 | AS94: 16,37 | AT94: 2,44 | AU94: 3,37 | AV94: 4,48 | AW94: 2,18 | AX94: FALSE | AY94: 0 | AZ94: 0
A95: 0 | B95: 1 | C95: 0 | D95: 0 | E95: 1 | F95: 1 | G95: 1 | H95: XB37 | I95: M | J95: 7 | N95: 31 | P95: Woda | T95: Woda | X95: 70 | Y95: 30 | AC95: 5 | AD95: 60 | AK95: 0 | AL95: XB37M-1-16 G 1 (20mm) | AM95: 1*7M/1*8M | AN95: A | AO95: PED Art 4.3 | AP95: 53,0 | AQ95: 0,78 | AR95: 3694,5/2415,4 | AS95: 16,37 | AT95: 2,44 | AU95: 3,37 | AV95: 4,75 | AW95: 2,30 | AX95: FALSE | AY95: 0 | AZ95: 0
A96: 0 | B96: 1 | C96: 0 | D96: 0 | E96: 1 | F96: 1 | G96: 1 | H96: XB37 | I96: M | J96: 7 | N96: 32 | P96: Woda | T96: Woda | X96: 70 | Y96: 30 | AC96: 5 | AD96: 60 | AK96: 0 | AL96: XB37M-1-16 G 1 (20mm) | AM96: 1*7M/1*8M | AN96: A | AO96: PED Art 4.3 | AP96: 51,6 | AQ96: 0,78 | AR96: 3778,7/2493,3 | AS96: 16,37 | AT96: 2,44 | AU96: 3,37 | AV96: 5,04 | AW96: 2,42 | AX96: FALSE | AY96: 0 | AZ96: 0
A97: 0 | B97: 1 | C97: 0 | D97: 0 | E97: 1 | F97: 1 | G97: 1 | H97: XB37 | I97: M | J97: 7 | N97: 33 | P97: Woda | T97: Woda | X97: 70 | Y97: 30 | AC97: 5 | AD97: 60 | AK97: 0 | AL97: XB37M-1-16 G 1 (20mm) | AM97: 1*7M/1*8M | AN97: A | AO97: PED Art 4.3 | AP97: 50,2 | AQ97: 0,78 | AR97: 3862,1/2571,2 | AS97: 16,37 | AT97: 2,44 | AU97: 3,37 | AV97: 5,33 | AW97: 2,55 | AX97: FALSE | AY97: 0 | AZ97: 0
A98: 0 | B98: 1 | C98: 0 | D98: 0 | E98: 1 | F98: 1 | G98: 1 | H98: XB37 | I98: M | J98: 7 | N98: 34 | P98: Woda | T98: Woda | X98: 70 | Y98: 30 | AC98: 5 | AD98: 60 | AK98: 0 | AL98: XB37M-1-16 G 1 (20mm) | AM98: 1*7M/1*8M | AN98: A | AO98: PED Art 4.3 | AP98: 48,9 | AQ98: 0,78 | AR98: 3944,7/2649,1 | AS98: 16,37 | AT98: 2,44 | AU98: 3,37 | AV98: 5,63 | AW98: 2,68 | AX98: FALSE | AY98: 0 | AZ98: 0
A99: 0 | B99: 1 | C99: 0 | D99: 0 | E99: 1 | F99: 1 | G99: 1 | H99: XB37 | I99: M | J99: 7 | N99: 35 | P99: Woda | T99: Woda | X99: 70 | Y99: 30 | AC99: 5 | AD99: 60 | AK99: 0 | AL99: XB37M-1-16 G 1 (20mm) | AM99: 1*7M/1*8M | AN99: A | AO99: PED Art 4.3 | AP99: 47,7 | AQ99: 0,78 | AR99: 4026,6/2727,1 | AS99: 16,37 | AT99: 2,44 | AU99: 3,37 | AV99: 5,93 | AW99: 2,81 | AX99: FALSE | AY99: 0 | AZ99: 0
A100: 0 | B100: 1 | C100: 0 | D100: 0 | E100: 1 | F100: 1 | G100: 1 | H100: XB37 | I100: M | J100: 7 | N100: 36 | P100: Woda | T100: Woda | X100: 70 | Y100: 30 | AC100: 5 | AD100: 60 | AK100: 0 | AL100: XB37M-1-16 G 1 (20mm) | AM100: 1*7M/1*8M | AN100: A | AO100: PED Art 4.3 | AP100: 46,4 | AQ100: 0,78 | AR100: 4107,8/2805,0 | AS100: 16,37 | AT100: 2,44 | AU100: 3,37 | AV100: 6,24 | AW100: 2,94 | AX100: FALSE | AY100: 0 | AZ100: 0
A101: 0 | B101: 1 | C101: 0 | D101: 0 | E101: 1 | F101: 1 | G101: 1 | H101: XB37 | I101: M | J101: 7 | N101: 37 | P101: Woda | T101: Woda | X101: 70 | Y101: 30 | AC101: 5 | AD101: 60 | AK101: 0 | AL101: XB37M-1-16 G 1 (20mm) | AM101: 1*7M/1*8M | AN101: A | AO101: PED Art 4.3 | AP101: 45,3 | AQ101: 0,78 | AR101: 4188,3/2882,9 | AS101: 16,37 | AT101: 2,44 | AU101: 3,37 | AV101: 6,56 | AW101: 3,08 | AX101: FALSE | AY101: 0 | AZ101: 0
A102: 0 | B102: 1 | C102: 0 | D102: 0 | E102: 1 | F102: 1 | G102: 1 | H102: XB37 | I102: M | J102: 7 | N102: 38 | P102: Woda | T102: Woda | X102: 70 | Y102: 30 | AC102: 5 | AD102: 60 | AK102: 0 | AL102: XB37M-1-16 G 1 (20mm) | AM102: 1*7M/1*8M | AN102: A | AO102: PED Art 4.3 | AP102: 44,2 | AQ102: 0,78 | AR102: 4268,2/2960,8 | AS102: 16,37 | AT102: 2,44 | AU102: 3,37 | AV102: 6,89 | AW102: 3,22 | AX102: FALSE | AY102: 0 | AZ102: 0
A103: 0 | B103: 1 | C103: 0 | D103: 0 | E103: 1 | F103: 1 | G103: 1 | H103: XB37 | I103: M | J103: 7 | N103: 39 | P103: Woda | T103: Woda | X103: 70 | Y103: 30 | AC103: 5 | AD103: 60 | AK103: 0 | AL103: XB37M-1-16 G 1 (20mm) | AM103: 1*7M/1*8M | AN103: A | AO103: PED Art 4.3 | AP103: 43,1 | AQ103: 0,78 | AR103: 4347,4/3038,7 | AS103: 16,37 | AT103: 2,44 | AU103: 3,37 | AV103: 7,23 | AW103: 3,36 | AX103: FALSE | AY103: 0 | AZ103: 0
A104: 0 | B104: 1 | C104: 0 | D104: 0 | E104: 1 | F104: 1 | G104: 1 | H104: XB37 | I104: M | J104: 7 | N104: 40 | P104: Woda | T104: Woda | X104: 70 | Y104: 30 | AC104: 5 | AD104: 60 | AK104: 0 | AL104: XB37M-1-16 G 1 (20mm) | AM104: 1*7M/1*8M | AN104: A | AO104: PED Art 4.3 | AP104: 42,0 | AQ104: 0,78 | AR104: 4426,0/3116,6 | AS104: 16,37 | AT104: 2,44 | AU104: 3,37 | AV104: 7,57 | AW104: 3,50 | AX104: FALSE | AY104: 0 | AZ104: 0
A105: 0 | B105: 1 | C105: 0 | D105: 0 | E105: 1 | F105: 1 | G105: 1 | H105: XB37 | I105: M | J105: 7 | N105: 41 | P105: Woda | T105: Woda | X105: 70 | Y105: 30 | AC105: 5 | AD105: 60 | AK105: 0 | AL105: XB37M-1-16 G 1 (20mm) | AM105: 1*7M/1*8M | AN105: A | AO105: PED Art 4.3 | AP105: 41,0 | AQ105: 0,78 | AR105: 4504,0/3194,6 | AS105: 16,37 | AT105: 2,44 | AU105: 3,37 | AV105: 7,92 | AW105: 3,65 | AX105: FALSE | AY105: 0 | AZ105: 0
A106: 0 | B106: 1 | C106: 0 | D106: 0 | E106: 1 | F106: 1 | G106: 1 | H106: XB37 | I106: M | J106: 7 | N106: 42 | P106: Woda | T106: Woda | X106: 70 | Y106: 30 | AC106: 5 | AD106: 60 | AK106: 0 | AL106: XB37M-1-16 G 1 (20mm) | AM106: 1*7M/1*8M | AN106: A | AO106: PED Art 4.3 | AP106: 40,0 | AQ106: 0,78 | AR106: 4581,4/3272,5 | AS106: 16,37 | AT106: 2,44 | AU106: 3,37 | AV106: 8,27 | AW106: 3,79 | AX106: FALSE | AY106: 0 | AZ106: 0
A107: 0 | B107: 1 | C107: 0 | D107: 0 | E107: 1 | F107: 1 | G107: 1 | H107: XB37 | I107: M | J107: 7 | N107: 43 | P107: Woda | T107: Woda | X107: 70 | Y107: 30 | AC107: 5 | AD107: 60 | AK107: 0 | AL107: XB37M-1-16 G 1 (20mm) | AM107: 1*7M/1*8M | AN107: A | AO107: PED Art 4.3 | AP107: 39,0 | AQ107: 0,78 | AR107: 4658,2/3350,4 | AS107: 16,37 | AT107: 2,44 | AU107: 3,37 | AV107: 8,64 | AW107: 3,94 | AX107: FALSE | AY107: 0 | AZ107: 0
A108: 0 | B108: 1 | C108: 0 | D108: 0 | E108: 1 | F108: 1 | G108: 1 | H108: XB37 | I108: M | J108: 7 | N108: 44 | P108: Woda | T108: Woda | X108: 70 | Y108: 30 | AC108: 5 | AD108: 60 | AK108: 0 | AL108: XB37M-1-16 G 1 (20mm) | AM108: 1*7M/1*8M | AN108: A | AO108: PED Art 4.3 | AP108: 38,1 | AQ108: 0,78 | AR108: 4734,5/3428,3 | AS108: 16,37 | AT108: 2,44 | AU108: 3,37 | AV108: 9,01 | AW108: 4,10 | AX108: FALSE | AY108: 0 | AZ108: 0
A109: 0 | B109: 1 | C109: 0 | D109: 0 | E109: 1 | F109: 1 | G109: 1 | H109: XB37 | I109: M | J109: 7 | N109: 45 | P109: Woda | T109: Woda | X109: 70 | Y109: 30 | AC109: 5 | AD109: 60 | AK109: 0 | AL109: XB37M-1-16 G 1 (20mm) | AM109: 1*7M/1*8M | AN109: A | AO109: PED Art 4.3 | AP109: 37,2 | AQ109: 0,78 | AR109: 4810,3/3506,2 | AS109: 16,37 | AT109: 2,44 | AU109: 3,37 | AV109: 9,39 | AW109: 4,25 | AX109: FALSE | AY109: 0 | AZ109: 0
A110: 0 | B110: 1 | C110: 0 | D110: 0 | E110: 1 | F110: 1 | G110: 1 | H110: XB37 | I110: M | J110: 7 | N110: 46 | P110: Woda | T110: Woda | X110: 70 | Y110: 30 | AC110: 5 | AD110: 60 | AK110: 0 | AL110: XB37M-1-16 G 1 (20mm) | AM110: 1*7M/1*8M | AN110: A | AO110: PED Art 4.3 | AP110: 36,3 | AQ110: 0,78 | AR110: 4885,5/3584,1 | AS110: 16,37 | AT110: 2,44 | AU110: 3,37 | AV110: 9,77 | AW110: 4,41 | AX110: FALSE | AY110: 0 | AZ110: 0
A111: 0 | B111: 1 | C111: 0 | D111: 0 | E111: 1 | F111: 1 | G111: 1 | H111: XB37 | I111: M | J111: 7 | N111: 47 | P111: Woda | T111: Woda | X111: 70 | Y111: 30 | AC111: 5 | AD111: 60 | AK111: 0 | AL111: XB37M-1-16 G 1 (20mm) | AM111: 1*7M/1*8M | AN111: A | AO111: PED Art 4.3 | AP111: 35,5 | AQ111: 0,78 | AR111: 4960,3/3662,0 | AS111: 16,37 | AT111: 2,44 | AU111: 3,37 | AV111: 10,16 | AW111: 4,57 | AX111: FALSE | AY111: 0 | AZ111: 0
A112: 0 | B112: 1 | C112: 0 | D112: 0 | E112: 1 | F112: 1 | G112: 1 | H112: XB37 | I112: M | J112: 7 | N112: 48 | P112: Woda | T112: Woda | X112: 70 | Y112: 30 | AC112: 5 | AD112: 60 | AK112: 0 | AL112: XB37M-1-16 G 1 (20mm) | AM112: 1*7M/1*8M | AN112: A | AO112: PED Art 4.3 | AP112: 34,6 | AQ112: 0,78 | AR112: 5034,5/3740,0 | AS112: 16,37 | AT112: 2,44 | AU112: 3,37 | AV112: 10,56 | AW112: 4,73 | AX112: FALSE | AY112: 0 | AZ112: 0
A113: 0 | B113: 1 | C113: 0 | D113: 0 | E113: 1 | F113: 1 | G113: 1 | H113: XB37 | I113: M | J113: 7 | N113: 49 | P113: Woda | T113: Woda | X113: 70 | Y113: 30 | AC113: 5 | AD113: 60 | AK113: 0 | AL113: XB37M-1-16 G 1 (20mm) | AM113: 1*7M/1*8M | AN113: A | AO113: PED Art 4.3 | AP113: 33,8 | AQ113: 0,78 | AR113: 5108,3/3817,9 | AS113: 16,37 | AT113: 2,44 | AU113: 3,37 | AV113: 10,96 | AW113: 4,89 | AX113: FALSE | AY113: 0 | AZ113: 0
A114: 0 | B114: 1 | C114: 0 | D114: 0 | E114: 1 | F114: 1 | G114: 1 | H114: XB37 | I114: M | J114: 7 | N114: 50 | P114: Woda | T114: Woda | X114: 70 | Y114: 30 | AC114: 5 | AD114: 60 | AK114: 0 | AL114: XB37M-1-16 G 1 (20mm) | AM114: 1*7M/1*8M | AN114: A | AO114: PED Art 4.3 | AP114: 33,0 | AQ114: 0,78 | AR114: 5181,6/3895,8 | AS114: 16,37 | AT114: 2,44 | AU114: 3,37 | AV114: 11,38 | AW114: 5,06 | AX114: FALSE | AY114: 0 | AZ114: 0
A115: 0 | B115: 1 | C115: 0 | D115: 0 | E115: 1 | F115: 1 | G115: 1 | H115: XB37 | I115: M | J115: 7 | N115: 51 | P115: Woda | T115: Woda | X115: 70 | Y115: 30 | AC115: 5 | AD115: 60 | AK115: 0 | AL115: XB37M-1-16 G 1 (20mm) | AM115: 1*7M/1*8M | AN115: A | AO115: PED Art 4.3 | AP115: 32,2 | AQ115: 0,78 | AR115: 5254,4/3973,7 | AS115: 16,37 | AT115: 2,44 | AU115: 3,37 | AV115: 11,80 | AW115: 5,23 | AX115: FALSE | AY115: 0 | AZ115: 0
A116: 0 | B116: 1 | C116: 0 | D116: 0 | E116: 1 | F116: 1 | G116: 1 | H116: XB37 | I116: M | J116: 7 | N116: 52 | P116: Woda | T116: Woda | X116: 70 | Y116: 30 | AC116: 5 | AD116: 60 | AK116: 0 | AL116: XB37M-1-16 G 1 (20mm) | AM116: 1*7M/1*8M | AN116: A | AO116: PED Art 4.3 | AP116: 31,5 | AQ116: 0,78 | AR116: 5326,8/4051,6 | AS116: 16,37 | AT116: 2,44 | AU116: 3,37 | AV116: 12,22 | AW116: 5,40 | AX116: FALSE | AY116: 0 | AZ116: 0
A117: 0 | B117: 1 | C117: 0 | D117: 0 | E117: 1 | F117: 1 | G117: 1 | H117: XB37 | I117: M | J117: 7 | N117: 53 | P117: Woda | T117: Woda | X117: 70 | Y117: 30 | AC117: 5 | AD117: 60 | AK117: 0 | AL117: XB37M-1-16 G 1 (20mm) | AM117: 1*7M/1*8M | AN117: A | AO117: PED Art 4.3 | AP117: 30,7 | AQ117: 0,78 | AR117: 5398,8/4129,5 | AS117: 16,37 | AT117: 2,44 | AU117: 3,37 | AV117: 12,65 | AW117: 5,83 | AX117: FALSE | AY117: 0 | AZ117: 0
A118: 0 | B118: 1 | C118: 0 | D118: 0 | E118: 1 | F118: 1 | G118: 1 | H118: XB37 | I118: M | J118: 7 | N118: 54 | P118: Woda | T118: Woda | X118: 70 | Y118: 30 | AC118: 5 | AD118: 60 | AK118: 0 | AL118: XB37M-1-16 G 1 (20mm) | AM118: 1*7M/1*8M | AN118: A | AO118: PED Art 4.3 | AP118: 30,0 | AQ118: 0,78 | AR118: 5470,3/4207,5 | AS118: 16,37 | AT118: 2,44 | AU118: 3,37 | AV118: 13,09 | AW118: 6,04 | AX118: FALSE | AY118: 0 | AZ118: 0
A119: 0 | B119: 1 | C119: 0 | D119: 0 | E119: 1 | F119: 1 | G119: 1 | H119: XB37 | I119: M | J119: 7 | N119: 55 | P119: Woda | T119: Woda | X119: 70 | Y119: 30 | AC119: 5 | AD119: 60 | AK119: 0 | AL119: XB37M-1-16 G 1 (20mm) | AM119: 1*7M/1*8M | AN119: A | AO119: PED Art 4.3 | AP119: 29,3 | AQ119: 0,78 | AR119: 5541,5/4285,4 | AS119: 16,37 | AT119: 2,44 | AU119: 3,37 | AV119: 13,54 | AW119: 6,24 | AX119: FALSE | AY119: 0 | AZ119: 0
A120: 0 | B120: 1 | C120: 0 | D120: 0 | E120: 1 | F120: 1 | G120: 1 | H120: XB37 | I120: M | J120: 7 | N120: 56 | P120: Woda | T120: Woda | X120: 70 | Y120: 30 | AC120: 5 | AD120: 60 | AK120: 0 | AL120: XB37M-1-16 G 1 (20mm) | AM120: 1*7M/1*8M | AN120: A | AO120: PED Art 4.3 | AP120: 28,6 | AQ120: 0,78 | AR120: 5612,2/4363,3 | AS120: 16,37 | AT120: 2,44 | AU120: 3,37 | AV120: 13,99 | AW120: 6,45 | AX120: FALSE | AY120: 0 | AZ120: 0
A121: 0 | B121: 1 | C121: 0 | D121: 0 | E121: 1 | F121: 1 | G121: 1 | H121: XB37 | I121: M | J121: 7 | N121: 57 | P121: Woda | T121: Woda | X121: 70 | Y121: 30 | AC121: 5 | AD121: 60 | AK121: 0 | AL121: XB37M-1-16 G 1 (20mm) | AM121: 1*7M/1*8M | AN121: A | AO121: PED Art 4.3 | AP121: 28,0 | AQ121: 0,78 | AR121: 5682,5/4441,2 | AS121: 16,37 | AT121: 2,44 | AU121: 3,37 | AV121: 14,45 | AW121: 6,66 | AX121: FALSE | AY121: 0 | AZ121: 0
A122: 0 | B122: 1 | C122: 0 | D122: 0 | E122: 1 | F122: 1 | G122: 1 | H122: XB37 | I122: M | J122: 7 | N122: 58 | P122: Woda | T122: Woda | X122: 70 | Y122: 30 | AC122: 5 | AD122: 60 | AK122: 0 | AL122: XB37M-1-16 G 1 (20mm) | AM122: 1*7M/1*8M | AN122: A | AO122: PED Art 4.3 | AP122: 27,3 | AQ122: 0,78 | AR122: 5752,5/4519,1 | AS122: 16,37 | AT122: 2,44 | AU122: 3,37 | AV122: 14,92 | AW122: 6,88 | AX122: FALSE | AY122: 0 | AZ122: 0
A123: 0 | B123: 1 | C123: 0 | D123: 0 | E123: 1 | F123: 1 | G123: 1 | H123: XB37 | I123: M | J123: 7 | N123: 59 | P123: Woda | T123: Woda | X123: 70 | Y123: 30 | AC123: 5 | AD123: 60 | AK123: 0 | AL123: XB37M-1-16 G 1 (20mm) | AM123: 1*7M/1*8M | AN123: A | AO123: PED Art 4.3 | AP123: 26,6 | AQ123: 0,78 | AR123: 5822,0/4597,0 | AS123: 16,37 | AT123: 2,44 | AU123: 3,37 | AV123: 15,39 | AW123: 7,10 | AX123: FALSE | AY123: 0 | AZ123: 0
A124: 0 | B124: 1 | C124: 0 | D124: 0 | E124: 1 | F124: 1 | G124: 1 | H124: XB37 | I124: M | J124: 7 | N124: 60 | P124: Woda | T124: Woda | X124: 70 | Y124: 30 | AC124: 5 | AD124: 60 | AK124: 0 | AL124: XB37M-1-16 G 1 (20mm) | AM124: 1*7M/1*8M | AN124: A | AO124: PED Art 4.3 | AP124: 26,0 | AQ124: 0,78 | AR124: 5891,2/4675,0 | AS124: 16,37 | AT124: 2,44 | AU124: 3,37 | AV124: 15,87 | AW124: 7,32 | AX124: FALSE | AY124: 0 | AZ124: 0
A125: 0 | B125: 1 | C125: 0 | D125: 0 | E125: 1 | F125: 1 | G125: 1 | H125: XB37 | I125: M | J125: 7 | N125: 1 | P125: Woda | T125: Woda | X125: 70 | Y125: 25 | AC125: 5 | AD125: 60 | AK125: 0 | AL125: XB37M-1-16 G 1 (20mm) | AM125: 1*7M/1*8M | AN125: A | AO125: PED Art 4.3 | AP125: 245,3 | AQ125: 0,78 | AR125: 305,3/88,4 | AS125: 14,43 | AT125: 3,12 | AU125: 3,83 | AV125: 0,01 | AW125: 0,01 | AX125: FALSE | AY125: 0 | AZ125: 0
A126: 0 | B126: 1 | C126: 0 | D126: 0 | E126: 1 | F126: 1 | G126: 1 | H126: XB37 | I126: M | J126: 7 | N126: 2 | P126: Woda | T126: Woda | X126: 70 | Y126: 25 | AC126: 5 | AD126: 60 | AK126: 0 | AL126: XB37M-1-16 G 1 (20mm) | AM126: 1*7M/1*8M | AN126: A | AO126: PED Art 4.3 | AP126: 184,1 | AQ126: 0,78 | AR126: 502,4/176,8 | AS126: 14,43 | AT126: 3,12 | AU126: 3,83 | AV126: 0,04 | AW126: 0,03 | AX126: FALSE | AY126: 0 | AZ126: 0
A127: 0 | B127: 1 | C127: 0 | D127: 0 | E127: 1 | F127: 1 | G127: 1 | H127: XB37 | I127: M | J127: 7 | N127: 3 | P127: Woda | T127: Woda | X127: 70 | Y127: 25 | AC127: 5 | AD127: 60 | AK127: 0 | AL127: XB37M-1-16 G 1 (20mm) | AM127: 1*7M/1*8M | AN127: A | AO127: PED Art 4.3 | AP127: 153,6 | AQ127: 0,78 | AR127: 672,8/265,2 | AS127: 14,43 | AT127: 3,12 | AU127: 3,83 | AV127: 0,08 | AW127: 0,05 | AX127: FALSE | AY127: 0 | AZ127: 0
A128: 0 | B128: 1 | C128: 0 | D128: 0 | E128: 1 | F128: 1 | G128: 1 | H128: XB37 | I128: M | J128: 7 | N128: 4 | P128: Woda | T128: Woda | X128: 70 | Y128: 25 | AC128: 5 | AD128: 60 | AK128: 0 | AL128: XB37M-1-16 G 1 (20mm) | AM128: 1*7M/1*8M | AN128: A | AO128: PED Art 4.3 | AP128: 134,1 | AQ128: 0,78 | AR128: 827,8/353,6 | AS128: 14,43 | AT128: 3,12 | AU128: 3,83 | AV128: 0,12 | AW128: 0,08 | AX128: FALSE | AY128: 0 | AZ128: 0
A129: 0 | B129: 1 | C129: 0 | D129: 0 | E129: 1 | F129: 1 | G129: 1 | H129: XB37 | I129: M | J129: 7 | N129: 5 | P129: Woda | T129: Woda | X129: 70 | Y129: 25 | AC129: 5 | AD129: 60 | AK129: 0 | AL129: XB37M-1-16 G 1 (20mm) | AM129: 1*7M/1*8M | AN129: A | AO129: PED Art 4.3 | AP129: 120,0 | AQ129: 0,78 | AR129: 972,4/442,1 | AS129: 14,43 | AT129: 3,12 | AU129: 3,83 | AV129: 0,18 | AW129: 0,11 | AX129: FALSE | AY129: 0 | AZ129: 0
A130: 0 | B130: 1 | C130: 0 | D130: 0 | E130: 1 | F130: 1 | G130: 1 | H130: XB37 | I130: M | J130: 7 | N130: 6 | P130: Woda | T130: Woda | X130: 70 | Y130: 25 | AC130: 5 | AD130: 60 | AK130: 0 | AL130: XB37M-1-16 G 1 (20mm) | AM130: 1*7M/1*8M | AN130: A | AO130: PED Art 4.3 | AP130: 109,1 | AQ130: 0,78 | AR130: 1109,2/530,5 | AS130: 14,43 | AT130: 3,12 | AU130: 3,83 | AV130: 0,24 | AW130: 0,15 | AX130: FALSE | AY130: 0 | AZ130: 0
A131: 0 | B131: 1 | C131: 0 | D131: 0 | E131: 1 | F131: 1 | G131: 1 | H131: XB37 | I131: M | J131: 7 | N131: 7 | P131: Woda | T131: Woda | X131: 70 | Y131: 25 | AC131: 5 | AD131: 60 | AK131: 0 | AL131: XB37M-1-16 G 1 (20mm) | AM131: 1*7M/1*8M | AN131: A | AO131: PED Art 4.3 | AP131: 100,3 | AQ131: 0,78 | AR131: 1239,7/618,9 | AS131: 14,43 | AT131: 3,12 | AU131: 3,83 | AV131: 0,31 | AW131: 0,20 | AX131: FALSE | AY131: 0 | AZ131: 0
A132: 0 | B132: 1 | C132: 0 | D132: 0 | E132: 1 | F132: 1 | G132: 1 | H132: XB37 | I132: M | J132: 7 | N132: 8 | P132: Woda | T132: Woda | X132: 70 | Y132: 25 | AC132: 5 | AD132: 60 | AK132: 0 | AL132: XB37M-1-16 G 1 (20mm) | AM132: 1*7M/1*8M | AN132: A | AO132: PED Art 4.3 | AP132: 93,0 | AQ132: 0,78 | AR132: 1365,3/707,3 | AS132: 14,43 | AT132: 3,12 | AU132: 3,83 | AV132: 0,39 | AW132: 0,25 | AX132: FALSE | AY132: 0 | AZ132: 0
A133: 0 | B133: 1 | C133: 0 | D133: 0 | E133: 1 | F133: 1 | G133: 1 | H133: XB37 | I133: M | J133: 7 | N133: 9 | P133: Woda | T133: Woda | X133: 70 | Y133: 25 | AC133: 5 | AD133: 60 | AK133: 0 | AL133: XB37M-1-16 G 1 (20mm) | AM133: 1*7M/1*8M | AN133: A | AO133: PED Art 4.3 | AP133: 86,8 | AQ133: 0,78 | AR133: 1486,5/795,7 | AS133: 14,43 | AT133: 3,12 | AU133: 3,83 | AV133: 0,47 | AW133: 0,30 | AX133: FALSE | AY133: 0 | AZ133: 0
A134: 0 | B134: 1 | C134: 0 | D134: 0 | E134: 1 | F134: 1 | G134: 1 | H134: XB37 | I134: M | J134: 7 | N134: 10 | P134: Woda | T134: Woda | X134: 70 | Y134: 25 | AC134: 5 | AD134: 60 | AK134: 0 | AL134: XB37M-1-16 G 1 (20mm) | AM134: 1*7M/1*8M | AN134: A | AO134: PED Art 4.3 | AP134: 81,4 | AQ134: 0,78 | AR134: 1604,0/884,1 | AS134: 14,43 | AT134: 3,12 | AU134: 3,83 | AV134: 0,56 | AW134: 0,36 | AX134: =AND(N134=$AY$4,X134=$AZ$4,Y134=$BA$4) -> FALSE | AY134: =AX134*AV134 -> 0 | AZ134: =AX134*AW134 -> 0
A135: 0 | B135: 1 | C135: 0 | D135: 0 | E135: 1 | F135: 1 | G135: 1 | H135: XB37 | I135: M | J135: 7 | N135: 11 | P135: Woda | T135: Woda | X135: 70 | Y135: 25 | AC135: 5 | AD135: 60 | AK135: 0 | AL135: XB37M-1-16 G 1 (20mm) | AM135: 1*7M/1*8M | AN135: A | AO135: PED Art 4.3 | AP135: 76,7 | AQ135: 0,78 | AR135: 1718,4/972,5 | AS135: 14,43 | AT135: 3,12 | AU135: 3,83 | AV135: 0,66 | AW135: 0,42 | AX135: FALSE | AY135: 0 | AZ135: 0
A136: 0 | B136: 1 | C136: 0 | D136: 0 | E136: 1 | F136: 1 | G136: 1 | H136: XB37 | I136: M | J136: 7 | N136: 12 | P136: Woda | T136: Woda | X136: 70 | Y136: 25 | AC136: 5 | AD136: 60 | AK136: 0 | AL136: XB37M-1-16 G 1 (20mm) | AM136: 1*7M/1*8M | AN136: A | AO136: PED Art 4.3 | AP136: 72,5 | AQ136: 0,78 | AR136: 1829,9/1060,9 | AS136: 14,43 | AT136: 3,12 | AU136: 3,83 | AV136: 0,76 | AW136: 0,48 | AX136: FALSE | AY136: 0 | AZ136: 0
A137: 0 | B137: 1 | C137: 0 | D137: 0 | E137: 1 | F137: 1 | G137: 1 | H137: XB37 | I137: M | J137: 7 | N137: 13 | P137: Woda | T137: Woda | X137: 70 | Y137: 25 | AC137: 5 | AD137: 60 | AK137: 0 | AL137: XB37M-1-16 G 1 (20mm) | AM137: 1*7M/1*8M | AN137: A | AO137: PED Art 4.3 | AP137: 68,7 | AQ137: 0,78 | AR137: 1938,8/1149,4 | AS137: 14,43 | AT137: 3,12 | AU137: 3,83 | AV137: 0,87 | AW137: 0,55 | AX137: FALSE | AY137: 0 | AZ137: 0
A138: 0 | B138: 1 | C138: 0 | D138: 0 | E138: 1 | F138: 1 | G138: 1 | H138: XB37 | I138: M | J138: 7 | N138: 14 | P138: Woda | T138: Woda | X138: 70 | Y138: 25 | AC138: 5 | AD138: 60 | AK138: 0 | AL138: XB37M-1-16 G 1 (20mm) | AM138: 1*7M/1*8M | AN138: A | AO138: PED Art 4.3 | AP138: 65,2 | AQ138: 0,78 | AR138: 2045,4/1237,8 | AS138: 14,43 | AT138: 3,12 | AU138: 3,83 | AV138: 0,98 | AW138: 0,62 | AX138: FALSE | AY138: 0 | AZ138: 0
A139: 0 | B139: 1 | C139: 0 | D139: 0 | E139: 1 | F139: 1 | G139: 1 | H139: XB37 | I139: M | J139: 7 | N139: 15 | P139: Woda | T139: Woda | X139: 70 | Y139: 25 | AC139: 5 | AD139: 60 | AK139: 0 | AL139: XB37M-1-16 G 1 (20mm) | AM139: 1*7M/1*8M | AN139: A | AO139: PED Art 4.3 | AP139: 62,1 | AQ139: 0,78 | AR139: 2149,9/1326,2 | AS139: 14,43 | AT139: 3,12 | AU139: 3,83 | AV139: 1,10 | AW139: 0,69 | AX139: FALSE | AY139: 0 | AZ139: 0
A140: 0 | B140: 1 | C140: 0 | D140: 0 | E140: 1 | F140: 1 | G140: 1 | H140: XB37 | I140: M | J140: 7 | N140: 16 | P140: Woda | T140: Woda | X140: 70 | Y140: 25 | AC140: 5 | AD140: 60 | AK140: 0 | AL140: XB37M-1-16 G 1 (20mm) | AM140: 1*7M/1*8M | AN140: A | AO140: PED Art 4.3 | AP140: 59,2 | AQ140: 0,78 | AR140: 2252,5/1414,6 | AS140: 14,43 | AT140: 3,12 | AU140: 3,83 | AV140: 1,22 | AW140: 0,77 | AX140: FALSE | AY140: 0 | AZ140: 0
A141: 0 | B141: 1 | C141: 0 | D141: 0 | E141: 1 | F141: 1 | G141: 1 | H141: XB37 | I141: M | J141: 7 | N141: 17 | P141: Woda | T141: Woda | X141: 70 | Y141: 25 | AC141: 5 | AD141: 60 | AK141: 0 | AL141: XB37M-1-16 G 1 (20mm) | AM141: 1*7M/1*8M | AN141: A | AO141: PED Art 4.3 | AP141: 56,6 | AQ141: 0,78 | AR141: 2353,3/1503,0 | AS141: 14,43 | AT141: 3,12 | AU141: 3,83 | AV141: 1,35 | AW141: 0,85 | AX141: FALSE | AY141: 0 | AZ141: 0
A142: 0 | B142: 1 | C142: 0 | D142: 0 | E142: 1 | F142: 1 | G142: 1 | H142: XB37 | I142: M | J142: 7 | N142: 18 | P142: Woda | T142: Woda | X142: 70 | Y142: 25 | AC142: 5 | AD142: 60 | AK142: 0 | AL142: XB37M-1-16 G 1 (20mm) | AM142: 1*7M/1*8M | AN142: A | AO142: PED Art 4.3 | AP142: 54,1 | AQ142: 0,78 | AR142: 2452,4/1591,4 | AS142: 14,43 | AT142: 3,12 | AU142: 3,83 | AV142: 1,48 | AW142: 0,94 | AX142: FALSE | AY142: 0 | AZ142: 0
A143: 0 | B143: 1 | C143: 0 | D143: 0 | E143: 1 | F143: 1 | G143: 1 | H143: XB37 | I143: M | J143: 7 | N143: 19 | P143: Woda | T143: Woda | X143: 70 | Y143: 25 | AC143: 5 | AD143: 60 | AK143: 0 | AL143: XB37M-1-16 G 1 (20mm) | AM143: 1*7M/1*8M | AN143: A | AO143: PED Art 4.3 | AP143: 51,8 | AQ143: 0,78 | AR143: 2550,0/1679,8 | AS143: 14,43 | AT143: 3,12 | AU143: 3,83 | AV143: 1,62 | AW143: 1,03 | AX143: FALSE | AY143: 0 | AZ143: 0
A144: 0 | B144: 1 | C144: 0 | D144: 0 | E144: 1 | F144: 1 | G144: 1 | H144: XB37 | I144: M | J144: 7 | N144: 20 | P144: Woda | T144: Woda | X144: 70 | Y144: 25 | AC144: 5 | AD144: 60 | AK144: 0 | AL144: XB37M-1-16 G 1 (20mm) | AM144: 1*7M/1*8M | AN144: A | AO144: PED Art 4.3 | AP144: 49,7 | AQ144: 0,78 | AR144: 2646,2/1768,2 | AS144: 14,43 | AT144: 3,12 | AU144: 3,83 | AV144: 1,76 | AW144: 1,12 | AX144: FALSE | AY144: 0 | AZ144: 0
A145: 0 | B145: 1 | C145: 0 | D145: 0 | E145: 1 | F145: 1 | G145: 1 | H145: XB37 | I145: M | J145: 7 | N145: 21 | P145: Woda | T145: Woda | X145: 70 | Y145: 25 | AC145: 5 | AD145: 60 | AK145: 0 | AL145: XB37M-1-16 G 1 (20mm) | AM145: 1*7M/1*8M | AN145: A | AO145: PED Art 4.3 | AP145: 47,6 | AQ145: 0,78 | AR145: 2741,0/1856,6 | AS145: 14,43 | AT145: 3,12 | AU145: 3,83 | AV145: 1,91 | AW145: 1,21 | AX145: FALSE | AY145: 0 | AZ145: 0
A146: 0 | B146: 1 | C146: 0 | D146: 0 | E146: 1 | F146: 1 | G146: 1 | H146: XB37 | I146: M | J146: 7 | N146: 22 | P146: Woda | T146: Woda | X146: 70 | Y146: 25 | AC146: 5 | AD146: 60 | AK146: 0 | AL146: XB37M-1-16 G 1 (20mm) | AM146: 1*7M/1*8M | AN146: A | AO146: PED Art 4.3 | AP146: 45,7 | AQ146: 0,78 | AR146: 2834,6/1945,1 | AS146: 14,43 | AT146: 3,12 | AU146: 3,83 | AV146: 2,06 | AW146: 1,31 | AX146: FALSE | AY146: 0 | AZ146: 0
A147: 0 | B147: 1 | C147: 0 | D147: 0 | E147: 1 | F147: 1 | G147: 1 | H147: XB37 | I147: M | J147: 7 | N147: 23 | P147: Woda | T147: Woda | X147: 70 | Y147: 25 | AC147: 5 | AD147: 60 | AK147: 0 | AL147: XB37M-1-16 G 1 (20mm) | AM147: 1*7M/1*8M | AN147: A | AO147: PED Art 4.3 | AP147: 43,9 | AQ147: 0,78 | AR147: 2927,0/2033,5 | AS147: 14,43 | AT147: 3,12 | AU147: 3,83 | AV147: 2,22 | AW147: 1,40 | AX147: FALSE | AY147: 0 | AZ147: 0
A148: 0 | B148: 1 | C148: 0 | D148: 0 | E148: 1 | F148: 1 | G148: 1 | H148: XB37 | I148: M | J148: 7 | N148: 24 | P148: Woda | T148: Woda | X148: 70 | Y148: 25 | AC148: 5 | AD148: 60 | AK148: 0 | AL148: XB37M-1-16 G 1 (20mm) | AM148: 1*7M/1*8M | AN148: A | AO148: PED Art 4.3 | AP148: 42,2 | AQ148: 0,78 | AR148: 3018,2/2121,9 | AS148: 14,43 | AT148: 3,12 | AU148: 3,83 | AV148: 2,38 | AW148: 1,51 | AX148: FALSE | AY148: 0 | AZ148: 0
A149: 0 | B149: 1 | C149: 0 | D149: 0 | E149: 1 | F149: 1 | G149: 1 | H149: XB37 | I149: M | J149: 7 | N149: 25 | P149: Woda | T149: Woda | X149: 70 | Y149: 25 | AC149: 5 | AD149: 60 | AK149: 0 | AL149: XB37M-1-16 G 1 (20mm) | AM149: 1*7M/1*8M | AN149: A | AO149: PED Art 4.3 | AP149: 40,6 | AQ149: 0,78 | AR149: 3108,4/2210,3 | AS149: 14,43 | AT149: 3,12 | AU149: 3,83 | AV149: 2,54 | AW149: 1,61 | AX149: FALSE | AY149: 0 | AZ149: 0
A150: 0 | B150: 1 | C150: 0 | D150: 0 | E150: 1 | F150: 1 | G150: 1 | H150: XB37 | I150: M | J150: 7 | N150: 26 | P150: Woda | T150: Woda | X150: 70 | Y150: 25 | AC150: 5 | AD150: 60 | AK150: 0 | AL150: XB37M-1-16 G 1 (20mm) | AM150: 1*7M/1*8M | AN150: A | AO150: PED Art 4.3 | AP150: 39,1 | AQ150: 0,78 | AR150: 3197,5/2298,7 | AS150: 14,43 | AT150: 3,12 | AU150: 3,83 | AV150: 2,71 | AW150: 1,72 | AX150: FALSE | AY150: 0 | AZ150: 0
A151: 0 | B151: 1 | C151: 0 | D151: 0 | E151: 1 | F151: 1 | G151: 1 | H151: XB37 | I151: M | J151: 7 | N151: 27 | P151: Woda | T151: Woda | X151: 70 | Y151: 25 | AC151: 5 | AD151: 60 | AK151: 0 | AL151: XB37M-1-16 G 1 (20mm) | AM151: 1*7M/1*8M | AN151: A | AO151: PED Art 4.3 | AP151: 37,6 | AQ151: 0,78 | AR151: 3285,7/2387,1 | AS151: 14,43 | AT151: 3,12 | AU151: 3,83 | AV151: 2,89 | AW151: 1,83 | AX151: FALSE | AY151: 0 | AZ151: 0
A152: 0 | B152: 1 | C152: 0 | D152: 0 | E152: 1 | F152: 1 | G152: 1 | H152: XB37 | I152: M | J152: 7 | N152: 28 | P152: Woda | T152: Woda | X152: 70 | Y152: 25 | AC152: 5 | AD152: 60 | AK152: 0 | AL152: XB37M-1-16 G 1 (20mm) | AM152: 1*7M/1*8M | AN152: A | AO152: PED Art 4.3 | AP152: 36,3 | AQ152: 0,78 | AR152: 3373,0/2475,5 | AS152: 14,43 | AT152: 3,12 | AU152: 3,83 | AV152: 3,07 | AW152: 1,94 | AX152: FALSE | AY152: 0 | AZ152: 0
A153: 0 | B153: 1 | C153: 0 | D153: 0 | E153: 1 | F153: 1 | G153: 1 | H153: XB37 | I153: M | J153: 7 | N153: 29 | P153: Woda | T153: Woda | X153: 70 | Y153: 25 | AC153: 5 | AD153: 60 | AK153: 0 | AL153: XB37M-1-16 G 1 (20mm) | AM153: 1*7M/1*8M | AN153: A | AO153: PED Art 4.3 | AP153: 34,9 | AQ153: 0,78 | AR153: 3459,3/2563,9 | AS153: 14,43 | AT153: 3,12 | AU153: 3,83 | AV153: 3,41 | AW153: 2,06 | AX153: FALSE | AY153: 0 | AZ153: 0
A154: 0 | B154: 1 | C154: 0 | D154: 0 | E154: 1 | F154: 1 | G154: 1 | H154: XB37 | I154: M | J154: 7 | N154: 30 | P154: Woda | T154: Woda | X154: 70 | Y154: 25 | AC154: 5 | AD154: 60 | AK154: 0 | AL154: XB37M-1-16 G 1 (20mm) | AM154: 1*7M/1*8M | AN154: A | AO154: PED Art 4.3 | AP154: 33,6 | AQ154: 0,78 | AR154: 3544,9/2652,3 | AS154: 14,43 | AT154: 3,12 | AU154: 3,83 | AV154: 3,63 | AW154: 2,18 | AX154: FALSE | AY154: 0 | AZ154: 0
A155: 0 | B155: 1 | C155: 0 | D155: 0 | E155: 1 | F155: 1 | G155: 1 | H155: XB37 | I155: M | J155: 7 | N155: 31 | P155: Woda | T155: Woda | X155: 70 | Y155: 25 | AC155: 5 | AD155: 60 | AK155: 0 | AL155: XB37M-1-16 G 1 (20mm) | AM155: 1*7M/1*8M | AN155: A | AO155: PED Art 4.3 | AP155: 32,4 | AQ155: 0,78 | AR155: 3629,6/2740,8 | AS155: 14,43 | AT155: 3,12 | AU155: 3,83 | AV155: 3,86 | AW155: 2,30 | AX155: FALSE | AY155: 0 | AZ155: 0
A156: 0 | B156: 1 | C156: 0 | D156: 0 | E156: 1 | F156: 1 | G156: 1 | H156: XB37 | I156: M | J156: 7 | N156: 32 | P156: Woda | T156: Woda | X156: 70 | Y156: 25 | AC156: 5 | AD156: 60 | AK156: 0 | AL156: XB37M-1-16 G 1 (20mm) | AM156: 1*7M/1*8M | AN156: A | AO156: PED Art 4.3 | AP156: 31,3 | AQ156: 0,78 | AR156: 3713,5/2829,2 | AS156: 14,43 | AT156: 3,12 | AU156: 3,83 | AV156: 4,09 | AW156: 2,42 | AX156: FALSE | AY156: 0 | AZ156: 0
A157: 0 | B157: 1 | C157: 0 | D157: 0 | E157: 1 | F157: 1 | G157: 1 | H157: XB37 | I157: M | J157: 7 | N157: 33 | P157: Woda | T157: Woda | X157: 70 | Y157: 25 | AC157: 5 | AD157: 60 | AK157: 0 | AL157: XB37M-1-16 G 1 (20mm) | AM157: 1*7M/1*8M | AN157: A | AO157: PED Art 4.3 | AP157: 30,1 | AQ157: 0,78 | AR157: 3796,7/2917,6 | AS157: 14,43 | AT157: 3,12 | AU157: 3,83 | AV157: 4,32 | AW157: 2,55 | AX157: FALSE | AY157: 0 | AZ157: 0
A158: 0 | B158: 1 | C158: 0 | D158: 0 | E158: 1 | F158: 1 | G158: 1 | H158: XB37 | I158: M | J158: 7 | N158: 34 | P158: Woda | T158: Woda | X158: 70 | Y158: 25 | AC158: 5 | AD158: 60 | AK158: 0 | AL158: XB37M-1-16 G 1 (20mm) | AM158: 1*7M/1*8M | AN158: A | AO158: PED Art 4.3 | AP158: 29,0 | AQ158: 0,78 | AR158: 3879,1/3006,0 | AS158: 14,43 | AT158: 3,12 | AU158: 3,83 | AV158: 4,56 | AW158: 2,68 | AX158: FALSE | AY158: 0 | AZ158: 0
A159: 0 | B159: 1 | C159: 0 | D159: 0 | E159: 1 | F159: 1 | G159: 1 | H159: XB37 | I159: M | J159: 7 | N159: 35 | P159: Woda | T159: Woda | X159: 70 | Y159: 25 | AC159: 5 | AD159: 60 | AK159: 0 | AL159: XB37M-1-16 G 1 (20mm) | AM159: 1*7M/1*8M | AN159: A | AO159: PED Art 4.3 | AP159: 28,0 | AQ159: 0,78 | AR159: 3960,9/3094,4 | AS159: 14,43 | AT159: 3,12 | AU159: 3,83 | AV159: 4,81 | AW159: 2,81 | AX159: FALSE | AY159: 0 | AZ159: 0
A160: 0 | B160: 1 | C160: 0 | D160: 0 | E160: 1 | F160: 1 | G160: 1 | H160: XB37 | I160: M | J160: 7 | N160: 36 | P160: Woda | T160: Woda | X160: 70 | Y160: 25 | AC160: 5 | AD160: 60 | AK160: 0 | AL160: XB37M-1-16 G 1 (20mm) | AM160: 1*7M/1*8M | AN160: A | AO160: PED Art 4.3 | AP160: 27,0 | AQ160: 0,78 | AR160: 4042,0/3182,8 | AS160: 14,43 | AT160: 3,12 | AU160: 3,83 | AV160: 5,07 | AW160: 2,94 | AX160: FALSE | AY160: 0 | AZ160: 0
A161: 0 | B161: 1 | C161: 0 | D161: 0 | E161: 1 | F161: 1 | G161: 1 | H161: XB37 | I161: M | J161: 7 | N161: 37 | P161: Woda | T161: Woda | X161: 70 | Y161: 25 | AC161: 5 | AD161: 60 | AK161: 0 | AL161: XB37M-1-16 G 1 (20mm) | AM161: 1*7M/1*8M | AN161: A | AO161: PED Art 4.3 | AP161: 26,0 | AQ161: 0,78 | AR161: 4122,4/3271,2 | AS161: 14,43 | AT161: 3,12 | AU161: 3,83 | AV161: 5,33 | AW161: 3,08 | AX161: FALSE | AY161: 0 | AZ161: 0
A162: 0 | B162: 1 | C162: 0 | D162: 0 | E162: 1 | F162: 1 | G162: 1 | H162: XB37 | I162: M | J162: 7 | N162: 38 | P162: Woda | T162: Woda | X162: 70 | Y162: 25 | AC162: 5 | AD162: 60 | AK162: 0 | AL162: XB37M-1-16 G 1 (20mm) | AM162: 1*7M/1*8M | AN162: A | AO162: PED Art 4.3 | AP162: 25,1 | AQ162: 0,78 | AR162: 4202,2/3359,6 | AS162: 14,43 | AT162: 3,12 | AU162: 3,83 | AV162: 5,59 | AW162: 3,22 | AX162: FALSE | AY162: 0 | AZ162: 0
A163: 0 | B163: 1 | C163: 0 | D163: 0 | E163: 1 | F163: 1 | G163: 1 | H163: XB37 | I163: M | J163: 7 | N163: 39 | P163: Woda | T163: Woda | X163: 70 | Y163: 25 | AC163: 5 | AD163: 60 | AK163: 0 | AL163: XB37M-1-16 G 1 (20mm) | AM163: 1*7M/1*8M | AN163: A | AO163: PED Art 4.3 | AP163: 24,2 | AQ163: 0,78 | AR163: 4281,5/3448,1 | AS163: 14,43 | AT163: 3,12 | AU163: 3,83 | AV163: 5,86 | AW163: 3,36 | AX163: FALSE | AY163: 0 | AZ163: 0
A164: 0 | B164: 1 | C164: 0 | D164: 0 | E164: 1 | F164: 1 | G164: 1 | H164: XB37 | I164: M | J164: 7 | N164: 40 | P164: Woda | T164: Woda | X164: 70 | Y164: 25 | AC164: 5 | AD164: 60 | AK164: 0 | AL164: XB37M-1-16 G 1 (20mm) | AM164: 1*7M/1*8M | AN164: A | AO164: PED Art 4.3 | AP164: 23,3 | AQ164: 0,78 | AR164: 4360,1/3536,5 | AS164: 14,43 | AT164: 3,12 | AU164: 3,83 | AV164: 6,14 | AW164: 3,50 | AX164: FALSE | AY164: 0 | AZ164: 0
A165: 0 | B165: 1 | C165: 0 | D165: 0 | E165: 1 | F165: 1 | G165: 1 | H165: XB37 | I165: M | J165: 7 | N165: 41 | P165: Woda | T165: Woda | X165: 70 | Y165: 25 | AC165: 5 | AD165: 60 | AK165: 0 | AL165: XB37M-1-16 G 1 (20mm) | AM165: 1*7M/1*8M | AN165: A | AO165: PED Art 4.3 | AP165: 22,4 | AQ165: 0,78 | AR165: 4438,1/3624,9 | AS165: 14,43 | AT165: 3,12 | AU165: 3,83 | AV165: 6,43 | AW165: 3,65 | AX165: FALSE | AY165: 0 | AZ165: 0
A166: 0 | B166: 1 | C166: 0 | D166: 0 | E166: 1 | F166: 1 | G166: 1 | H166: XB37 | I166: M | J166: 7 | N166: 42 | P166: Woda | T166: Woda | X166: 70 | Y166: 25 | AC166: 5 | AD166: 60 | AK166: 0 | AL166: XB37M-1-16 G 1 (20mm) | AM166: 1*7M/1*8M | AN166: A | AO166: PED Art 4.3 | AP166: 21,6 | AQ166: 0,78 | AR166: 4515,6/3713,3 | AS166: 14,43 | AT166: 3,12 | AU166: 3,83 | AV166: 6,71 | AW166: 3,79 | AX166: FALSE | AY166: 0 | AZ166: 0
A167: 0 | B167: 1 | C167: 0 | D167: 0 | E167: 1 | F167: 1 | G167: 1 | H167: XB37 | I167: M | J167: 7 | N167: 43 | P167: Woda | T167: Woda | X167: 70 | Y167: 25 | AC167: 5 | AD167: 60 | AK167: 0 | AL167: XB37M-1-16 G 1 (20mm) | AM167: 1*7M/1*8M | AN167: A | AO167: PED Art 4.3 | AP167: 20,8 | AQ167: 0,78 | AR167: 4592,6/3801,7 | AS167: 14,43 | AT167: 3,12 | AU167: 3,83 | AV167: 7,01 | AW167: 3,94 | AX167: FALSE | AY167: 0 | AZ167: 0
A168: 0 | B168: 1 | C168: 0 | D168: 0 | E168: 1 | F168: 1 | G168: 1 | H168: XB37 | I168: M | J168: 7 | N168: 44 | P168: Woda | T168: Woda | X168: 70 | Y168: 25 | AC168: 5 | AD168: 60 | AK168: 0 | AL168: XB37M-1-16 G 1 (20mm) | AM168: 1*7M/1*8M | AN168: A | AO168: PED Art 4.3 | AP168: 20,0 | AQ168: 0,78 | AR168: 4669,1/3890,1 | AS168: 14,43 | AT168: 3,12 | AU168: 3,83 | AV168: 7,31 | AW168: 4,10 | AX168: FALSE | AY168: 0 | AZ168: 0
A169: 0 | B169: 1 | C169: 0 | D169: 0 | E169: 1 | F169: 1 | G169: 1 | H169: XB37 | I169: M | J169: 7 | N169: 45 | P169: Woda | T169: Woda | X169: 70 | Y169: 25 | AC169: 5 | AD169: 60 | AK169: 0 | AL169: XB37M-1-16 G 1 (20mm) | AM169: 1*7M/1*8M | AN169: A | AO169: PED Art 4.3 | AP169: 19,3 | AQ169: 0,78 | AR169: 4745,0/3978,5 | AS169: 14,43 | AT169: 3,12 | AU169: 3,83 | AV169: 7,62 | AW169: 4,25 | AX169: FALSE | AY169: 0 | AZ169: 0
A170: 0 | B170: 1 | C170: 0 | D170: 0 | E170: 1 | F170: 1 | G170: 1 | H170: XB37 | I170: M | J170: 7 | N170: 46 | P170: Woda | T170: Woda | X170: 70 | Y170: 25 | AC170: 5 | AD170: 60 | AK170: 0 | AL170: XB37M-1-16 G 1 (20mm) | AM170: 1*7M/1*8M | AN170: A | AO170: PED Art 4.3 | AP170: 18,5 | AQ170: 0,78 | AR170: 4820,5/4066,9 | AS170: 14,43 | AT170: 3,12 | AU170: 3,83 | AV170: 7,93 | AW170: 4,41 | AX170: FALSE | AY170: 0 | AZ170: 0
A171: 0 | B171: 1 | C171: 0 | D171: 0 | E171: 1 | F171: 1 | G171: 1 | H171: XB37 | I171: M | J171: 7 | N171: 47 | P171: Woda | T171: Woda | X171: 70 | Y171: 25 | AC171: 5 | AD171: 60 | AK171: 0 | AL171: XB37M-1-16 G 1 (20mm) | AM171: 1*7M/1*8M | AN171: A | AO171: PED Art 4.3 | AP171: 17,8 | AQ171: 0,78 | AR171: 4895,5/4155,3 | AS171: 14,43 | AT171: 3,12 | AU171: 3,83 | AV171: 8,25 | AW171: 4,57 | AX171: FALSE | AY171: 0 | AZ171: 0
A172: 0 | B172: 1 | C172: 0 | D172: 0 | E172: 1 | F172: 1 | G172: 1 | H172: XB37 | I172: M | J172: 7 | N172: 48 | P172: Woda | T172: Woda | X172: 70 | Y172: 25 | AC172: 5 | AD172: 60 | AK172: 0 | AL172: XB37M-1-16 G 1 (20mm) | AM172: 1*7M/1*8M | AN172: A | AO172: PED Art 4.3 | AP172: 17,1 | AQ172: 0,78 | AR172: 4970,0/4243,8 | AS172: 14,43 | AT172: 3,12 | AU172: 3,83 | AV172: 8,57 | AW172: 4,73 | AX172: FALSE | AY172: 0 | AZ172: 0
A173: 0 | B173: 1 | C173: 0 | D173: 0 | E173: 1 | F173: 1 | G173: 1 | H173: XB37 | I173: M | J173: 7 | N173: 49 | P173: Woda | T173: Woda | X173: 70 | Y173: 25 | AC173: 5 | AD173: 60 | AK173: 0 | AL173: XB37M-1-16 G 1 (20mm) | AM173: 1*7M/1*8M | AN173: A | AO173: PED Art 4.3 | AP173: 16,4 | AQ173: 0,78 | AR173: 5044,0/4332,2 | AS173: 14,43 | AT173: 3,12 | AU173: 3,83 | AV173: 8,90 | AW173: 4,89 | AX173: FALSE | AY173: 0 | AZ173: 0
A174: 0 | B174: 1 | C174: 0 | D174: 0 | E174: 1 | F174: 1 | G174: 1 | H174: XB37 | I174: M | J174: 7 | N174: 50 | P174: Woda | T174: Woda | X174: 70 | Y174: 25 | AC174: 5 | AD174: 60 | AK174: 0 | AL174: XB37M-1-16 G 1 (20mm) | AM174: 1*7M/1*8M | AN174: A | AO174: PED Art 4.3 | AP174: 15,8 | AQ174: 0,78 | AR174: 5117,6/4420,6 | AS174: 14,43 | AT174: 3,12 | AU174: 3,83 | AV174: 9,23 | AW174: 5,06 | AX174: FALSE | AY174: 0 | AZ174: 0
A175: 0 | B175: 1 | C175: 0 | D175: 0 | E175: 1 | F175: 1 | G175: 1 | H175: XB37 | I175: M | J175: 7 | N175: 51 | P175: Woda | T175: Woda | X175: 70 | Y175: 25 | AC175: 5 | AD175: 60 | AK175: 0 | AL175: XB37M-1-16 G 1 (20mm) | AM175: 1*7M/1*8M | AN175: A | AO175: PED Art 4.3 | AP175: 15,1 | AQ175: 0,78 | AR175: 5190,8/4509,0 | AS175: 14,43 | AT175: 3,12 | AU175: 3,83 | AV175: 9,57 | AW175: 5,23 | AX175: FALSE | AY175: 0 | AZ175: 0
A176: 0 | B176: 1 | C176: 0 | D176: 0 | E176: 1 | F176: 1 | G176: 1 | H176: XB37 | I176: M | J176: 7 | N176: 52 | P176: Woda | T176: Woda | X176: 70 | Y176: 25 | AC176: 5 | AD176: 60 | AK176: 0 | AL176: XB37M-1-16 G 1 (20mm) | AM176: 1*7M/1*8M | AN176: A | AO176: PED Art 4.3 | AP176: 14,5 | AQ176: 0,78 | AR176: 5263,6/4597,4 | AS176: 14,43 | AT176: 3,12 | AU176: 3,83 | AV176: 9,92 | AW176: 5,40 | AX176: FALSE | AY176: 0 | AZ176: 0
A177: 0 | B177: 1 | C177: 0 | D177: 0 | E177: 1 | F177: 1 | G177: 1 | H177: XB37 | I177: M | J177: 7 | N177: 53 | P177: Woda | T177: Woda | X177: 70 | Y177: 25 | AC177: 5 | AD177: 60 | AK177: 0 | AL177: XB37M-1-16 G 1 (20mm) | AM177: 1*7M/1*8M | AN177: A | AO177: PED Art 4.3 | AP177: 13,9 | AQ177: 0,78 | AR177: 5335,9/4685,8 | AS177: 14,43 | AT177: 3,12 | AU177: 3,83 | AV177: 10,27 | AW177: 5,83 | AX177: FALSE | AY177: 0 | AZ177: 0
A178: 0 | B178: 1 | C178: 0 | D178: 0 | E178: 1 | F178: 1 | G178: 1 | H178: XB37 | I178: M | J178: 7 | N178: 54 | P178: Woda | T178: Woda | X178: 70 | Y178: 25 | AC178: 5 | AD178: 60 | AK178: 0 | AL178: XB37M-1-16 G 1 (20mm) | AM178: 1*7M/1*8M | AN178: A | AO178: PED Art 4.3 | AP178: 13,3 | AQ178: 0,78 | AR178: 5407,9/4774,2 | AS178: 14,43 | AT178: 3,12 | AU178: 3,83 | AV178: 10,62 | AW178: 6,04 | AX178: FALSE | AY178: 0 | AZ178: 0
A179: 0 | B179: 1 | C179: 0 | D179: 0 | E179: 1 | F179: 1 | G179: 1 | H179: XB37 | I179: M | J179: 7 | N179: 55 | P179: Woda | T179: Woda | X179: 70 | Y179: 25 | AC179: 5 | AD179: 60 | AK179: 0 | AL179: XB37M-1-16 G 1 (20mm) | AM179: 1*7M/1*8M | AN179: A | AO179: PED Art 4.3 | AP179: 12,7 | AQ179: 0,78 | AR179: 5479,4/4862,6 | AS179: 14,43 | AT179: 3,12 | AU179: 3,83 | AV179: 10,99 | AW179: 6,24 | AX179: FALSE | AY179: 0 | AZ179: 0
A180: 0 | B180: 1 | C180: 0 | D180: 0 | E180: 1 | F180: 1 | G180: 1 | H180: XB37 | I180: M | J180: 7 | N180: 56 | P180: Woda | T180: Woda | X180: 70 | Y180: 25 | AC180: 5 | AD180: 60 | AK180: 0 | AL180: XB37M-1-16 G 1 (20mm) | AM180: 1*7M/1*8M | AN180: A | AO180: PED Art 4.3 | AP180: 12,1 | AQ180: 0,78 | AR180: 5550,6/4951,1 | AS180: 14,43 | AT180: 3,12 | AU180: 3,83 | AV180: 11,35 | AW180: 6,45 | AX180: FALSE | AY180: 0 | AZ180: 0
A181: 0 | B181: 1 | C181: 0 | D181: 0 | E181: 1 | F181: 1 | G181: 1 | H181: XB37 | I181: M | J181: 7 | N181: 57 | P181: Woda | T181: Woda | X181: 70 | Y181: 25 | AC181: 5 | AD181: 60 | AK181: 0 | AL181: XB37M-1-16 G 1 (20mm) | AM181: 1*7M/1*8M | AN181: A | AO181: PED Art 4.3 | AP181: 11,5 | AQ181: 0,78 | AR181: 5621,4/5039,5 | AS181: 14,43 | AT181: 3,12 | AU181: 3,83 | AV181: 11,73 | AW181: 6,66 | AX181: FALSE | AY181: 0 | AZ181: 0
A182: 0 | B182: 1 | C182: 0 | D182: 0 | E182: 1 | F182: 1 | G182: 1 | H182: XB37 | I182: M | J182: 7 | N182: 58 | P182: Woda | T182: Woda | X182: 70 | Y182: 25 | AC182: 5 | AD182: 60 | AK182: 0 | AL182: XB37M-1-16 G 1 (20mm) | AM182: 1*7M/1*8M | AN182: A | AO182: PED Art 4.3 | AP182: 11,0 | AQ182: 0,78 | AR182: 5691,8/5127,9 | AS182: 14,43 | AT182: 3,12 | AU182: 3,83 | AV182: 12,11 | AW182: 6,88 | AX182: FALSE | AY182: 0 | AZ182: 0
A183: 0 | B183: 1 | C183: 0 | D183: 0 | E183: 1 | F183: 1 | G183: 1 | H183: XB37 | I183: M | J183: 7 | N183: 59 | P183: Woda | T183: Woda | X183: 70 | Y183: 25 | AC183: 5 | AD183: 60 | AK183: 0 | AL183: XB37M-1-16 G 1 (20mm) | AM183: 1*7M/1*8M | AN183: A | AO183: PED Art 4.3 | AP183: 10,5 | AQ183: 0,78 | AR183: 5761,9/5216,3 | AS183: 14,43 | AT183: 3,12 | AU183: 3,83 | AV183: 12,49 | AW183: 7,10 | AX183: FALSE | AY183: 0 | AZ183: 0
A184: 0 | B184: 1 | C184: 0 | D184: 0 | E184: 1 | F184: 1 | G184: 1 | H184: XB37 | I184: M | J184: 7 | N184: 60 | P184: Woda | T184: Woda | X184: 70 | Y184: 25 | AC184: 5 | AD184: 60 | AK184: 0 | AL184: XB37M-1-16 G 1 (20mm) | AM184: 1*7M/1*8M | AN184: A | AO184: PED Art 4.3 | AP184: 9,9 | AQ184: 0,78 | AR184: 5831,6/5304,7 | AS184: 14,43 | AT184: 3,12 | AU184: 3,83 | AV184: 12,88 | AW184: 7,32 | AX184: FALSE | AY184: 0 | AZ184: 0
A185: 0 | B185: 1 | C185: 0 | D185: 0 | E185: 1 | F185: 1 | G185: 1 | H185: XB37 | I185: M | J185: 7 | N185: 1 | P185: Woda | T185: Woda | X185: 70 | Y185: 20 | AC185: 5 | AD185: 60 | AK185: 0 | AL185: XB37M-1-16 G 1 (20mm) | AM185: 1*7M/1*8M | AN185: A | AO185: PED Art 4.3 | AP185: 184,8 | AQ185: 0,78 | AR185: 294,5/103,4 | AS185: 12,33 | AT185: 4,06 | AU185: 4,48 | AV185: 0,01 | AW185: 0,01 | AX185: FALSE | AY185: 0 | AZ185: 0
A186: 0 | B186: 1 | C186: 0 | D186: 0 | E186: 1 | F186: 1 | G186: 1 | H186: XB37 | I186: M | J186: 7 | N186: 2 | P186: Woda | T186: Woda | X186: 70 | Y186: 20 | AC186: 5 | AD186: 60 | AK186: 0 | AL186: XB37M-1-16 G 1 (20mm) | AM186: 1*7M/1*8M | AN186: A | AO186: PED Art 4.3 | AP186: 135,2 | AQ186: 0,78 | AR186: 486,5/206,9 | AS186: 12,33 | AT186: 4,06 | AU186: 4,48 | AV186: 0,03 | AW186: 0,03 | AX186: FALSE | AY186: 0 | AZ186: 0
A187: 0 | B187: 1 | C187: 0 | D187: 0 | E187: 1 | F187: 1 | G187: 1 | H187: XB37 | I187: M | J187: 7 | N187: 3 | P187: Woda | T187: Woda | X187: 70 | Y187: 20 | AC187: 5 | AD187: 60 | AK187: 0 | AL187: XB37M-1-16 G 1 (20mm) | AM187: 1*7M/1*8M | AN187: A | AO187: PED Art 4.3 | AP187: 110,5 | AQ187: 0,78 | AR187: 653,2/310,3 | AS187: 12,33 | AT187: 4,06 | AU187: 4,48 | AV187: 0,07 | AW187: 0,05 | AX187: FALSE | AY187: 0 | AZ187: 0
A188: 0 | B188: 1 | C188: 0 | D188: 0 | E188: 1 | F188: 1 | G188: 1 | H188: XB37 | I188: M | J188: 7 | N188: 4 | P188: Woda | T188: Woda | X188: 70 | Y188: 20 | AC188: 5 | AD188: 60 | AK188: 0 | AL188: XB37M-1-16 G 1 (20mm) | AM188: 1*7M/1*8M | AN188: A | AO188: PED Art 4.3 | AP188: 94,6 | AQ188: 0,78 | AR188: 805,3/413,7 | AS188: 12,33 | AT188: 4,06 | AU188: 4,48 | AV188: 0,11 | AW188: 0,08 | AX188: FALSE | AY188: 0 | AZ188: 0
A189: 0 | B189: 1 | C189: 0 | D189: 0 | E189: 1 | F189: 1 | G189: 1 | H189: XB37 | I189: M | J189: 7 | N189: 5 | P189: Woda | T189: Woda | X189: 70 | Y189: 20 | AC189: 5 | AD189: 60 | AK189: 0 | AL189: XB37M-1-16 G 1 (20mm) | AM189: 1*7M/1*8M | AN189: A | AO189: PED Art 4.3 | AP189: 83,2 | AQ189: 0,78 | AR189: 947,5/517,2 | AS189: 12,33 | AT189: 4,06 | AU189: 4,48 | AV189: 0,15 | AW189: 0,11 | AX189: FALSE | AY189: 0 | AZ189: 0
A190: 0 | B190: 1 | C190: 0 | D190: 0 | E190: 1 | F190: 1 | G190: 1 | H190: XB37 | I190: M | J190: 7 | N190: 6 | P190: Woda | T190: Woda | X190: 70 | Y190: 20 | AC190: 5 | AD190: 60 | AK190: 0 | AL190: XB37M-1-16 G 1 (20mm) | AM190: 1*7M/1*8M | AN190: A | AO190: PED Art 4.3 | AP190: 74,4 | AQ190: 0,78 | AR190: 1082,4/620,6 | AS190: 12,33 | AT190: 4,06 | AU190: 4,48 | AV190: 0,21 | AW190: 0,15 | AX190: FALSE | AY190: 0 | AZ190: 0
A191: 0 | B191: 1 | C191: 0 | D191: 0 | E191: 1 | F191: 1 | G191: 1 | H191: XB37 | I191: M | J191: 7 | N191: 7 | P191: Woda | T191: Woda | X191: 70 | Y191: 20 | AC191: 5 | AD191: 60 | AK191: 0 | AL191: XB37M-1-16 G 1 (20mm) | AM191: 1*7M/1*8M | AN191: A | AO191: PED Art 4.3 | AP191: 67,3 | AQ191: 0,78 | AR191: 1211,4/724,0 | AS191: 12,33 | AT191: 4,06 | AU191: 4,48 | AV191: 0,27 | AW191: 0,20 | AX191: FALSE | AY191: 0 | AZ191: 0
A192: 0 | B192: 1 | C192: 0 | D192: 0 | E192: 1 | F192: 1 | G192: 1 | H192: XB37 | I192: M | J192: 7 | N192: 8 | P192: Woda | T192: Woda | X192: 70 | Y192: 20 | AC192: 5 | AD192: 60 | AK192: 0 | AL192: XB37M-1-16 G 1 (20mm) | AM192: 1*7M/1*8M | AN192: A | AO192: PED Art 4.3 | AP192: 61,4 | AQ192: 0,78 | AR192: 1335,6/827,5 | AS192: 12,33 | AT192: 4,06 | AU192: 4,48 | AV192: 0,33 | AW192: 0,25 | AX192: FALSE | AY192: 0 | AZ192: 0
A193: 0 | B193: 1 | C193: 0 | D193: 0 | E193: 1 | F193: 1 | G193: 1 | H193: XB37 | I193: M | J193: 7 | N193: 9 | P193: Woda | T193: Woda | X193: 70 | Y193: 20 | AC193: 5 | AD193: 60 | AK193: 0 | AL193: XB37M-1-16 G 1 (20mm) | AM193: 1*7M/1*8M | AN193: A | AO193: PED Art 4.3 | AP193: 56,4 | AQ193: 0,78 | AR193: 1455,7/930,9 | AS193: 12,33 | AT193: 4,06 | AU193: 4,48 | AV193: 0,40 | AW193: 0,30 | AX193: FALSE | AY193: 0 | AZ193: 0
A194: 0 | B194: 1 | C194: 0 | D194: 0 | E194: 1 | F194: 1 | G194: 1 | H194: XB37 | I194: M | J194: 7 | N194: 10 | P194: Woda | T194: Woda | X194: 70 | Y194: 20 | AC194: 5 | AD194: 60 | AK194: 0 | AL194: XB37M-1-16 G 1 (20mm) | AM194: 1*7M/1*8M | AN194: A | AO194: PED Art 4.3 | AP194: 52,0 | AQ194: 0,78 | AR194: 1572,3/1034,3 | AS194: 12,33 | AT194: 4,06 | AU194: 4,48 | AV194: 0,48 | AW194: 0,36 | AX194: FALSE | AY194: 0 | AZ194: 0
A195: 0 | B195: 1 | C195: 0 | D195: 0 | E195: 1 | F195: 1 | G195: 1 | H195: XB37 | I195: M | J195: 7 | N195: 11 | P195: Woda | T195: Woda | X195: 70 | Y195: 20 | AC195: 5 | AD195: 60 | AK195: 0 | AL195: XB37M-1-16 G 1 (20mm) | AM195: 1*7M/1*8M | AN195: A | AO195: PED Art 4.3 | AP195: 48,2 | AQ195: 0,78 | AR195: 1685,9/1137,8 | AS195: 12,33 | AT195: 4,06 | AU195: 4,48 | AV195: 0,56 | AW195: 0,42 | AX195: FALSE | AY195: 0 | AZ195: 0
A196: 0 | B196: 1 | C196: 0 | D196: 0 | E196: 1 | F196: 1 | G196: 1 | H196: XB37 | I196: M | J196: 7 | N196: 12 | P196: Woda | T196: Woda | X196: 70 | Y196: 20 | AC196: 5 | AD196: 60 | AK196: 0 | AL196: XB37M-1-16 G 1 (20mm) | AM196: 1*7M/1*8M | AN196: A | AO196: PED Art 4.3 | AP196: 44,8 | AQ196: 0,78 | AR196: 1796,8/1241,2 | AS196: 12,33 | AT196: 4,06 | AU196: 4,48 | AV196: 0,65 | AW196: 0,48 | AX196: FALSE | AY196: 0 | AZ196: 0
A197: 0 | B197: 1 | C197: 0 | D197: 0 | E197: 1 | F197: 1 | G197: 1 | H197: XB37 | I197: M | J197: 7 | N197: 13 | P197: Woda | T197: Woda | X197: 70 | Y197: 20 | AC197: 5 | AD197: 60 | AK197: 0 | AL197: XB37M-1-16 G 1 (20mm) | AM197: 1*7M/1*8M | AN197: A | AO197: PED Art 4.3 | AP197: 41,7 | AQ197: 0,78 | AR197: 1905,3/1344,7 | AS197: 12,33 | AT197: 4,06 | AU197: 4,48 | AV197: 0,74 | AW197: 0,55 | AX197: FALSE | AY197: 0 | AZ197: 0
A198: 0 | B198: 1 | C198: 0 | D198: 0 | E198: 1 | F198: 1 | G198: 1 | H198: XB37 | I198: M | J198: 7 | N198: 14 | P198: Woda | T198: Woda | X198: 70 | Y198: 20 | AC198: 5 | AD198: 60 | AK198: 0 | AL198: XB37M-1-16 G 1 (20mm) | AM198: 1*7M/1*8M | AN198: A | AO198: PED Art 4.3 | AP198: 38,9 | AQ198: 0,78 | AR198: 2011,6/1448,1 | AS198: 12,33 | AT198: 4,06 | AU198: 4,48 | AV198: 0,83 | AW198: 0,62 | AX198: =AND(N198=$AY$4,X198=$AZ$4,Y198=$BA$4) -> FALSE | AY198: =AX198*AV198 -> 0 | AZ198: =AX198*AW198 -> 0
A199: 0 | B199: 1 | C199: 0 | D199: 0 | E199: 1 | F199: 1 | G199: 1 | H199: XB37 | I199: M | J199: 7 | N199: 15 | P199: Woda | T199: Woda | X199: 70 | Y199: 20 | AC199: 5 | AD199: 60 | AK199: 0 | AL199: XB37M-1-16 G 1 (20mm) | AM199: 1*7M/1*8M | AN199: A | AO199: PED Art 4.3 | AP199: 36,4 | AQ199: 0,78 | AR199: 2115,9/1551,5 | AS199: 12,33 | AT199: 4,06 | AU199: 4,48 | AV199: 0,93 | AW199: 0,69 | AX199: FALSE | AY199: 0 | AZ199: 0
A200: 0 | B200: 1 | C200: 0 | D200: 0 | E200: 1 | F200: 1 | G200: 1 | H200: XB37 | I200: M | J200: 7 | N200: 16 | P200: Woda | T200: Woda | X200: 70 | Y200: 20 | AC200: 5 | AD200: 60 | AK200: 0 | AL200: XB37M-1-16 G 1 (20mm) | AM200: 1*7M/1*8M | AN200: A | AO200: PED Art 4.3 | AP200: 34,0 | AQ200: 0,78 | AR200: 2218,4/1655,0 | AS200: 12,33 | AT200: 4,06 | AU200: 4,48 | AV200: 1,04 | AW200: 0,77 | AX200: FALSE | AY200: 0 | AZ200: 0
... 284 more rows

Sheet Arkusz3 (hidden)
B2: izolacja budynku | D2: temp siec zima | F2: temp instal | H2: temp siec lato | J2: temp siec lato powrot
B3: TAK | D3: 130 | F3: 90 | H3: 70 | J3: 35
B4: NIE | D4: 125 | F4: 85 | H4: 65 | J4: 30
D5: 120 | F5: 80 | J5: 25
D6: 115 | F6: 75 | J6: 20
D7: 110 | F7: 70
D8: 105
D9: 100
C15: co | D15: ='Dane wejściowe'!C18 -> 0 | E15: ='Dane wejściowe'!C26 -> 0 | G15: =ROUND(MAX(D15,E15),2) -> 0
C16: cwu | D16: ='Dane wejściowe'!C19 -> 0 | E16: ='Dane wejściowe'!C29 -> 0 | G16: =ROUND(MAX(D16,E16),2) -> 0
D20: =IF('Dane wejściowe'!C25="tak",'Dane wejściowe'!C23*'Dane wejściowe'!C24*40,'Dane wejściowe'!C23*'Dane wejściowe'!C24*60)/1000 -> 0
D21: =IF('Dane wejściowe'!C28>0,('Dane wejściowe'!C28*90/1000)/'Wymienniki CWU'!BF25/3600*994.98*4.178*('Dane wejściowe'!C15-'Dane wejściowe'!C16)*(9.32*'Dane wejściowe'!C28^-0.244),0) -> 0
G23: =SUM(G24:G26) -> 
D24: =(B25-18) ->  | E24: 8 | G24: =IF(AND($D$24>0,$D$24<=8),E24) -> 
B25: ='Projekt węzła'!E570 ->  | E25: 12 | G25: =IF(AND($D$24>8,$D$24<=12),E25) -> 
E26: 18 | G26: =IF(AND($D$24>12,$D$24<=18),E26) -> 

Sheet PN-C.O. (hidden)
B2: Dobór zaworu bezpieczeństwa dla obiegu c.o.
B4: Obliczenia przeprowadzono zgodnie z p. 2.2.2. normy PN-B-02414:1999
B6: Dobrano zawór bezpieczeństwa:
B7: Typ | H7: =VLOOKUP(L17,ZB!A19:C122,3,FALSE) -> 1915 | J7: 1 | M7: =IF(H7="niestandardowe p1","dla zaworów Flamco dostępne tylko ciśnienia nastawy zaworu 2,5 i 3 bar"," ") -> 
B8: Średnica nominalna | H8: =CONCATENATE("DN ",H17) -> DN 25 | I8: mm | M8: =IF(H7="niestandardowe p1","dla zaworów ARMAK dostępne tylko ciśnienia nastawy zaworu 2,5-5 bar"," ") -> 
B9: Ilość zaworów | H9: =IF(54*SQRT((D34/(H22*SQRT(H18*H21))))/H10<=1,1,(IF(54*SQRT((D34/2/(H22*SQRT(H18*H21))))/H10<=1,2,(IF(54*SQRT((D34/3/(H22*SQRT(H18*H21))))/H10<=1,3,"n > 3"))))) ->  | I9: szt. | M9: =IF(H9="n > 3","liczba zaworów wieksza niż 3, zwiększ średnicę zaworu"," ") -> 
B10: Min. średnica wewnętrzna | G10: d0 | H10: =VLOOKUP(L17,ZB!A19:E122,5,FALSE) -> 20 | I10: mm
B11: Ciśnienie początku otwarcia | G11: p0 | H11: =H18 -> 2.5 | I11: bar
B12: Wsp. wypływu dla cieczy | G12: acrz | H12: =VLOOKUP(L17,ZB!A19:G122,7,FALSE) -> 0.41
B13: Producent | H13: =H16 -> HUSTY SYR
B15: Założenia: | N15: UWAGA !
B16: Producent | H16: =INDEX(ZB!E2:E4,K16) -> HUSTY SYR | K16: 1 | N16: Dla zaworów SYR i FLAMCO dostepne średnice 25, 32, 40, 50 mm
B17: Wstępnie zakładana średnica zaworu bezpieczeństwa | H17: =INDEX(ZB!D79:D87,K17) -> 25 | I17: mm | K17: 1 | L17: =CONCATENATE(H16," dn",H17," ",H18,"bar") -> HUSTY SYR dn25 2,5bar | N17: Dla zaworów ARMAK dostępne średnica 20x32, 25x40, 32x50, 40x65, 50x80 mm
B18: Ciśnienie nastawy zaworu bezpieczeństwa | G18: p1 | H18: ='Projekt węzła'!I294 -> 2.5 | I18: bar | K18: 6
B19: Ciśnienie nominalne sieci ciepłowniczej | G19: p2 | H19: 16 | I19: bar
B20: Obliczeniowa temperatura wody sieciowej | H20: ='Projekt węzła'!I270 -> 0 | I20: 0C | K20: 16
B21: Gęstość wody sieciowej przy jej obliczeniowej temp. | G21: r | H21: =VLOOKUP(H20,HEX!A230:B247,2,FALSE) ->  | I21: kg/m3
B22: Dopuszczalny wsp. wypływu zaworu dla cieczy | G22: ac=0,9*acrz | H22: =PRODUCT(0.9*H12) -> 0.369
B25: Wymagana masowa przepustowość zaworu bezpieczeństwa [kg/s]
C28: b = 1 | D28: gdy p2 - p1 ≤ 5 bar
C29: b = 2 | D29: gdy p2 - p1 > 5 bar
C31: p2 - p1 = | D31: =CONCATENATE(L31," bar") -> 13,5 bar | E31: b = | F31: =IF(L31>5,2,1) -> 2 | L31: =H19-H18 -> 13.5
C33: A = | D33: =VLOOKUP(H33,HEX!A3:C109,3,FALSE) -> 1.6e-05 | E33: wg. karty katalogowej | H33: XB37L | K33: 26
C34: M = | D34: =447.3*F31*D33*SQRT((L31*H21)) ->  | E34: kg/s
B35: Minimalna średnica wewnętrzna pojedynczego zaworu bezpieczeństwa:
F38: =54*SQRT((D34/H9/(H22*SQRT(H18*H21)))) ->  | G38: mm < do = | H38: =H10 -> 20 | I38: mm
B41: Warunek: do > domin jest spełniony.
B43: Dobrany zawór bezpieczeństwa spełnia wymagania normy PN-B-02414
A46: Danfoss Poland Sp. z o.o. Tuchom ul. Tęczowa 46 80-209 Chwaszczyno tel. 58/ 512 91 00 fax. 58/ 512 91 05

Sheet PN-NWP (hidden)
A2: Dobór przeponowego naczynia wzbiorczego
A4: Obliczenia przeprowadzono zgodnie z normą PN-B-02414:1999
B6: Dobrano naczynie wzbiorcze:
B7: Typ | H7: =VLOOKUP(K7,NWP!A27:D110,3,FALSE) ->  | J7: 1 | K7: =CONCATENATE(H18,H9) -> 
B8: Ilość naczyń | H8: =N8 -> 1 | I8: szt. | N8: 1
B9: Pojemność naczynia | H9: =IF(H18="REFLEX",NWP!O28,IF(H18="FLAMCO typ C",NWP!O44,IF(H18="FLAMCO typ K",NWP!O58,IF(H18="CIMM",NWP!O66,IF(H18="VAREM",NWP!O87,NWP!O95))))) ->  | I9: l
B10: Wysokość | H10: =VLOOKUP(K7,NWP!A28:E110,5,FALSE) ->  | I10: mm
B11: Średnica | H11: =VLOOKUP(K7,NWP!A28:F110,6,FALSE) ->  | I11: mm
B12: Średnica przyłącza | H12: =VLOOKUP(K7,NWP!A28:H110,8,FALSE) ->  | I12: mm
B13: Ciśnienie wstepne | H13: =E35 -> 0.2 | I13: bar
B14: Producent | H14: =VLOOKUP(K7,NWP!A28:B110,2,FALSE) -> 
B17: Założenia:
B18: Producent | H18: FERRO | M18: 1
B19: Pojemność instalacji | G19: V | H19: ='Projekt węzła'!I300 -> 0 | I19: m3
B20: Maksymalne obliczeniowe ciśnienie w naczyniu | G20: pmax | H20: ='Projekt węzła'!I294 -> 2.5 | I20: bar
B21: Ciśnienie statyczne w naczyniu | G21: pst | H21: ='Projekt węzła'!I298 -> 0 | I21: bar
B22: Obliczeniowa temperatura na zasilaniu instalacji | G22: tz | H22: ='Projekt węzła'!I280 -> 0 | I22: oC | M22: 5
B23: Przyrost objętości wody instalacyjnej | G23: Dn | H23: =VLOOKUP(H22,NWP!G6:J17,4,FALSE) ->  | I23: l/kg
B24: Gęstość wody instalacyjnej przy temp. T1=10oC | G24: r1 | H24: 999.7 | I24: kg/m3
B25: Ilość naczyń | G25: n | H25: =H8 -> 1
B27: Pojemność użytkowa naczynia Vu:
D29: Vu = V x r1 x Dn / n
D31: Vu = | E31: =H19*H24*H23/H8 ->  | F31: dm3
B33: Ciśnienie wstępne w przestrzeni gazowej
D35: p= | E35: =H21+0.2 -> 0.2 | F35: bar
B37: Minimalna pojemność całkowita naczynia
D43: Vn= | E43: =E31*(H20+1)/(H20-E35) ->  | F43: dm3
A55: Danfoss Poland Sp. z o.o. Tuchom ul. Tęczowa 46 80-209 Chwaszczyno tel. 58/ 512 91 00 fax. 58/ 512 91 05

Sheet PN-C.W.U. (hidden)
B2: Dobór zaworu bezpieczeństwa dla obiegu c.w.u
B4: Obliczenia przeprowadzono zgodnie z p.. 3.2.5.2. normy PN-76/B-02440
B6: Dobrano zawór bezpieczeństwa:
B7: Typ | H7: =VLOOKUP(M18,ZB!A135:C190,3,FALSE) -> 2115 | J7: 1
B8: Średnica nominalna | H8: =CONCATENATE("DN ",H19) -> DN 20 | I8: mm
B9: Ilość zaworów | H9: =IF(SQRT(((4*D36)/(3.14*1.59*H13*SQRT((1.1*H20-H21)/0.98*H24))))/H10<=1,1,(IF(SQRT(((4*D36/2)/(3.14*1.59*H13*SQRT((1.1*H20-H21)/0.98*H24))))/H10<=1,2,(IF(SQRT(((4*D36/3)/(3.14*1.59*H13*SQRT((1.1*H20-H21)/0.98*H24))))/H10<=1,3,"n > 3"))))) -> 1 | I9: szt. | N9: =IF(H9="n > 3","liczba zaworów wieksza niż 3, zwiększ średnicę zaworu"," ") -> 
B10: Min. średnica wewnętrzna | G10: d0 | H10: =VLOOKUP(M18,ZB!A135:E190,5,FALSE) -> 14 | I10: mm
B11: Ciśnienie początku otwarcia | G11: p0 | H11: =H20 -> 6 | I11: bar
B12: Wsp. wypływu dla gazu dla dobranych zaworów | G12: a | H12: =VLOOKUP(M18,ZB!A135:G190,7,FALSE) -> 0.55
B13: ac dla dobranego zaworu | G13: ac=0,35*a | H13: =0.35*H12 -> 0.1925
B14: Wsp. wypływu wody grzejnej | G14: ac1 | H14: 1
B15: Producent | H15: =H18 -> HUSTY SYR
B17: Założenia: | O17: UWAGA !
B18: Producent | H18: =INDEX(ZB!F2:F3,K18) -> HUSTY SYR | K18: 1 | M18: =CONCATENATE(H18," dn",H19," ",H20,"bar") -> HUSTY SYR dn20 6bar | O18: Dla zaworów SYR dostepne średnice 20, 25, 32, 40, 50 mm
B19: Wstępnie zakładana średnica zaworu bezpieczeństwa | H19: 20 | I19: mm | K19: 2 | O19: Dla zaworów ARMAK dostępne średnica 20x32, 25x40, 32x50, mm
B20: Ciśnienie dopuszczalne instalacji cwu | G20: p1 | H20: 6 | I20: bar | K20: 4
B21: Ciśnienie na wylocie zaworu bezpieczeństwa | G21: p2 | H21: 0 | I21: bar
B22: Ciśnienie czynnika grzejnego | G22: p3 | H22: 16 | I22: bar
B23: Najniższa temperatura wody grzejnej na zasilaniu | G23: T1 | H23: ='Projekt węzła'!I273 -> 0 | I23: 0C | K23: 4
B24: Ciężar objętościowy wody przy jej obliczeniowej temperaturze | G24: g1 | H24: =INDEX(HEX!B228:B247,K23) -> 977.81 | I24: kg/m3
B26: Wymagana przepustowość zaworu bezp.
C29: b = 1 | D29: gdy p3 - p1 ≤ 5 kG/cm2 | O29: 1 kG/cm2 = 0,98 bar
C30: b = 2 | D30: gdy p3 - p1 > 5 kG/cm2
C32: p3 - p1 = | D32: =CONCATENATE(L32," bar") -> 10 bar | E32: b = | F32: =IF(L32>4.9,2,1) -> 2 | L32: =H22-H20 -> 10
C34: F = | D34: =VLOOKUP(H34,HEX!A3:B109,2,FALSE) -> 11 | E34: wg. karty katalogowej | H34: XB37M | K34: 13
C36: G = | D36: =1.59*H14*F32*D34*SQRT(L32/0.98*H24) -> 3494.089334 | E36: kg/h
B38: Min. średnica wewn. dla pojedynczego zaworu bezp :
F40: =SQRT(((4*D36/H9)/(3.14*1.59*H13*SQRT((1.1*H20-H21)/0.98*H24)))) -> 13.38675026 | G40: mm < do = | H40: =H10 -> 14 | I40: mm
B43: Warunek: do > domin jest spełniony.
B45: Dobrany zawór bezpieczeństwa spełnia wymagania normy PN-76/B-02440
A46: Danfoss Poland Sp. z o.o. Tuchom ul. Tęczowa 46 80-209 Chwaszczyno tel. 58/ 512 91 00 fax. 58/ 512 91 05

Sheet Wymienniki CO (hidden)
A1: Data | B1: 2017-09-09T10:13:13
A2: aplikacja | B2: X Danfoss-XB | AY2: spadek po wys | AZ2: spadek po nis
A3: Tryb | B3: Sprawdzenie | AY3: =SUM(AY5:AY1054) -> 0 | AZ3: =SUM(AZ5:AZ1054) -> 0 | BA3: temp zas siec | BB3: temp zas co
A4: isROT | B4: Standardowy | C4: Dozw. komb. płyt M Mieszanie płyt | D4: Współprądowy | E4: Równoległy | F4: J.m. | G4: Ilość stopni | H4: Wymiennik ciepła | I4: Typ płyty | J4: Ilość kanałów kanału nr 1 Strona1 | K4: Ilość kanałów kanału nr 1 Strona2 | L4: Ilość kanałów kanału nr 2 Strona1 | M4: Ilość kanałów kanału nr 2 Strona2 | N4: Moc [kW] | O4: Zapas powierzchni [%] | P4: Czynnik Strona 1 | Q4: Gaz1 | R4: Stężenie1 [%] | S4: Abs. Pressure1 [bar] | T4: Czynnik Strona 2 | U4: Gaz2 | V4: Stężenie2 [%] | W4: Abs. Pressure2 [bar] | X4: Temperatura na wlocie1 [°C] | Y4: Temperatura na wylocie1 [°C] | Z4: Masowe Natężenie przepływu1 [kg/h] | AA4: Objętościowe Natężenie przepływu1 [L/min] | AB4: Maks. spadek ciśnienia1 [kPa] | AC4: Temperatura na wlocie2 [°C] | AD4: Temperatura na wylocie2 [°C] | AE4: Masowe Natężenie przepływu2 [kg/h] | AF4: Objętościowe Natężenie przepływu2 [L/min] | AG4: Maks. spadek ciśnienia2 [kPa] | AH4: Masowe Natężenie przepływu Szer.-Równ. [kg/h] | AI4: Objętościowe Natężenie przepływu Szer.-Równ. [L/min] | AJ4: Maks. spadek ciśnienia Szer.-Równ. [kPa] | AK4: FrameExtension(%) | AL4: Wymiennik ciepła | AM4: Grupowanie | AN4: Termin dostawy | AO4: PED | AP4: Zapas powierzchni [%] | AQ4: Całkowita pow. [m^2] | AR4: HTC(Dostępny / Wymagany) [W/m^2-K] | AS4: LMTD [K] | AT4: NTU-1 | AU4: NTU-2 | AV4: Całkowity spadek ciśnienia-1 [kPa] | AW4: Całkowity spadek ciśnienia-2 [kPa] | AZ4: =ROUNDUP(Arkusz3!G15,0) -> 0 | BA4: ='Dane wejściowe'!C5 -> 0 | BB4: ='Dane wejściowe'!C7 -> 0
A5: 0 | B5: 0 | C5: 0 | D5: 0 | E5: 1 | F5: 1 | G5: 1 | H5: XB37 | I5: L | J5: 4 | K5: 5 | N5: 1 | P5: Woda | T5: Woda | X5: 130 | Y5: 75 | AC5: 70 | AD5: 90 | AK5: 0 | AL5: XB37L-1-10 G 1 (20mm) | AM5: 1*4L/1*5L | AN5: B | AO5: PED Art 4.3 | AP5: 356,5 | AQ5: 0,45 | AR5: 605,3/132,6 | AS5: 16,83 | AT5: 3,28 | AU5: 1,19 | AV5: 0,00 | AW5: 0,02 | AX5: =AND(N5=$AZ$4,X5=$BA$4,AD5=$BB$4) -> FALSE | AY5: =AX5*AV5 -> 0 | AZ5: =AX5*AW5 -> 0
A6: 0 | B6: 1 | C6: 0 | D6: 0 | E6: 1 | F6: 1 | G6: 1 | H6: XB37 | I6: L | J6: 4 | N6: 2 | P6: Woda | T6: Woda | X6: 130 | Y6: 75 | AC6: 70 | AD6: 90 | AK6: 0 | AL6: XB37L-1-10 G 1 (20mm) | AM6: 1*4L/1*5L | AN6: B | AO6: PED Art 4.3 | AP6: 271,0 | AQ6: 0,45 | AR6: 983,9/265,2 | AS6: 16,83 | AT6: 3,28 | AU6: 1,19 | AV6: 0,02 | AW6: 0,07 | AX6: =AND(N6=$AZ$4,X6=$BA$4,AD6=$BB$4) -> FALSE | AY6: =AX6*AV6 -> 0 | AZ6: =AX6*AW6 -> 0
A7: 0 | B7: 1 | C7: 0 | D7: 0 | E7: 1 | F7: 1 | G7: 1 | H7: XB37 | I7: L | J7: 4 | N7: 3 | P7: Woda | T7: Woda | X7: 130 | Y7: 75 | AC7: 70 | AD7: 90 | AK7: 0 | AL7: XB37L-1-10 G 1 (20mm) | AM7: 1*4L/1*5L | AN7: B | AO7: PED Art 4.3 | AP7: 228,5 | AQ7: 0,45 | AR7: 1306,9/397,9 | AS7: 16,83 | AT7: 3,28 | AU7: 1,19 | AV7: 0,04 | AW7: 0,16 | AX7: FALSE | AY7: 0 | AZ7: 0
A8: 0 | B8: 1 | C8: 0 | D8: 0 | E8: 1 | F8: 1 | G8: 1 | H8: XB37 | I8: L | J8: 4 | N8: 4 | P8: Woda | T8: Woda | X8: 130 | Y8: 75 | AC8: 70 | AD8: 90 | AK8: 0 | AL8: XB37L-1-10 G 1 (20mm) | AM8: 1*4L/1*5L | AN8: B | AO8: PED Art 4.3 | AP8: 201,2 | AQ8: 0,45 | AR8: 1598,0/530,5 | AS8: 16,83 | AT8: 3,28 | AU8: 1,19 | AV8: 0,06 | AW8: 0,27 | AX8: FALSE | AY8: 0 | AZ8: 0
A9: 0 | B9: 1 | C9: 0 | D9: 0 | E9: 1 | F9: 1 | G9: 1 | H9: XB37 | I9: L | J9: 4 | N9: 5 | P9: Woda | T9: Woda | X9: 130 | Y9: 75 | AC9: 70 | AD9: 90 | AK9: 0 | AL9: XB37L-1-10 G 1 (20mm) | AM9: 1*4L/1*5L | AN9: B | AO9: PED Art 4.3 | AP9: 181,6 | AQ9: 0,45 | AR9: 1867,3/663,1 | AS9: 16,83 | AT9: 3,28 | AU9: 1,19 | AV9: 0,09 | AW9: 0,40 | AX9: FALSE | AY9: 0 | AZ9: 0
A10: 0 | B10: 1 | C10: 0 | D10: 0 | E10: 1 | F10: 1 | G10: 1 | H10: XB37 | I10: L | J10: 4 | N10: 6 | P10: Woda | T10: Woda | X10: 130 | Y10: 75 | AC10: 70 | AD10: 90 | AK10: 0 | AL10: XB37L-1-10 G 1 (20mm) | AM10: 1*4L/1*5L | AN10: B | AO10: PED Art 4.3 | AP10: 166,5 | AQ10: 0,45 | AR10: 2120,3/795,7 | AS10: 16,83 | AT10: 3,28 | AU10: 1,19 | AV10: 0,13 | AW10: 0,56 | AX10: FALSE | AY10: 0 | AZ10: 0
A11: 0 | B11: 1 | C11: 0 | D11: 0 | E11: 1 | F11: 1 | G11: 1 | H11: XB37 | I11: L | J11: 4 | N11: 7 | P11: Woda | T11: Woda | X11: 130 | Y11: 75 | AC11: 70 | AD11: 90 | AK11: 0 | AL11: XB37L-1-10 G 1 (20mm) | AM11: 1*4L/1*5L | AN11: B | AO11: PED Art 4.3 | AP11: 154,3 | AQ11: 0,45 | AR11: 2360,4/928,3 | AS11: 16,83 | AT11: 3,28 | AU11: 1,19 | AV11: 0,17 | AW11: 0,74 | AX11: FALSE | AY11: 0 | AZ11: 0
A12: 0 | B12: 1 | C12: 0 | D12: 0 | E12: 1 | F12: 1 | G12: 1 | H12: XB37 | I12: L | J12: 4 | N12: 8 | P12: Woda | T12: Woda | X12: 130 | Y12: 75 | AC12: 70 | AD12: 90 | AK12: 0 | AL12: XB37L-1-10 G 1 (20mm) | AM12: 1*4L/1*5L | AN12: B | AO12: PED Art 4.3 | AP12: 144,1 | AQ12: 0,45 | AR12: 2589,9/1060,9 | AS12: 16,83 | AT12: 3,28 | AU12: 1,19 | AV12: 0,21 | AW12: 0,94 | AX12: FALSE | AY12: 0 | AZ12: 0
A13: 0 | B13: 1 | C13: 0 | D13: 0 | E13: 1 | F13: 1 | G13: 1 | H13: XB37 | I13: L | J13: 4 | N13: 9 | P13: Woda | T13: Woda | X13: 130 | Y13: 75 | AC13: 70 | AD13: 90 | AK13: 0 | AL13: XB37L-1-10 G 1 (20mm) | AM13: 1*4L/1*5L | AN13: B | AO13: PED Art 4.3 | AP13: 135,5 | AQ13: 0,45 | AR13: 2810,5/1193,6 | AS13: 16,83 | AT13: 3,28 | AU13: 1,19 | AV13: 0,26 | AW13: 1,17 | AX13: FALSE | AY13: 0 | AZ13: 0
A14: 0 | B14: 1 | C14: 0 | D14: 0 | E14: 1 | F14: 1 | G14: 1 | H14: XB37 | I14: L | J14: 4 | N14: 10 | P14: Woda | T14: Woda | X14: 130 | Y14: 75 | AC14: 70 | AD14: 90 | AK14: 0 | AL14: XB37L-1-10 G 1 (20mm) | AM14: 1*4L/1*5L | AN14: B | AO14: PED Art 4.3 | AP14: 128,0 | AQ14: 0,45 | AR14: 3023,3/1326,2 | AS14: 16,83 | AT14: 3,28 | AU14: 1,19 | AV14: 0,32 | AW14: 1,42 | AX14: FALSE | AY14: 0 | AZ14: 0
A15: 0 | B15: 1 | C15: 0 | D15: 0 | E15: 1 | F15: 1 | G15: 1 | H15: XB37 | I15: L | J15: 4 | N15: 11 | P15: Woda | T15: Woda | X15: 130 | Y15: 75 | AC15: 70 | AD15: 90 | AK15: 0 | AL15: XB37L-1-10 G 1 (20mm) | AM15: 1*4L/1*5L | AN15: B | AO15: PED Art 4.3 | AP15: 121,4 | AQ15: 0,45 | AR15: 3229,4/1458,8 | AS15: 16,83 | AT15: 3,28 | AU15: 1,19 | AV15: 0,38 | AW15: 1,69 | AX15: FALSE | AY15: 0 | AZ15: 0
A16: 0 | B16: 1 | C16: 0 | D16: 0 | E16: 1 | F16: 1 | G16: 1 | H16: XB37 | I16: L | J16: 4 | N16: 12 | P16: Woda | T16: Woda | X16: 130 | Y16: 75 | AC16: 70 | AD16: 90 | AK16: 0 | AL16: XB37L-1-10 G 1 (20mm) | AM16: 1*4L/1*5L | AN16: B | AO16: PED Art 4.3 | AP16: 115,5 | AQ16: 0,45 | AR16: 3429,5/1591,4 | AS16: 16,83 | AT16: 3,28 | AU16: 1,19 | AV16: 0,44 | AW16: 1,98 | AX16: FALSE | AY16: 0 | AZ16: 0
A17: 0 | B17: 1 | C17: 0 | D17: 0 | E17: 1 | F17: 1 | G17: 1 | H17: XB37 | I17: L | J17: 4 | N17: 13 | P17: Woda | T17: Woda | X17: 130 | Y17: 75 | AC17: 70 | AD17: 90 | AK17: 0 | AL17: XB37L-1-10 G 1 (20mm) | AM17: 1*4L/1*5L | AN17: B | AO17: PED Art 4.3 | AP17: 110,2 | AQ17: 0,45 | AR17: 3624,3/1724,0 | AS17: 16,83 | AT17: 3,28 | AU17: 1,19 | AV17: 0,51 | AW17: 2,30 | AX17: FALSE | AY17: 0 | AZ17: 0
A18: 0 | B18: 1 | C18: 0 | D18: 0 | E18: 1 | F18: 1 | G18: 1 | H18: XB37 | I18: L | J18: 4 | N18: 14 | P18: Woda | T18: Woda | X18: 130 | Y18: 75 | AC18: 70 | AD18: 90 | AK18: 0 | AL18: XB37L-1-10 G 1 (20mm) | AM18: 1*4L/1*5L | AN18: B | AO18: PED Art 4.3 | AP18: 105,5 | AQ18: 0,45 | AR18: 3815,5/1856,6 | AS18: 16,83 | AT18: 3,28 | AU18: 1,19 | AV18: 0,59 | AW18: 2,63 | AX18: FALSE | AY18: 0 | AZ18: 0
A19: 0 | B19: 1 | C19: 0 | D19: 0 | E19: 1 | F19: 1 | G19: 1 | H19: XB37 | I19: L | J19: 4 | N19: 15 | P19: Woda | T19: Woda | X19: 130 | Y19: 75 | AC19: 70 | AD19: 90 | AK19: 0 | AL19: XB37L-1-10 G 1 (20mm) | AM19: 1*4L/1*5L | AN19: B | AO19: PED Art 4.3 | AP19: 101,3 | AQ19: 0,45 | AR19: 4003,9/1989,3 | AS19: 16,83 | AT19: 3,28 | AU19: 1,19 | AV19: 0,67 | AW19: 2,98 | AX19: FALSE | AY19: 0 | AZ19: 0
A20: 0 | B20: 1 | C20: 0 | D20: 0 | E20: 1 | F20: 1 | G20: 1 | H20: XB37 | I20: L | J20: 4 | N20: 16 | P20: Woda | T20: Woda | X20: 130 | Y20: 75 | AC20: 70 | AD20: 90 | AK20: 0 | AL20: XB37L-1-10 G 1 (20mm) | AM20: 1*4L/1*5L | AN20: B | AO20: PED Art 4.3 | AP20: 97,5 | AQ20: 0,45 | AR20: 4189,9/2121,9 | AS20: 16,83 | AT20: 3,28 | AU20: 1,19 | AV20: 0,75 | AW20: 3,36 | AX20: FALSE | AY20: 0 | AZ20: 0
A21: 0 | B21: 1 | C21: 0 | D21: 0 | E21: 1 | F21: 1 | G21: 1 | H21: XB37 | I21: L | J21: 4 | N21: 17 | P21: Woda | T21: Woda | X21: 130 | Y21: 75 | AC21: 70 | AD21: 90 | AK21: 0 | AL21: XB37L-1-10 G 1 (20mm) | AM21: 1*4L/1*5L | AN21: B | AO21: PED Art 4.3 | AP21: 94,0 | AQ21: 0,45 | AR21: 4373,3/2254,5 | AS21: 16,83 | AT21: 3,28 | AU21: 1,19 | AV21: 0,84 | AW21: 3,66 | AX21: FALSE | AY21: 0 | AZ21: 0
A22: 0 | B22: 1 | C22: 0 | D22: 0 | E22: 1 | F22: 1 | G22: 1 | H22: XB37 | I22: L | J22: 4 | N22: 18 | P22: Woda | T22: Woda | X22: 130 | Y22: 75 | AC22: 70 | AD22: 90 | AK22: 0 | AL22: XB37L-1-10 G 1 (20mm) | AM22: 1*4L/1*5L | AN22: B | AO22: PED Art 4.3 | AP22: 90,7 | AQ22: 0,45 | AR22: 4552,6/2387,1 | AS22: 16,83 | AT22: 3,28 | AU22: 1,19 | AV22: 0,93 | AW22: 4,09 | AX22: FALSE | AY22: 0 | AZ22: 0
A23: 0 | B23: 1 | C23: 0 | D23: 0 | E23: 1 | F23: 1 | G23: 1 | H23: XB37 | I23: L | J23: 4 | N23: 19 | P23: Woda | T23: Woda | X23: 130 | Y23: 75 | AC23: 70 | AD23: 90 | AK23: 0 | AL23: XB37L-1-10 G 1 (20mm) | AM23: 1*4L/1*5L | AN23: B | AO23: PED Art 4.3 | AP23: 87,5 | AQ23: 0,45 | AR23: 4723,7/2519,7 | AS23: 16,83 | AT23: 3,28 | AU23: 1,19 | AV23: 1,03 | AW23: 4,54 | AX23: FALSE | AY23: 0 | AZ23: 0
A24: 0 | B24: 1 | C24: 0 | D24: 0 | E24: 1 | F24: 1 | G24: 1 | H24: XB37 | I24: L | J24: 4 | N24: 20 | P24: Woda | T24: Woda | X24: 130 | Y24: 75 | AC24: 70 | AD24: 90 | AK24: 0 | AL24: XB37L-1-10 G 1 (20mm) | AM24: 1*4L/1*5L | AN24: B | AO24: PED Art 4.3 | AP24: 84,4 | AQ24: 0,45 | AR24: 4891,7/2652,3 | AS24: 16,83 | AT24: 3,28 | AU24: 1,19 | AV24: 1,13 | AW24: 5,01 | AX24: FALSE | AY24: 0 | AZ24: 0
A25: 0 | B25: 1 | C25: 0 | D25: 0 | E25: 1 | F25: 1 | G25: 1 | H25: XB37 | I25: L | J25: 4 | N25: 21 | P25: Woda | T25: Woda | X25: 130 | Y25: 75 | AC25: 70 | AD25: 90 | AK25: 0 | AL25: XB37L-1-10 G 1 (20mm) | AM25: 1*4L/1*5L | AN25: B | AO25: PED Art 4.3 | AP25: 81,6 | AQ25: 0,45 | AR25: 5058,3/2785,0 | AS25: 16,83 | AT25: 3,28 | AU25: 1,19 | AV25: 1,23 | AW25: 5,51 | AX25: FALSE | AY25: 0 | AZ25: 0
A26: 0 | B26: 1 | C26: 0 | D26: 0 | E26: 1 | F26: 1 | G26: 1 | H26: XB37 | I26: L | J26: 4 | N26: 22 | P26: Woda | T26: Woda | X26: 130 | Y26: 75 | AC26: 70 | AD26: 90 | AK26: 0 | AL26: XB37L-1-10 G 1 (20mm) | AM26: 1*4L/1*5L | AN26: B | AO26: PED Art 4.3 | AP26: 79,0 | AQ26: 0,45 | AR26: 5222,4/2917,6 | AS26: 16,83 | AT26: 3,28 | AU26: 1,19 | AV26: 1,34 | AW26: 6,02 | AX26: FALSE | AY26: 0 | AZ26: 0
A27: 0 | B27: 1 | C27: 0 | D27: 0 | E27: 1 | F27: 1 | G27: 1 | H27: XB37 | I27: L | J27: 4 | N27: 23 | P27: Woda | T27: Woda | X27: 130 | Y27: 75 | AC27: 70 | AD27: 90 | AK27: 0 | AL27: XB37L-1-10 G 1 (20mm) | AM27: 1*4L/1*5L | AN27: B | AO27: PED Art 4.3 | AP27: 76,5 | AQ27: 0,45 | AR27: 5384,2/3050,2 | AS27: 16,83 | AT27: 3,28 | AU27: 1,19 | AV27: 1,46 | AW27: 6,56 | AX27: FALSE | AY27: 0 | AZ27: 0
A28: 0 | B28: 1 | C28: 0 | D28: 0 | E28: 1 | F28: 1 | G28: 1 | H28: XB37 | I28: L | J28: 4 | N28: 24 | P28: Woda | T28: Woda | X28: 130 | Y28: 75 | AC28: 70 | AD28: 90 | AK28: 0 | AL28: XB37L-1-10 G 1 (20mm) | AM28: 1*4L/1*5L | AN28: B | AO28: PED Art 4.3 | AP28: 74,2 | AQ28: 0,45 | AR28: 5543,9/3182,8 | AS28: 16,83 | AT28: 3,28 | AU28: 1,19 | AV28: 1,58 | AW28: 7,13 | AX28: FALSE | AY28: 0 | AZ28: 0
A29: 0 | B29: 1 | C29: 0 | D29: 0 | E29: 1 | F29: 1 | G29: 1 | H29: XB37 | I29: L | J29: 4 | N29: 25 | P29: Woda | T29: Woda | X29: 130 | Y29: 75 | AC29: 70 | AD29: 90 | AK29: 0 | AL29: XB37L-1-10 G 1 (20mm) | AM29: 1*4L/1*5L | AN29: B | AO29: PED Art 4.3 | AP29: 72,0 | AQ29: 0,45 | AR29: 5701,7/3315,4 | AS29: 16,83 | AT29: 3,28 | AU29: 1,19 | AV29: 1,70 | AW29: 7,71 | AX29: FALSE | AY29: 0 | AZ29: 0
A30: 0 | B30: 1 | C30: 0 | D30: 0 | E30: 1 | F30: 1 | G30: 1 | H30: XB37 | I30: L | J30: 4 | N30: 26 | P30: Woda | T30: Woda | X30: 130 | Y30: 75 | AC30: 70 | AD30: 90 | AK30: 0 | AL30: XB37L-1-10 G 1 (20mm) | AM30: 1*4L/1*5L | AN30: B | AO30: PED Art 4.3 | AP30: 69,8 | AQ30: 0,45 | AR30: 5854,9/3448,1 | AS30: 16,83 | AT30: 3,28 | AU30: 1,19 | AV30: 1,82 | AW30: 8,32 | AX30: FALSE | AY30: 0 | AZ30: 0
A31: 0 | B31: 1 | C31: 0 | D31: 0 | E31: 1 | F31: 1 | G31: 1 | H31: XB37 | I31: L | J31: 4 | N31: 27 | P31: Woda | T31: Woda | X31: 130 | Y31: 75 | AC31: 70 | AD31: 90 | AK31: 0 | AL31: XB37L-1-10 G 1 (20mm) | AM31: 1*4L/1*5L | AN31: B | AO31: PED Art 4.3 | AP31: 67,8 | AQ31: 0,45 | AR31: 6008,9/3580,7 | AS31: 16,83 | AT31: 3,28 | AU31: 1,19 | AV31: 1,95 | AW31: 8,95 | AX31: FALSE | AY31: 0 | AZ31: 0
A32: 0 | B32: 1 | C32: 0 | D32: 0 | E32: 1 | F32: 1 | G32: 1 | H32: XB37 | I32: L | J32: 4 | N32: 28 | P32: Woda | T32: Woda | X32: 130 | Y32: 75 | AC32: 70 | AD32: 90 | AK32: 0 | AL32: XB37L-1-10 G 1 (20mm) | AM32: 1*4L/1*5L | AN32: B | AO32: PED Art 4.3 | AP32: 65,9 | AQ32: 0,45 | AR32: 6161,7/3713,3 | AS32: 16,83 | AT32: 3,28 | AU32: 1,19 | AV32: 2,09 | AW32: 9,60 | AX32: FALSE | AY32: 0 | AZ32: 0
A33: 0 | B33: 1 | C33: 0 | D33: 0 | E33: 1 | F33: 1 | G33: 1 | H33: XB37 | I33: L | J33: 4 | N33: 29 | P33: Woda | T33: Woda | X33: 130 | Y33: 75 | AC33: 70 | AD33: 90 | AK33: 0 | AL33: XB37L-1-10 G 1 (20mm) | AM33: 1*4L/1*5L | AN33: B | AO33: PED Art 4.3 | AP33: 64,0 | AQ33: 0,45 | AR33: 6309,0/3845,9 | AS33: 16,83 | AT33: 3,28 | AU33: 1,19 | AV33: 2,17 | AW33: 10,27 | AX33: FALSE | AY33: 0 | AZ33: 0
A34: 0 | B34: 1 | C34: 0 | D34: 0 | E34: 1 | F34: 1 | G34: 1 | H34: XB37 | I34: L | J34: 4 | N34: 30 | P34: Woda | T34: Woda | X34: 130 | Y34: 75 | AC34: 70 | AD34: 90 | AK34: 0 | AL34: XB37L-1-10 G 1 (20mm) | AM34: 1*4L/1*5L | AN34: B | AO34: PED Art 4.3 | AP34: 62,3 | AQ34: 0,45 | AR34: 6459,0/3978,5 | AS34: 16,83 | AT34: 3,28 | AU34: 1,19 | AV34: 2,32 | AW34: 10,96 | AX34: FALSE | AY34: 0 | AZ34: 0
A35: 0 | B35: 1 | C35: 0 | D35: 0 | E35: 1 | F35: 1 | G35: 1 | H35: XB37 | I35: L | J35: 4 | N35: 1 | P35: Woda | T35: Woda | X35: 125 | Y35: 75 | AC35: 70 | AD35: 90 | AK35: 0 | AL35: XB37L-1-10 G 1 (20mm) | AM35: 1*4L/1*5L | AN35: B | AO35: PED Art 4.3 | AP35: 336,4 | AQ35: 0,45 | AR35: 631,9/144,8 | AS35: 15,42 | AT35: 3,25 | AU35: 1,30 | AV35: 0,01 | AW35: 0,02 | AX35: FALSE | AY35: 0 | AZ35: 0
A36: 0 | B36: 1 | C36: 0 | D36: 0 | E36: 1 | F36: 1 | G36: 1 | H36: XB37 | I36: L | J36: 4 | N36: 2 | P36: Woda | T36: Woda | X36: 125 | Y36: 75 | AC36: 70 | AD36: 90 | AK36: 0 | AL36: XB37L-1-10 G 1 (20mm) | AM36: 1*4L/1*5L | AN36: B | AO36: PED Art 4.3 | AP36: 254,8 | AQ36: 0,45 | AR36: 1027,4/289,6 | AS36: 15,42 | AT36: 3,25 | AU36: 1,30 | AV36: 0,02 | AW36: 0,07 | AX36: FALSE | AY36: 0 | AZ36: 0
A37: 0 | B37: 1 | C37: 0 | D37: 0 | E37: 1 | F37: 1 | G37: 1 | H37: XB37 | I37: L | J37: 4 | N37: 3 | P37: Woda | T37: Woda | X37: 125 | Y37: 75 | AC37: 70 | AD37: 90 | AK37: 0 | AL37: XB37L-1-10 G 1 (20mm) | AM37: 1*4L/1*5L | AN37: B | AO37: PED Art 4.3 | AP37: 214,3 | AQ37: 0,45 | AR37: 1365,0/434,4 | AS37: 15,42 | AT37: 3,25 | AU37: 1,30 | AV37: 0,04 | AW37: 0,16 | AX37: FALSE | AY37: 0 | AZ37: 0
A38: 0 | B38: 1 | C38: 0 | D38: 0 | E38: 1 | F38: 1 | G38: 1 | H38: XB37 | I38: L | J38: 4 | N38: 4 | P38: Woda | T38: Woda | X38: 125 | Y38: 75 | AC38: 70 | AD38: 90 | AK38: 0 | AL38: XB37L-1-10 G 1 (20mm) | AM38: 1*4L/1*5L | AN38: B | AO38: PED Art 4.3 | AP38: 188,2 | AQ38: 0,45 | AR38: 1669,3/579,1 | AS38: 15,42 | AT38: 3,25 | AU38: 1,30 | AV38: 0,07 | AW38: 0,27 | AX38: FALSE | AY38: 0 | AZ38: 0
A39: 0 | B39: 1 | C39: 0 | D39: 0 | E39: 1 | F39: 1 | G39: 1 | H39: XB37 | I39: L | J39: 4 | N39: 5 | P39: Woda | T39: Woda | X39: 125 | Y39: 75 | AC39: 70 | AD39: 90 | AK39: 0 | AL39: XB37L-1-10 G 1 (20mm) | AM39: 1*4L/1*5L | AN39: B | AO39: PED Art 4.3 | AP39: 169,5 | AQ39: 0,45 | AR39: 1951,0/723,9 | AS39: 15,42 | AT39: 3,25 | AU39: 1,30 | AV39: 0,11 | AW39: 0,40 | AX39: FALSE | AY39: 0 | AZ39: 0
A40: 0 | B40: 1 | C40: 0 | D40: 0 | E40: 1 | F40: 1 | G40: 1 | H40: XB37 | I40: L | J40: 4 | N40: 6 | P40: Woda | T40: Woda | X40: 125 | Y40: 75 | AC40: 70 | AD40: 90 | AK40: 0 | AL40: XB37L-1-10 G 1 (20mm) | AM40: 1*4L/1*5L | AN40: B | AO40: PED Art 4.3 | AP40: 155,0 | AQ40: 0,45 | AR40: 2215,6/868,7 | AS40: 15,42 | AT40: 3,25 | AU40: 1,30 | AV40: 0,15 | AW40: 0,56 | AX40: FALSE | AY40: 0 | AZ40: 0
A41: 0 | B41: 1 | C41: 0 | D41: 0 | E41: 1 | F41: 1 | G41: 1 | H41: XB37 | I41: L | J41: 4 | N41: 7 | P41: Woda | T41: Woda | X41: 125 | Y41: 75 | AC41: 70 | AD41: 90 | AK41: 0 | AL41: XB37L-1-10 G 1 (20mm) | AM41: 1*4L/1*5L | AN41: B | AO41: PED Art 4.3 | AP41: 143,4 | AQ41: 0,45 | AR41: 2466,7/1013,5 | AS41: 15,42 | AT41: 3,25 | AU41: 1,30 | AV41: 0,20 | AW41: 0,74 | AX41: FALSE | AY41: 0 | AZ41: 0
A42: 0 | B42: 1 | C42: 0 | D42: 0 | E42: 1 | F42: 1 | G42: 1 | H42: XB37 | I42: L | J42: 4 | N42: 8 | P42: Woda | T42: Woda | X42: 125 | Y42: 75 | AC42: 70 | AD42: 90 | AK42: 0 | AL42: XB37L-1-10 G 1 (20mm) | AM42: 1*4L/1*5L | AN42: B | AO42: PED Art 4.3 | AP42: 133,7 | AQ42: 0,45 | AR42: 2706,8/1158,3 | AS42: 15,42 | AT42: 3,25 | AU42: 1,30 | AV42: 0,25 | AW42: 0,94 | AX42: FALSE | AY42: 0 | AZ42: 0
A43: 0 | B43: 1 | C43: 0 | D43: 0 | E43: 1 | F43: 1 | G43: 1 | H43: XB37 | I43: L | J43: 4 | N43: 9 | P43: Woda | T43: Woda | X43: 125 | Y43: 75 | AC43: 70 | AD43: 90 | AK43: 0 | AL43: XB37L-1-10 G 1 (20mm) | AM43: 1*4L/1*5L | AN43: B | AO43: PED Art 4.3 | AP43: 125,4 | AQ43: 0,45 | AR43: 2937,6/1303,1 | AS43: 15,42 | AT43: 3,25 | AU43: 1,30 | AV43: 0,31 | AW43: 1,17 | AX43: FALSE | AY43: 0 | AZ43: 0
A44: 0 | B44: 1 | C44: 0 | D44: 0 | E44: 1 | F44: 1 | G44: 1 | H44: XB37 | I44: L | J44: 4 | N44: 10 | P44: Woda | T44: Woda | X44: 125 | Y44: 75 | AC44: 70 | AD44: 90 | AK44: 0 | AL44: XB37L-1-10 G 1 (20mm) | AM44: 1*4L/1*5L | AN44: B | AO44: PED Art 4.3 | AP44: 118,3 | AQ44: 0,45 | AR44: 3160,3/1447,8 | AS44: 15,42 | AT44: 3,25 | AU44: 1,30 | AV44: 0,38 | AW44: 1,42 | AX44: FALSE | AY44: 0 | AZ44: 0
A45: 0 | B45: 1 | C45: 0 | D45: 0 | E45: 1 | F45: 1 | G45: 1 | H45: XB37 | I45: L | J45: 4 | N45: 11 | P45: Woda | T45: Woda | X45: 125 | Y45: 75 | AC45: 70 | AD45: 90 | AK45: 0 | AL45: XB37L-1-10 G 1 (20mm) | AM45: 1*4L/1*5L | AN45: B | AO45: PED Art 4.3 | AP45: 112,0 | AQ45: 0,45 | AR45: 3376,0/1592,6 | AS45: 15,42 | AT45: 3,25 | AU45: 1,30 | AV45: 0,45 | AW45: 1,69 | AX45: FALSE | AY45: 0 | AZ45: 0
A46: 0 | B46: 1 | C46: 0 | D46: 0 | E46: 1 | F46: 1 | G46: 1 | H46: XB37 | I46: L | J46: 4 | N46: 12 | P46: Woda | T46: Woda | X46: 125 | Y46: 75 | AC46: 70 | AD46: 90 | AK46: 0 | AL46: XB37L-1-10 G 1 (20mm) | AM46: 1*4L/1*5L | AN46: B | AO46: PED Art 4.3 | AP46: 106,4 | AQ46: 0,45 | AR46: 3585,4/1737,4 | AS46: 15,42 | AT46: 3,25 | AU46: 1,30 | AV46: 0,53 | AW46: 1,98 | AX46: FALSE | AY46: 0 | AZ46: 0
A47: 0 | B47: 1 | C47: 0 | D47: 0 | E47: 1 | F47: 1 | G47: 1 | H47: XB37 | I47: L | J47: 4 | N47: 13 | P47: Woda | T47: Woda | X47: 125 | Y47: 75 | AC47: 70 | AD47: 90 | AK47: 0 | AL47: XB37L-1-10 G 1 (20mm) | AM47: 1*4L/1*5L | AN47: B | AO47: PED Art 4.3 | AP47: 101,3 | AQ47: 0,45 | AR47: 3789,2/1882,2 | AS47: 15,42 | AT47: 3,25 | AU47: 1,30 | AV47: 0,61 | AW47: 2,30 | AX47: FALSE | AY47: 0 | AZ47: 0
A48: 0 | B48: 1 | C48: 0 | D48: 0 | E48: 1 | F48: 1 | G48: 1 | H48: XB37 | I48: L | J48: 4 | N48: 14 | P48: Woda | T48: Woda | X48: 125 | Y48: 75 | AC48: 70 | AD48: 90 | AK48: 0 | AL48: XB37L-1-10 G 1 (20mm) | AM48: 1*4L/1*5L | AN48: B | AO48: PED Art 4.3 | AP48: 96,8 | AQ48: 0,45 | AR48: 3989,7/2027,0 | AS48: 15,42 | AT48: 3,25 | AU48: 1,30 | AV48: 0,70 | AW48: 2,63 | AX48: FALSE | AY48: 0 | AZ48: 0
A49: 0 | B49: 1 | C49: 0 | D49: 0 | E49: 1 | F49: 1 | G49: 1 | H49: XB37 | I49: L | J49: 4 | N49: 15 | P49: Woda | T49: Woda | X49: 125 | Y49: 75 | AC49: 70 | AD49: 90 | AK49: 0 | AL49: XB37L-1-10 G 1 (20mm) | AM49: 1*4L/1*5L | AN49: B | AO49: PED Art 4.3 | AP49: 92,8 | AQ49: 0,45 | AR49: 4187,5/2171,8 | AS49: 15,42 | AT49: 3,25 | AU49: 1,30 | AV49: 0,80 | AW49: 2,98 | AX49: FALSE | AY49: 0 | AZ49: 0
A50: 0 | B50: 1 | C50: 0 | D50: 0 | E50: 1 | F50: 1 | G50: 1 | H50: XB37 | I50: L | J50: 4 | N50: 16 | P50: Woda | T50: Woda | X50: 125 | Y50: 75 | AC50: 70 | AD50: 90 | AK50: 0 | AL50: XB37L-1-10 G 1 (20mm) | AM50: 1*4L/1*5L | AN50: B | AO50: PED Art 4.3 | AP50: 89,1 | AQ50: 0,45 | AR50: 4381,2/2316,6 | AS50: 15,42 | AT50: 3,25 | AU50: 1,30 | AV50: 0,90 | AW50: 3,36 | AX50: FALSE | AY50: 0 | AZ50: 0
A51: 0 | B51: 1 | C51: 0 | D51: 0 | E51: 1 | F51: 1 | G51: 1 | H51: XB37 | I51: L | J51: 4 | N51: 17 | P51: Woda | T51: Woda | X51: 125 | Y51: 75 | AC51: 70 | AD51: 90 | AK51: 0 | AL51: XB37L-1-10 G 1 (20mm) | AM51: 1*4L/1*5L | AN51: B | AO51: PED Art 4.3 | AP51: 85,8 | AQ51: 0,45 | AR51: 4573,6/2461,3 | AS51: 15,42 | AT51: 3,25 | AU51: 1,30 | AV51: 1,00 | AW51: 3,66 | AX51: FALSE | AY51: 0 | AZ51: 0
A52: 0 | B52: 1 | C52: 0 | D52: 0 | E52: 1 | F52: 1 | G52: 1 | H52: XB37 | I52: L | J52: 4 | N52: 18 | P52: Woda | T52: Woda | X52: 125 | Y52: 75 | AC52: 70 | AD52: 90 | AK52: 0 | AL52: XB37L-1-10 G 1 (20mm) | AM52: 1*4L/1*5L | AN52: B | AO52: PED Art 4.3 | AP52: 82,7 | AQ52: 0,45 | AR52: 4761,5/2606,1 | AS52: 15,42 | AT52: 3,25 | AU52: 1,30 | AV52: 1,11 | AW52: 4,09 | AX52: FALSE | AY52: 0 | AZ52: 0
A53: 0 | B53: 1 | C53: 0 | D53: 0 | E53: 1 | F53: 1 | G53: 1 | H53: XB37 | I53: L | J53: 4 | N53: 19 | P53: Woda | T53: Woda | X53: 125 | Y53: 75 | AC53: 70 | AD53: 90 | AK53: 0 | AL53: XB37L-1-10 G 1 (20mm) | AM53: 1*4L/1*5L | AN53: B | AO53: PED Art 4.3 | AP53: 79,6 | AQ53: 0,45 | AR53: 4940,6/2750,9 | AS53: 15,42 | AT53: 3,25 | AU53: 1,30 | AV53: 1,23 | AW53: 4,54 | AX53: FALSE | AY53: 0 | AZ53: 0
A54: 0 | B54: 1 | C54: 0 | D54: 0 | E54: 1 | F54: 1 | G54: 1 | H54: XB37 | I54: L | J54: 4 | N54: 20 | P54: Woda | T54: Woda | X54: 125 | Y54: 75 | AC54: 70 | AD54: 90 | AK54: 0 | AL54: XB37L-1-10 G 1 (20mm) | AM54: 1*4L/1*5L | AN54: B | AO54: PED Art 4.3 | AP54: 76,7 | AQ54: 0,45 | AR54: 5118,1/2895,7 | AS54: 15,42 | AT54: 3,25 | AU54: 1,30 | AV54: 1,35 | AW54: 5,01 | AX54: FALSE | AY54: 0 | AZ54: 0
A55: 0 | B55: 1 | C55: 0 | D55: 0 | E55: 1 | F55: 1 | G55: 1 | H55: XB37 | I55: L | J55: 4 | N55: 21 | P55: Woda | T55: Woda | X55: 125 | Y55: 75 | AC55: 70 | AD55: 90 | AK55: 0 | AL55: XB37L-1-10 G 1 (20mm) | AM55: 1*4L/1*5L | AN55: B | AO55: PED Art 4.3 | AP55: 74,1 | AQ55: 0,45 | AR55: 5292,9/3040,5 | AS55: 15,42 | AT55: 3,25 | AU55: 1,30 | AV55: 1,48 | AW55: 5,51 | AX55: FALSE | AY55: 0 | AZ55: 0
A56: 0 | B56: 1 | C56: 0 | D56: 0 | E56: 1 | F56: 1 | G56: 1 | H56: XB37 | I56: L | J56: 4 | N56: 22 | P56: Woda | T56: Woda | X56: 125 | Y56: 75 | AC56: 70 | AD56: 90 | AK56: 0 | AL56: XB37L-1-10 G 1 (20mm) | AM56: 1*4L/1*5L | AN56: B | AO56: PED Art 4.3 | AP56: 71,6 | AQ56: 0,45 | AR56: 5465,2/3185,3 | AS56: 15,42 | AT56: 3,25 | AU56: 1,30 | AV56: 1,61 | AW56: 6,02 | AX56: FALSE | AY56: 0 | AZ56: 0
A57: 0 | B57: 1 | C57: 0 | D57: 0 | E57: 1 | F57: 1 | G57: 1 | H57: XB37 | I57: L | J57: 4 | N57: 23 | P57: Woda | T57: Woda | X57: 125 | Y57: 75 | AC57: 70 | AD57: 90 | AK57: 0 | AL57: XB37L-1-10 G 1 (20mm) | AM57: 1*4L/1*5L | AN57: B | AO57: PED Art 4.3 | AP57: 69,2 | AQ57: 0,45 | AR57: 5635,2/3330,1 | AS57: 15,42 | AT57: 3,25 | AU57: 1,30 | AV57: 1,74 | AW57: 6,56 | AX57: FALSE | AY57: 0 | AZ57: 0
A58: 0 | B58: 1 | C58: 0 | D58: 0 | E58: 1 | F58: 1 | G58: 1 | H58: XB37 | I58: L | J58: 4 | N58: 24 | P58: Woda | T58: Woda | X58: 125 | Y58: 75 | AC58: 70 | AD58: 90 | AK58: 0 | AL58: XB37L-1-10 G 1 (20mm) | AM58: 1*4L/1*5L | AN58: B | AO58: PED Art 4.3 | AP58: 67,0 | AQ58: 0,45 | AR58: 5803,2/3474,8 | AS58: 15,42 | AT58: 3,25 | AU58: 1,30 | AV58: 1,88 | AW58: 7,13 | AX58: FALSE | AY58: 0 | AZ58: 0
A59: 0 | B59: 1 | C59: 0 | D59: 0 | E59: 1 | F59: 1 | G59: 1 | H59: XB37 | I59: L | J59: 4 | N59: 25 | P59: Woda | T59: Woda | X59: 125 | Y59: 75 | AC59: 70 | AD59: 90 | AK59: 0 | AL59: XB37L-1-10 G 1 (20mm) | AM59: 1*4L/1*5L | AN59: B | AO59: PED Art 4.3 | AP59: 64,8 | AQ59: 0,45 | AR59: 5965,8/3619,6 | AS59: 15,42 | AT59: 3,25 | AU59: 1,30 | AV59: 2,03 | AW59: 7,71 | AX59: FALSE | AY59: 0 | AZ59: 0
A60: 0 | B60: 1 | C60: 0 | D60: 0 | E60: 1 | F60: 1 | G60: 1 | H60: XB37 | I60: L | J60: 4 | N60: 26 | P60: Woda | T60: Woda | X60: 125 | Y60: 75 | AC60: 70 | AD60: 90 | AK60: 0 | AL60: XB37L-1-10 G 1 (20mm) | AM60: 1*4L/1*5L | AN60: B | AO60: PED Art 4.3 | AP60: 62,8 | AQ60: 0,45 | AR60: 6129,8/3764,4 | AS60: 15,42 | AT60: 3,25 | AU60: 1,30 | AV60: 2,18 | AW60: 8,32 | AX60: FALSE | AY60: 0 | AZ60: 0
A61: 0 | B61: 1 | C61: 0 | D61: 0 | E61: 1 | F61: 1 | G61: 1 | H61: XB37 | I61: L | J61: 4 | N61: 27 | P61: Woda | T61: Woda | X61: 125 | Y61: 75 | AC61: 70 | AD61: 90 | AK61: 0 | AL61: XB37L-1-10 G 1 (20mm) | AM61: 1*4L/1*5L | AN61: B | AO61: PED Art 4.3 | AP61: 61,0 | AQ61: 0,45 | AR61: 6292,6/3909,2 | AS61: 15,42 | AT61: 3,25 | AU61: 1,30 | AV61: 2,28 | AW61: 8,95 | AX61: FALSE | AY61: 0 | AZ61: 0
A62: 0 | B62: 1 | C62: 0 | D62: 0 | E62: 1 | F62: 1 | G62: 1 | H62: XB37 | I62: L | J62: 4 | N62: 28 | P62: Woda | T62: Woda | X62: 125 | Y62: 75 | AC62: 70 | AD62: 90 | AK62: 0 | AL62: XB37L-1-10 G 1 (20mm) | AM62: 1*4L/1*5L | AN62: B | AO62: PED Art 4.3 | AP62: 59,2 | AQ62: 0,45 | AR62: 6454,7/4054,0 | AS62: 15,42 | AT62: 3,25 | AU62: 1,30 | AV62: 2,44 | AW62: 9,60 | AX62: FALSE | AY62: 0 | AZ62: 0
A63: 0 | B63: 1 | C63: 0 | D63: 0 | E63: 1 | F63: 1 | G63: 1 | H63: XB37 | I63: L | J63: 4 | N63: 29 | P63: Woda | T63: Woda | X63: 125 | Y63: 75 | AC63: 70 | AD63: 90 | AK63: 0 | AL63: XB37L-1-10 G 1 (20mm) | AM63: 1*4L/1*5L | AN63: B | AO63: PED Art 4.3 | AP63: 57,4 | AQ63: 0,45 | AR63: 6609,0/4198,8 | AS63: 15,42 | AT63: 3,25 | AU63: 1,30 | AV63: 2,62 | AW63: 10,27 | AX63: FALSE | AY63: 0 | AZ63: 0
A64: 0 | B64: 1 | C64: 0 | D64: 0 | E64: 1 | F64: 1 | G64: 1 | H64: XB37 | I64: L | J64: 4 | N64: 30 | P64: Woda | T64: Woda | X64: 125 | Y64: 75 | AC64: 70 | AD64: 90 | AK64: 0 | AL64: XB37L-1-10 G 1 (20mm) | AM64: 1*4L/1*5L | AN64: B | AO64: PED Art 4.3 | AP64: 55,9 | AQ64: 0,45 | AR64: 6769,5/4343,5 | AS64: 15,42 | AT64: 3,25 | AU64: 1,30 | AV64: 2,79 | AW64: 10,96 | AX64: FALSE | AY64: 0 | AZ64: 0
A65: 0 | B65: 1 | C65: 0 | D65: 0 | E65: 1 | F65: 1 | G65: 1 | H65: XB37 | I65: L | J65: 4 | N65: 1 | P65: Woda | T65: Woda | X65: 120 | Y65: 75 | AC65: 70 | AD65: 90 | AK65: 0 | AL65: XB37L-1-10 G 1 (20mm) | AM65: 1*4L/1*5L | AN65: B | AO65: PED Art 4.3 | AP65: 313,8 | AQ65: 0,45 | AR65: 662,0/160,0 | AS65: 13,95 | AT65: 3,23 | AU65: 1,43 | AV65: 0,01 | AW65: 0,02 | AX65: FALSE | AY65: 0 | AZ65: 0
A66: 0 | B66: 1 | C66: 0 | D66: 0 | E66: 1 | F66: 1 | G66: 1 | H66: XB37 | I66: L | J66: 4 | N66: 2 | P66: Woda | T66: Woda | X66: 120 | Y66: 75 | AC66: 70 | AD66: 90 | AK66: 0 | AL66: XB37L-1-10 G 1 (20mm) | AM66: 1*4L/1*5L | AN66: B | AO66: PED Art 4.3 | AP66: 236,6 | AQ66: 0,45 | AR66: 1077,0/320,0 | AS66: 13,95 | AT66: 3,23 | AU66: 1,43 | AV66: 0,02 | AW66: 0,07 | AX66: FALSE | AY66: 0 | AZ66: 0
A67: 0 | B67: 1 | C67: 0 | D67: 0 | E67: 1 | F67: 1 | G67: 1 | H67: XB37 | I67: L | J67: 4 | N67: 3 | P67: Woda | T67: Woda | X67: 120 | Y67: 75 | AC67: 70 | AD67: 90 | AK67: 0 | AL67: XB37L-1-10 G 1 (20mm) | AM67: 1*4L/1*5L | AN67: B | AO67: PED Art 4.3 | AP67: 198,2 | AQ67: 0,45 | AR67: 1431,3/479,9 | AS67: 13,95 | AT67: 3,23 | AU67: 1,43 | AV67: 0,05 | AW67: 0,16 | AX67: FALSE | AY67: 0 | AZ67: 0
A68: 0 | B68: 1 | C68: 0 | D68: 0 | E68: 1 | F68: 1 | G68: 1 | H68: XB37 | I68: L | J68: 4 | N68: 4 | P68: Woda | T68: Woda | X68: 120 | Y68: 75 | AC68: 70 | AD68: 90 | AK68: 0 | AL68: XB37L-1-10 G 1 (20mm) | AM68: 1*4L/1*5L | AN68: B | AO68: PED Art 4.3 | AP68: 173,6 | AQ68: 0,45 | AR68: 1750,9/639,9 | AS68: 13,95 | AT68: 3,23 | AU68: 1,43 | AV68: 0,09 | AW68: 0,27 | AX68: FALSE | AY68: 0 | AZ68: 0
A69: 0 | B69: 1 | C69: 0 | D69: 0 | E69: 1 | F69: 1 | G69: 1 | H69: XB37 | I69: L | J69: 4 | N69: 5 | P69: Woda | T69: Woda | X69: 120 | Y69: 75 | AC69: 70 | AD69: 90 | AK69: 0 | AL69: XB37L-1-10 G 1 (20mm) | AM69: 1*4L/1*5L | AN69: B | AO69: PED Art 4.3 | AP69: 155,9 | AQ69: 0,45 | AR69: 2046,7/799,9 | AS69: 13,95 | AT69: 3,23 | AU69: 1,43 | AV69: 0,13 | AW69: 0,40 | AX69: FALSE | AY69: 0 | AZ69: 0
A70: 0 | B70: 1 | C70: 0 | D70: 0 | E70: 1 | F70: 1 | G70: 1 | H70: XB37 | I70: L | J70: 4 | N70: 6 | P70: Woda | T70: Woda | X70: 120 | Y70: 75 | AC70: 70 | AD70: 90 | AK70: 0 | AL70: XB37L-1-10 G 1 (20mm) | AM70: 1*4L/1*5L | AN70: B | AO70: PED Art 4.3 | AP70: 142,2 | AQ70: 0,45 | AR70: 2324,7/959,9 | AS70: 13,95 | AT70: 3,23 | AU70: 1,43 | AV70: 0,18 | AW70: 0,56 | AX70: =AND(N70=$AZ$4,X70=$BA$4,AD70=$BB$4) -> FALSE | AY70: =AX70*AV70 -> 0 | AZ70: =AX70*AW70 -> 0
A71: 0 | B71: 1 | C71: 0 | D71: 0 | E71: 1 | F71: 1 | G71: 1 | H71: XB37 | I71: L | J71: 4 | N71: 7 | P71: Woda | T71: Woda | X71: 120 | Y71: 75 | AC71: 70 | AD71: 90 | AK71: 0 | AL71: XB37L-1-10 G 1 (20mm) | AM71: 1*4L/1*5L | AN71: B | AO71: PED Art 4.3 | AP71: 131,2 | AQ71: 0,45 | AR71: 2588,6/1119,8 | AS71: 13,95 | AT71: 3,23 | AU71: 1,43 | AV71: 0,24 | AW71: 0,74 | AX71: FALSE | AY71: 0 | AZ71: 0
A72: 0 | B72: 1 | C72: 0 | D72: 0 | E72: 1 | F72: 1 | G72: 1 | H72: XB37 | I72: L | J72: 4 | N72: 8 | P72: Woda | T72: Woda | X72: 120 | Y72: 75 | AC72: 70 | AD72: 90 | AK72: 0 | AL72: XB37L-1-10 G 1 (20mm) | AM72: 1*4L/1*5L | AN72: B | AO72: PED Art 4.3 | AP72: 122,0 | AQ72: 0,45 | AR72: 2840,9/1279,8 | AS72: 13,95 | AT72: 3,23 | AU72: 1,43 | AV72: 0,31 | AW72: 0,94 | AX72: FALSE | AY72: 0 | AZ72: 0
A73: 0 | B73: 1 | C73: 0 | D73: 0 | E73: 1 | F73: 1 | G73: 1 | H73: XB37 | I73: L | J73: 4 | N73: 9 | P73: Woda | T73: Woda | X73: 120 | Y73: 75 | AC73: 70 | AD73: 90 | AK73: 0 | AL73: XB37L-1-10 G 1 (20mm) | AM73: 1*4L/1*5L | AN73: B | AO73: PED Art 4.3 | AP73: 114,2 | AQ73: 0,45 | AR73: 3083,5/1439,8 | AS73: 13,95 | AT73: 3,23 | AU73: 1,43 | AV73: 0,38 | AW73: 1,17 | AX73: FALSE | AY73: 0 | AZ73: 0
A74: 0 | B74: 1 | C74: 0 | D74: 0 | E74: 1 | F74: 1 | G74: 1 | H74: XB37 | I74: L | J74: 4 | N74: 10 | P74: Woda | T74: Woda | X74: 120 | Y74: 75 | AC74: 70 | AD74: 90 | AK74: 0 | AL74: XB37L-1-10 G 1 (20mm) | AM74: 1*4L/1*5L | AN74: B | AO74: PED Art 4.3 | AP74: 107,4 | AQ74: 0,45 | AR74: 3317,6/1599,8 | AS74: 13,95 | AT74: 3,23 | AU74: 1,43 | AV74: 0,46 | AW74: 1,42 | AX74: FALSE | AY74: 0 | AZ74: 0
A75: 0 | B75: 1 | C75: 0 | D75: 0 | E75: 1 | F75: 1 | G75: 1 | H75: XB37 | I75: L | J75: 4 | N75: 11 | P75: Woda | T75: Woda | X75: 120 | Y75: 75 | AC75: 70 | AD75: 90 | AK75: 0 | AL75: XB37L-1-10 G 1 (20mm) | AM75: 1*4L/1*5L | AN75: B | AO75: PED Art 4.3 | AP75: 101,4 | AQ75: 0,45 | AR75: 3544,3/1759,8 | AS75: 13,95 | AT75: 3,23 | AU75: 1,43 | AV75: 0,55 | AW75: 1,69 | AX75: FALSE | AY75: 0 | AZ75: 0
A76: 0 | B76: 1 | C76: 0 | D76: 0 | E76: 1 | F76: 1 | G76: 1 | H76: XB37 | I76: L | J76: 4 | N76: 12 | P76: Woda | T76: Woda | X76: 120 | Y76: 75 | AC76: 70 | AD76: 90 | AK76: 0 | AL76: XB37L-1-10 G 1 (20mm) | AM76: 1*4L/1*5L | AN76: B | AO76: PED Art 4.3 | AP76: 96,1 | AQ76: 0,45 | AR76: 3764,5/1919,7 | AS76: 13,95 | AT76: 3,23 | AU76: 1,43 | AV76: 0,65 | AW76: 1,98 | AX76: FALSE | AY76: 0 | AZ76: 0
A77: 0 | B77: 1 | C77: 0 | D77: 0 | E77: 1 | F77: 1 | G77: 1 | H77: XB37 | I77: L | J77: 4 | N77: 13 | P77: Woda | T77: Woda | X77: 120 | Y77: 75 | AC77: 70 | AD77: 90 | AK77: 0 | AL77: XB37L-1-10 G 1 (20mm) | AM77: 1*4L/1*5L | AN77: B | AO77: PED Art 4.3 | AP77: 91,3 | AQ77: 0,45 | AR77: 3978,9/2079,7 | AS77: 13,95 | AT77: 3,23 | AU77: 1,43 | AV77: 0,75 | AW77: 2,30 | AX77: FALSE | AY77: 0 | AZ77: 0
A78: 0 | B78: 1 | C78: 0 | D78: 0 | E78: 1 | F78: 1 | G78: 1 | H78: XB37 | I78: L | J78: 4 | N78: 14 | P78: Woda | T78: Woda | X78: 120 | Y78: 75 | AC78: 70 | AD78: 90 | AK78: 0 | AL78: XB37L-1-10 G 1 (20mm) | AM78: 1*4L/1*5L | AN78: B | AO78: PED Art 4.3 | AP78: 87,0 | AQ78: 0,45 | AR78: 4188,9/2239,7 | AS78: 13,95 | AT78: 3,23 | AU78: 1,43 | AV78: 0,86 | AW78: 2,63 | AX78: FALSE | AY78: 0 | AZ78: 0
A79: 0 | B79: 1 | C79: 0 | D79: 0 | E79: 1 | F79: 1 | G79: 1 | H79: XB37 | I79: L | J79: 4 | N79: 15 | P79: Woda | T79: Woda | X79: 120 | Y79: 75 | AC79: 70 | AD79: 90 | AK79: 0 | AL79: XB37L-1-10 G 1 (20mm) | AM79: 1*4L/1*5L | AN79: B | AO79: PED Art 4.3 | AP79: 83,2 | AQ79: 0,45 | AR79: 4397,3/2399,7 | AS79: 13,95 | AT79: 3,23 | AU79: 1,43 | AV79: 0,97 | AW79: 2,98 | AX79: FALSE | AY79: 0 | AZ79: 0
A80: 0 | B80: 1 | C80: 0 | D80: 0 | E80: 1 | F80: 1 | G80: 1 | H80: XB37 | I80: L | J80: 4 | N80: 16 | P80: Woda | T80: Woda | X80: 120 | Y80: 75 | AC80: 70 | AD80: 90 | AK80: 0 | AL80: XB37L-1-10 G 1 (20mm) | AM80: 1*4L/1*5L | AN80: B | AO80: PED Art 4.3 | AP80: 79,8 | AQ80: 0,45 | AR80: 4601,4/2559,7 | AS80: 13,95 | AT80: 3,23 | AU80: 1,43 | AV80: 1,09 | AW80: 3,36 | AX80: FALSE | AY80: 0 | AZ80: 0
A81: 0 | B81: 1 | C81: 0 | D81: 0 | E81: 1 | F81: 1 | G81: 1 | H81: XB37 | I81: L | J81: 4 | N81: 17 | P81: Woda | T81: Woda | X81: 120 | Y81: 75 | AC81: 70 | AD81: 90 | AK81: 0 | AL81: XB37L-1-10 G 1 (20mm) | AM81: 1*4L/1*5L | AN81: B | AO81: PED Art 4.3 | AP81: 76,7 | AQ81: 0,45 | AR81: 4804,2/2719,6 | AS81: 13,95 | AT81: 3,23 | AU81: 1,43 | AV81: 1,22 | AW81: 3,66 | AX81: FALSE | AY81: 0 | AZ81: 0
A82: 0 | B82: 1 | C82: 0 | D82: 0 | E82: 1 | F82: 1 | G82: 1 | H82: XB37 | I82: L | J82: 4 | N82: 18 | P82: Woda | T82: Woda | X82: 120 | Y82: 75 | AC82: 70 | AD82: 90 | AK82: 0 | AL82: XB37L-1-10 G 1 (20mm) | AM82: 1*4L/1*5L | AN82: B | AO82: PED Art 4.3 | AP82: 73,7 | AQ82: 0,45 | AR82: 5002,3/2879,6 | AS82: 13,95 | AT82: 3,23 | AU82: 1,43 | AV82: 1,36 | AW82: 4,09 | AX82: FALSE | AY82: 0 | AZ82: 0
A83: 0 | B83: 1 | C83: 0 | D83: 0 | E83: 1 | F83: 1 | G83: 1 | H83: XB37 | I83: L | J83: 4 | N83: 19 | P83: Woda | T83: Woda | X83: 120 | Y83: 75 | AC83: 70 | AD83: 90 | AK83: 0 | AL83: XB37L-1-10 G 1 (20mm) | AM83: 1*4L/1*5L | AN83: B | AO83: PED Art 4.3 | AP83: 70,8 | AQ83: 0,45 | AR83: 5192,6/3039,6 | AS83: 13,95 | AT83: 3,23 | AU83: 1,43 | AV83: 1,50 | AW83: 4,54 | AX83: FALSE | AY83: 0 | AZ83: 0
A84: 0 | B84: 1 | C84: 0 | D84: 0 | E84: 1 | F84: 1 | G84: 1 | H84: XB37 | I84: L | J84: 4 | N84: 20 | P84: Woda | T84: Woda | X84: 120 | Y84: 75 | AC84: 70 | AD84: 90 | AK84: 0 | AL84: XB37L-1-10 G 1 (20mm) | AM84: 1*4L/1*5L | AN84: B | AO84: PED Art 4.3 | AP84: 68,1 | AQ84: 0,45 | AR84: 5379,8/3199,6 | AS84: 13,95 | AT84: 3,23 | AU84: 1,43 | AV84: 1,64 | AW84: 5,01 | AX84: FALSE | AY84: 0 | AZ84: 0
A85: 0 | B85: 1 | C85: 0 | D85: 0 | E85: 1 | F85: 1 | G85: 1 | H85: XB37 | I85: L | J85: 4 | N85: 21 | P85: Woda | T85: Woda | X85: 120 | Y85: 75 | AC85: 70 | AD85: 90 | AK85: 0 | AL85: XB37L-1-10 G 1 (20mm) | AM85: 1*4L/1*5L | AN85: B | AO85: PED Art 4.3 | AP85: 65,6 | AQ85: 0,45 | AR85: 5564,3/3359,5 | AS85: 13,95 | AT85: 3,23 | AU85: 1,43 | AV85: 1,80 | AW85: 5,51 | AX85: FALSE | AY85: 0 | AZ85: 0
A86: 0 | B86: 1 | C86: 0 | D86: 0 | E86: 1 | F86: 1 | G86: 1 | H86: XB37 | I86: L | J86: 4 | N86: 22 | P86: Woda | T86: Woda | X86: 120 | Y86: 75 | AC86: 70 | AD86: 90 | AK86: 0 | AL86: XB37L-1-10 G 1 (20mm) | AM86: 1*4L/1*5L | AN86: B | AO86: PED Art 4.3 | AP86: 63,3 | AQ86: 0,45 | AR86: 5746,3/3519,5 | AS86: 13,95 | AT86: 3,23 | AU86: 1,43 | AV86: 1,96 | AW86: 6,02 | AX86: FALSE | AY86: 0 | AZ86: 0
A87: 0 | B87: 1 | C87: 0 | D87: 0 | E87: 1 | F87: 1 | G87: 1 | H87: XB37 | I87: L | J87: 4 | N87: 23 | P87: Woda | T87: Woda | X87: 120 | Y87: 75 | AC87: 70 | AD87: 90 | AK87: 0 | AL87: XB37L-1-10 G 1 (20mm) | AM87: 1*4L/1*5L | AN87: B | AO87: PED Art 4.3 | AP87: 61,1 | AQ87: 0,45 | AR87: 5926,2/3679,5 | AS87: 13,95 | AT87: 3,23 | AU87: 1,43 | AV87: 2,12 | AW87: 6,56 | AX87: FALSE | AY87: 0 | AZ87: 0
A88: 0 | B88: 1 | C88: 0 | D88: 0 | E88: 1 | F88: 1 | G88: 1 | H88: XB37 | I88: L | J88: 4 | N88: 24 | P88: Woda | T88: Woda | X88: 120 | Y88: 75 | AC88: 70 | AD88: 90 | AK88: 0 | AL88: XB37L-1-10 G 1 (20mm) | AM88: 1*4L/1*5L | AN88: B | AO88: PED Art 4.3 | AP88: 59,0 | AQ88: 0,45 | AR88: 6104,4/3839,5 | AS88: 13,95 | AT88: 3,23 | AU88: 1,43 | AV88: 2,29 | AW88: 7,13 | AX88: FALSE | AY88: 0 | AZ88: 0
A89: 0 | B89: 1 | C89: 0 | D89: 0 | E89: 1 | F89: 1 | G89: 1 | H89: XB37 | I89: L | J89: 4 | N89: 25 | P89: Woda | T89: Woda | X89: 120 | Y89: 75 | AC89: 70 | AD89: 90 | AK89: 0 | AL89: XB37L-1-10 G 1 (20mm) | AM89: 1*4L/1*5L | AN89: B | AO89: PED Art 4.3 | AP89: 56,9 | AQ89: 0,45 | AR89: 6275,6/3999,5 | AS89: 13,95 | AT89: 3,23 | AU89: 1,43 | AV89: 2,41 | AW89: 7,71 | AX89: FALSE | AY89: 0 | AZ89: 0
A90: 0 | B90: 1 | C90: 0 | D90: 0 | E90: 1 | F90: 1 | G90: 1 | H90: XB37 | I90: L | J90: 4 | N90: 26 | P90: Woda | T90: Woda | X90: 120 | Y90: 75 | AC90: 70 | AD90: 90 | AK90: 0 | AL90: XB37L-1-10 G 1 (20mm) | AM90: 1*4L/1*5L | AN90: B | AO90: PED Art 4.3 | AP90: 55,1 | AQ90: 0,45 | AR90: 6450,3/4159,4 | AS90: 13,95 | AT90: 3,23 | AU90: 1,43 | AV90: 2,60 | AW90: 8,32 | AX90: FALSE | AY90: 0 | AZ90: 0
A91: 0 | B91: 1 | C91: 0 | D91: 0 | E91: 1 | F91: 1 | G91: 1 | H91: XB37 | I91: L | J91: 4 | N91: 27 | P91: Woda | T91: Woda | X91: 120 | Y91: 75 | AC91: 70 | AD91: 90 | AK91: 0 | AL91: XB37L-1-10 G 1 (20mm) | AM91: 1*4L/1*5L | AN91: B | AO91: PED Art 4.3 | AP91: 53,4 | AQ91: 0,45 | AR91: 6625,0/4319,4 | AS91: 13,95 | AT91: 3,23 | AU91: 1,43 | AV91: 2,80 | AW91: 8,95 | AX91: FALSE | AY91: 0 | AZ91: 0
A92: 0 | B92: 1 | C92: 0 | D92: 0 | E92: 1 | F92: 1 | G92: 1 | H92: XB37 | I92: L | J92: 4 | N92: 28 | P92: Woda | T92: Woda | X92: 120 | Y92: 75 | AC92: 70 | AD92: 90 | AK92: 0 | AL92: XB37L-1-10 G 1 (20mm) | AM92: 1*4L/1*5L | AN92: B | AO92: PED Art 4.3 | AP92: 51,6 | AQ92: 0,45 | AR92: 6789,4/4479,4 | AS92: 13,95 | AT92: 3,23 | AU92: 1,43 | AV92: 3,00 | AW92: 9,60 | AX92: FALSE | AY92: 0 | AZ92: 0
A93: 0 | B93: 1 | C93: 0 | D93: 0 | E93: 1 | F93: 1 | G93: 1 | H93: XB37 | I93: L | J93: 4 | N93: 29 | P93: Woda | T93: Woda | X93: 120 | Y93: 75 | AC93: 70 | AD93: 90 | AK93: 0 | AL93: XB37L-1-10 G 1 (20mm) | AM93: 1*4L/1*5L | AN93: B | AO93: PED Art 4.3 | AP93: 50,1 | AQ93: 0,45 | AR93: 6964,1/4639,4 | AS93: 13,95 | AT93: 3,23 | AU93: 1,43 | AV93: 3,21 | AW93: 10,27 | AX93: FALSE | AY93: 0 | AZ93: 0
A94: 0 | B94: 1 | C94: 0 | D94: 0 | E94: 1 | F94: 1 | G94: 1 | H94: XB37 | I94: L | J94: 4 | N94: 30 | P94: Woda | T94: Woda | X94: 120 | Y94: 75 | AC94: 70 | AD94: 90 | AK94: 0 | AL94: XB37L-1-10 G 1 (20mm) | AM94: 1*4L/1*5L | AN94: B | AO94: PED Art 4.3 | AP94: 48,4 | AQ94: 0,45 | AR94: 7124,6/4799,4 | AS94: 13,95 | AT94: 3,23 | AU94: 1,43 | AV94: 3,43 | AW94: 10,96 | AX94: FALSE | AY94: 0 | AZ94: 0
A95: 0 | B95: 1 | C95: 0 | D95: 0 | E95: 1 | F95: 1 | G95: 1 | H95: XB37 | I95: L | J95: 4 | N95: 1 | P95: Woda | T95: Woda | X95: 115 | Y95: 75 | AC95: 70 | AD95: 90 | AK95: 0 | AL95: XB37L-1-10 G 1 (20mm) | AM95: 1*4L/1*5L | AN95: B | AO95: PED Art 4.3 | AP95: 288,0 | AQ95: 0,45 | AR95: 696,9/179,6 | AS95: 12,43 | AT95: 3,22 | AU95: 1,61 | AV95: 0,01 | AW95: 0,02 | AX95: FALSE | AY95: 0 | AZ95: 0
A96: 0 | B96: 1 | C96: 0 | D96: 0 | E96: 1 | F96: 1 | G96: 1 | H96: XB37 | I96: L | J96: 4 | N96: 2 | P96: Woda | T96: Woda | X96: 115 | Y96: 75 | AC96: 70 | AD96: 90 | AK96: 0 | AL96: XB37L-1-10 G 1 (20mm) | AM96: 1*4L/1*5L | AN96: B | AO96: PED Art 4.3 | AP96: 215,8 | AQ96: 0,45 | AR96: 1134,5/359,2 | AS96: 12,43 | AT96: 3,22 | AU96: 1,61 | AV96: 0,03 | AW96: 0,07 | AX96: FALSE | AY96: 0 | AZ96: 0
A97: 0 | B97: 1 | C97: 0 | D97: 0 | E97: 1 | F97: 1 | G97: 1 | H97: XB37 | I97: L | J97: 4 | N97: 3 | P97: Woda | T97: Woda | X97: 115 | Y97: 75 | AC97: 70 | AD97: 90 | AK97: 0 | AL97: XB37L-1-10 G 1 (20mm) | AM97: 1*4L/1*5L | AN97: B | AO97: PED Art 4.3 | AP97: 179,9 | AQ97: 0,45 | AR97: 1508,4/538,9 | AS97: 12,43 | AT97: 3,22 | AU97: 1,61 | AV97: 0,06 | AW97: 0,16 | AX97: FALSE | AY97: 0 | AZ97: 0
A98: 0 | B98: 1 | C98: 0 | D98: 0 | E98: 1 | F98: 1 | G98: 1 | H98: XB37 | I98: L | J98: 4 | N98: 4 | P98: Woda | T98: Woda | X98: 115 | Y98: 75 | AC98: 70 | AD98: 90 | AK98: 0 | AL98: XB37L-1-10 G 1 (20mm) | AM98: 1*4L/1*5L | AN98: B | AO98: PED Art 4.3 | AP98: 156,9 | AQ98: 0,45 | AR98: 1845,8/718,5 | AS98: 12,43 | AT98: 3,22 | AU98: 1,61 | AV98: 0,11 | AW98: 0,27 | AX98: FALSE | AY98: 0 | AZ98: 0
A99: 0 | B99: 1 | C99: 0 | D99: 0 | E99: 1 | F99: 1 | G99: 1 | H99: XB37 | I99: L | J99: 4 | N99: 5 | P99: Woda | T99: Woda | X99: 115 | Y99: 75 | AC99: 70 | AD99: 90 | AK99: 0 | AL99: XB37L-1-10 G 1 (20mm) | AM99: 1*4L/1*5L | AN99: B | AO99: PED Art 4.3 | AP99: 140,3 | AQ99: 0,45 | AR99: 2158,3/898,1 | AS99: 12,43 | AT99: 3,22 | AU99: 1,61 | AV99: 0,16 | AW99: 0,40 | AX99: FALSE | AY99: 0 | AZ99: 0
A100: 0 | B100: 1 | C100: 0 | D100: 0 | E100: 1 | F100: 1 | G100: 1 | H100: XB37 | I100: L | J100: 4 | N100: 6 | P100: Woda | T100: Woda | X100: 115 | Y100: 75 | AC100: 70 | AD100: 90 | AK100: 0 | AL100: XB37L-1-10 G 1 (20mm) | AM100: 1*4L/1*5L | AN100: B | AO100: PED Art 4.3 | AP100: 127,5 | AQ100: 0,45 | AR100: 2452,0/1077,7 | AS100: 12,43 | AT100: 3,22 | AU100: 1,61 | AV100: 0,23 | AW100: 0,56 | AX100: FALSE | AY100: 0 | AZ100: 0
A101: 0 | B101: 1 | C101: 0 | D101: 0 | E101: 1 | F101: 1 | G101: 1 | H101: XB37 | I101: L | J101: 4 | N101: 7 | P101: Woda | T101: Woda | X101: 115 | Y101: 75 | AC101: 70 | AD101: 90 | AK101: 0 | AL101: XB37L-1-10 G 1 (20mm) | AM101: 1*4L/1*5L | AN101: B | AO101: PED Art 4.3 | AP101: 117,2 | AQ101: 0,45 | AR101: 2730,9/1257,4 | AS101: 12,43 | AT101: 3,22 | AU101: 1,61 | AV101: 0,30 | AW101: 0,74 | AX101: FALSE | AY101: 0 | AZ101: 0
A102: 0 | B102: 1 | C102: 0 | D102: 0 | E102: 1 | F102: 1 | G102: 1 | H102: XB37 | I102: L | J102: 4 | N102: 8 | P102: Woda | T102: Woda | X102: 115 | Y102: 75 | AC102: 70 | AD102: 90 | AK102: 0 | AL102: XB37L-1-10 G 1 (20mm) | AM102: 1*4L/1*5L | AN102: B | AO102: PED Art 4.3 | AP102: 108,6 | AQ102: 0,45 | AR102: 2997,7/1437,0 | AS102: 12,43 | AT102: 3,22 | AU102: 1,61 | AV102: 0,38 | AW102: 0,94 | AX102: FALSE | AY102: 0 | AZ102: 0
A103: 0 | B103: 1 | C103: 0 | D103: 0 | E103: 1 | F103: 1 | G103: 1 | H103: XB37 | I103: L | J103: 4 | N103: 9 | P103: Woda | T103: Woda | X103: 115 | Y103: 75 | AC103: 70 | AD103: 90 | AK103: 0 | AL103: XB37L-1-10 G 1 (20mm) | AM103: 1*4L/1*5L | AN103: B | AO103: PED Art 4.3 | AP103: 101,3 | AQ103: 0,45 | AR103: 3254,1/1616,6 | AS103: 12,43 | AT103: 3,22 | AU103: 1,61 | AV103: 0,48 | AW103: 1,17 | AX103: FALSE | AY103: 0 | AZ103: 0
A104: 0 | B104: 1 | C104: 0 | D104: 0 | E104: 1 | F104: 1 | G104: 1 | H104: XB37 | I104: L | J104: 4 | N104: 10 | P104: Woda | T104: Woda | X104: 115 | Y104: 75 | AC104: 70 | AD104: 90 | AK104: 0 | AL104: XB37L-1-10 G 1 (20mm) | AM104: 1*4L/1*5L | AN104: B | AO104: PED Art 4.3 | AP104: 94,9 | AQ104: 0,45 | AR104: 3501,7/1796,2 | AS104: 12,43 | AT104: 3,22 | AU104: 1,61 | AV104: 0,58 | AW104: 1,42 | AX104: FALSE | AY104: 0 | AZ104: 0
A105: 0 | B105: 1 | C105: 0 | D105: 0 | E105: 1 | F105: 1 | G105: 1 | H105: XB37 | I105: L | J105: 4 | N105: 11 | P105: Woda | T105: Woda | X105: 115 | Y105: 75 | AC105: 70 | AD105: 90 | AK105: 0 | AL105: XB37L-1-10 G 1 (20mm) | AM105: 1*4L/1*5L | AN105: B | AO105: PED Art 4.3 | AP105: 89,4 | AQ105: 0,45 | AR105: 3741,6/1975,9 | AS105: 12,43 | AT105: 3,22 | AU105: 1,61 | AV105: 0,69 | AW105: 1,69 | AX105: FALSE | AY105: 0 | AZ105: 0
A106: 0 | B106: 1 | C106: 0 | D106: 0 | E106: 1 | F106: 1 | G106: 1 | H106: XB37 | I106: L | J106: 4 | N106: 12 | P106: Woda | T106: Woda | X106: 115 | Y106: 75 | AC106: 70 | AD106: 90 | AK106: 0 | AL106: XB37L-1-10 G 1 (20mm) | AM106: 1*4L/1*5L | AN106: B | AO106: PED Art 4.3 | AP106: 84,4 | AQ106: 0,45 | AR106: 3974,6/2155,5 | AS106: 12,43 | AT106: 3,22 | AU106: 1,61 | AV106: 0,81 | AW106: 1,98 | AX106: FALSE | AY106: 0 | AZ106: 0
A107: 0 | B107: 1 | C107: 0 | D107: 0 | E107: 1 | F107: 1 | G107: 1 | H107: XB37 | I107: L | J107: 4 | N107: 13 | P107: Woda | T107: Woda | X107: 115 | Y107: 75 | AC107: 70 | AD107: 90 | AK107: 0 | AL107: XB37L-1-10 G 1 (20mm) | AM107: 1*4L/1*5L | AN107: B | AO107: PED Art 4.3 | AP107: 79,9 | AQ107: 0,45 | AR107: 4201,4/2335,1 | AS107: 12,43 | AT107: 3,22 | AU107: 1,61 | AV107: 0,93 | AW107: 2,30 | AX107: FALSE | AY107: 0 | AZ107: 0
A108: 0 | B108: 1 | C108: 0 | D108: 0 | E108: 1 | F108: 1 | G108: 1 | H108: XB37 | I108: L | J108: 4 | N108: 14 | P108: Woda | T108: Woda | X108: 115 | Y108: 75 | AC108: 70 | AD108: 90 | AK108: 0 | AL108: XB37L-1-10 G 1 (20mm) | AM108: 1*4L/1*5L | AN108: B | AO108: PED Art 4.3 | AP108: 75,9 | AQ108: 0,45 | AR108: 4424,0/2514,7 | AS108: 12,43 | AT108: 3,22 | AU108: 1,61 | AV108: 1,07 | AW108: 2,63 | AX108: FALSE | AY108: 0 | AZ108: 0
A109: 0 | B109: 1 | C109: 0 | D109: 0 | E109: 1 | F109: 1 | G109: 1 | H109: XB37 | I109: L | J109: 4 | N109: 15 | P109: Woda | T109: Woda | X109: 115 | Y109: 75 | AC109: 70 | AD109: 90 | AK109: 0 | AL109: XB37L-1-10 G 1 (20mm) | AM109: 1*4L/1*5L | AN109: B | AO109: PED Art 4.3 | AP109: 72,4 | AQ109: 0,45 | AR109: 4645,9/2694,4 | AS109: 12,43 | AT109: 3,22 | AU109: 1,61 | AV109: 1,21 | AW109: 2,98 | AX109: FALSE | AY109: 0 | AZ109: 0
A110: 0 | B110: 1 | C110: 0 | D110: 0 | E110: 1 | F110: 1 | G110: 1 | H110: XB37 | I110: L | J110: 4 | N110: 16 | P110: Woda | T110: Woda | X110: 115 | Y110: 75 | AC110: 70 | AD110: 90 | AK110: 0 | AL110: XB37L-1-10 G 1 (20mm) | AM110: 1*4L/1*5L | AN110: B | AO110: PED Art 4.3 | AP110: 69,2 | AQ110: 0,45 | AR110: 4863,6/2874,0 | AS110: 12,43 | AT110: 3,22 | AU110: 1,61 | AV110: 1,36 | AW110: 3,36 | AX110: FALSE | AY110: 0 | AZ110: 0
A111: 0 | B111: 1 | C111: 0 | D111: 0 | E111: 1 | F111: 1 | G111: 1 | H111: XB37 | I111: L | J111: 4 | N111: 17 | P111: Woda | T111: Woda | X111: 115 | Y111: 75 | AC111: 70 | AD111: 90 | AK111: 0 | AL111: XB37L-1-10 G 1 (20mm) | AM111: 1*4L/1*5L | AN111: B | AO111: PED Art 4.3 | AP111: 66,4 | AQ111: 0,45 | AR111: 5082,2/3053,6 | AS111: 12,43 | AT111: 3,22 | AU111: 1,61 | AV111: 1,52 | AW111: 3,66 | AX111: FALSE | AY111: 0 | AZ111: 0
A112: 0 | B112: 1 | C112: 0 | D112: 0 | E112: 1 | F112: 1 | G112: 1 | H112: XB37 | I112: L | J112: 4 | N112: 18 | P112: Woda | T112: Woda | X112: 115 | Y112: 75 | AC112: 70 | AD112: 90 | AK112: 0 | AL112: XB37L-1-10 G 1 (20mm) | AM112: 1*4L/1*5L | AN112: B | AO112: PED Art 4.3 | AP112: 63,5 | AQ112: 0,45 | AR112: 5287,7/3233,2 | AS112: 12,43 | AT112: 3,22 | AU112: 1,61 | AV112: 1,69 | AW112: 4,09 | AX112: FALSE | AY112: 0 | AZ112: 0
A113: 0 | B113: 1 | C113: 0 | D113: 0 | E113: 1 | F113: 1 | G113: 1 | H113: XB37 | I113: L | J113: 4 | N113: 19 | P113: Woda | T113: Woda | X113: 115 | Y113: 75 | AC113: 70 | AD113: 90 | AK113: 0 | AL113: XB37L-1-10 G 1 (20mm) | AM113: 1*4L/1*5L | AN113: B | AO113: PED Art 4.3 | AP113: 60,9 | AQ113: 0,45 | AR113: 5492,8/3412,9 | AS113: 12,43 | AT113: 3,22 | AU113: 1,61 | AV113: 1,87 | AW113: 4,54 | AX113: FALSE | AY113: 0 | AZ113: 0
A114: 0 | B114: 1 | C114: 0 | D114: 0 | E114: 1 | F114: 1 | G114: 1 | H114: XB37 | I114: L | J114: 4 | N114: 20 | P114: Woda | T114: Woda | X114: 115 | Y114: 75 | AC114: 70 | AD114: 90 | AK114: 0 | AL114: XB37L-1-10 G 1 (20mm) | AM114: 1*4L/1*5L | AN114: B | AO114: PED Art 4.3 | AP114: 58,5 | AQ114: 0,45 | AR114: 5692,5/3592,5 | AS114: 12,43 | AT114: 3,22 | AU114: 1,61 | AV114: 2,05 | AW114: 5,01 | AX114: FALSE | AY114: 0 | AZ114: 0
A115: 0 | B115: 1 | C115: 0 | D115: 0 | E115: 1 | F115: 1 | G115: 1 | H115: XB37 | I115: L | J115: 4 | N115: 21 | P115: Woda | T115: Woda | X115: 115 | Y115: 75 | AC115: 70 | AD115: 90 | AK115: 0 | AL115: XB37L-1-10 G 1 (20mm) | AM115: 1*4L/1*5L | AN115: B | AO115: PED Art 4.3 | AP115: 56,0 | AQ115: 0,45 | AR115: 5885,3/3772,1 | AS115: 12,43 | AT115: 3,22 | AU115: 1,61 | AV115: 2,24 | AW115: 5,51 | AX115: FALSE | AY115: 0 | AZ115: 0
A116: 0 | B116: 1 | C116: 0 | D116: 0 | E116: 1 | F116: 1 | G116: 1 | H116: XB37 | I116: L | J116: 4 | N116: 22 | P116: Woda | T116: Woda | X116: 115 | Y116: 75 | AC116: 70 | AD116: 90 | AK116: 0 | AL116: XB37L-1-10 G 1 (20mm) | AM116: 1*4L/1*5L | AN116: B | AO116: PED Art 4.3 | AP116: 53,8 | AQ116: 0,45 | AR116: 6079,5/3951,7 | AS116: 12,43 | AT116: 3,22 | AU116: 1,61 | AV116: 2,44 | AW116: 6,02 | AX116: FALSE | AY116: 0 | AZ116: 0
A117: 0 | B117: 1 | C117: 0 | D117: 0 | E117: 1 | F117: 1 | G117: 1 | H117: XB37 | I117: L | J117: 4 | N117: 23 | P117: Woda | T117: Woda | X117: 115 | Y117: 75 | AC117: 70 | AD117: 90 | AK117: 0 | AL117: XB37L-1-10 G 1 (20mm) | AM117: 1*4L/1*5L | AN117: B | AO117: PED Art 4.3 | AP117: 51,8 | AQ117: 0,45 | AR117: 6272,1/4131,4 | AS117: 12,43 | AT117: 3,22 | AU117: 1,61 | AV117: 2,58 | AW117: 6,56 | AX117: FALSE | AY117: 0 | AZ117: 0
A118: 0 | B118: 1 | C118: 0 | D118: 0 | E118: 1 | F118: 1 | G118: 1 | H118: XB37 | I118: L | J118: 4 | N118: 24 | P118: Woda | T118: Woda | X118: 115 | Y118: 75 | AC118: 70 | AD118: 90 | AK118: 0 | AL118: XB37L-1-10 G 1 (20mm) | AM118: 1*4L/1*5L | AN118: B | AO118: PED Art 4.3 | AP118: 49,9 | AQ118: 0,45 | AR118: 6464,1/4311,0 | AS118: 12,43 | AT118: 3,22 | AU118: 1,61 | AV118: 2,80 | AW118: 7,13 | AX118: FALSE | AY118: 0 | AZ118: 0
A119: 0 | B119: 1 | C119: 0 | D119: 0 | E119: 1 | F119: 1 | G119: 1 | H119: XB37 | I119: L | J119: 4 | N119: 25 | P119: Woda | T119: Woda | X119: 115 | Y119: 75 | AC119: 70 | AD119: 90 | AK119: 0 | AL119: XB37L-1-10 G 1 (20mm) | AM119: 1*4L/1*5L | AN119: B | AO119: PED Art 4.3 | AP119: 48,0 | AQ119: 0,45 | AR119: 6645,5/4490,6 | AS119: 12,43 | AT119: 3,22 | AU119: 1,61 | AV119: 3,03 | AW119: 7,71 | AX119: FALSE | AY119: 0 | AZ119: 0
A120: 0 | B120: 1 | C120: 0 | D120: 0 | E120: 1 | F120: 1 | G120: 1 | H120: XB37 | I120: L | J120: 4 | N120: 26 | P120: Woda | T120: Woda | X120: 115 | Y120: 75 | AC120: 70 | AD120: 90 | AK120: 0 | AL120: XB37L-1-10 G 1 (20mm) | AM120: 1*4L/1*5L | AN120: B | AO120: PED Art 4.3 | AP120: 46,4 | AQ120: 0,45 | AR120: 6836,2/4670,2 | AS120: 12,43 | AT120: 3,22 | AU120: 1,61 | AV120: 3,27 | AW120: 8,32 | AX120: FALSE | AY120: 0 | AZ120: 0
A121: 0 | B121: 1 | C121: 0 | D121: 0 | E121: 1 | F121: 1 | G121: 1 | H121: XB37 | I121: L | J121: 4 | N121: 27 | P121: Woda | T121: Woda | X121: 115 | Y121: 75 | AC121: 70 | AD121: 90 | AK121: 0 | AL121: XB37L-1-10 G 1 (20mm) | AM121: 1*4L/1*5L | AN121: B | AO121: PED Art 4.3 | AP121: 44,6 | AQ121: 0,45 | AR121: 7012,8/4849,9 | AS121: 12,43 | AT121: 3,22 | AU121: 1,61 | AV121: 3,52 | AW121: 8,95 | AX121: FALSE | AY121: 0 | AZ121: 0
A122: 0 | B122: 1 | C122: 0 | D122: 0 | E122: 1 | F122: 1 | G122: 1 | H122: XB37 | I122: L | J122: 4 | N122: 28 | P122: Woda | T122: Woda | X122: 115 | Y122: 75 | AC122: 70 | AD122: 90 | AK122: 0 | AL122: XB37L-1-10 G 1 (20mm) | AM122: 1*4L/1*5L | AN122: B | AO122: PED Art 4.3 | AP122: 42,9 | AQ122: 0,45 | AR122: 7187,1/5029,5 | AS122: 12,43 | AT122: 3,22 | AU122: 1,61 | AV122: 3,78 | AW122: 9,60 | AX122: FALSE | AY122: 0 | AZ122: 0
A123: 0 | B123: 1 | C123: 0 | D123: 0 | E123: 1 | F123: 1 | G123: 1 | H123: XB37 | I123: L | J123: 4 | N123: 29 | P123: Woda | T123: Woda | X123: 115 | Y123: 75 | AC123: 70 | AD123: 90 | AK123: 0 | AL123: XB37L-1-10 G 1 (20mm) | AM123: 1*4L/1*5L | AN123: B | AO123: PED Art 4.3 | AP123: 41,3 | AQ123: 0,45 | AR123: 7359,3/5209,1 | AS123: 12,43 | AT123: 3,22 | AU123: 1,61 | AV123: 4,04 | AW123: 10,27 | AX123: FALSE | AY123: 0 | AZ123: 0
A124: 0 | B124: 1 | C124: 0 | D124: 0 | E124: 1 | F124: 1 | G124: 1 | H124: XB37 | I124: L | J124: 4 | N124: 30 | P124: Woda | T124: Woda | X124: 115 | Y124: 75 | AC124: 70 | AD124: 90 | AK124: 0 | AL124: XB37L-1-10 G 1 (20mm) | AM124: 1*4L/1*5L | AN124: B | AO124: PED Art 4.3 | AP124: 39,7 | AQ124: 0,45 | AR124: 7529,3/5388,7 | AS124: 12,43 | AT124: 3,22 | AU124: 1,61 | AV124: 4,31 | AW124: 10,96 | AX124: FALSE | AY124: 0 | AZ124: 0
A125: 0 | B125: 1 | C125: 0 | D125: 0 | E125: 1 | F125: 1 | G125: 1 | H125: XB37 | I125: L | J125: 4 | N125: 1 | P125: Woda | T125: Woda | X125: 110 | Y125: 75 | AC125: 70 | AD125: 90 | AK125: 0 | AL125: XB37L-1-10 G 1 (20mm) | AM125: 1*4L/1*5L | AN125: B | AO125: PED Art 4.3 | AP125: 257,7 | AQ125: 0,45 | AR125: 737,9/206,3 | AS125: 10,82 | AT125: 3,24 | AU125: 1,85 | AV125: 0,01 | AW125: 0,02 | AX125: FALSE | AY125: 0 | AZ125: 0
A126: 0 | B126: 1 | C126: 0 | D126: 0 | E126: 1 | F126: 1 | G126: 1 | H126: XB37 | I126: L | J126: 4 | N126: 2 | P126: Woda | T126: Woda | X126: 110 | Y126: 75 | AC126: 70 | AD126: 90 | AK126: 0 | AL126: XB37L-1-10 G 1 (20mm) | AM126: 1*4L/1*5L | AN126: B | AO126: PED Art 4.3 | AP126: 191,5 | AQ126: 0,45 | AR126: 1202,6/412,6 | AS126: 10,82 | AT126: 3,24 | AU126: 1,85 | AV126: 0,04 | AW126: 0,07 | AX126: FALSE | AY126: 0 | AZ126: 0
A127: 0 | B127: 1 | C127: 0 | D127: 0 | E127: 1 | F127: 1 | G127: 1 | H127: XB37 | I127: L | J127: 4 | N127: 3 | P127: Woda | T127: Woda | X127: 110 | Y127: 75 | AC127: 70 | AD127: 90 | AK127: 0 | AL127: XB37L-1-10 G 1 (20mm) | AM127: 1*4L/1*5L | AN127: B | AO127: PED Art 4.3 | AP127: 158,5 | AQ127: 0,45 | AR127: 1600,0/618,9 | AS127: 10,82 | AT127: 3,24 | AU127: 1,85 | AV127: 0,08 | AW127: 0,16 | AX127: FALSE | AY127: 0 | AZ127: 0
A128: 0 | B128: 1 | C128: 0 | D128: 0 | E128: 1 | F128: 1 | G128: 1 | H128: XB37 | I128: L | J128: 4 | N128: 4 | P128: Woda | T128: Woda | X128: 110 | Y128: 75 | AC128: 70 | AD128: 90 | AK128: 0 | AL128: XB37L-1-10 G 1 (20mm) | AM128: 1*4L/1*5L | AN128: B | AO128: PED Art 4.3 | AP128: 137,4 | AQ128: 0,45 | AR128: 1959,0/825,2 | AS128: 10,82 | AT128: 3,24 | AU128: 1,85 | AV128: 0,14 | AW128: 0,27 | AX128: FALSE | AY128: 0 | AZ128: 0
A129: 0 | B129: 1 | C129: 0 | D129: 0 | E129: 1 | F129: 1 | G129: 1 | H129: XB37 | I129: L | J129: 4 | N129: 5 | P129: Woda | T129: Woda | X129: 110 | Y129: 75 | AC129: 70 | AD129: 90 | AK129: 0 | AL129: XB37L-1-10 G 1 (20mm) | AM129: 1*4L/1*5L | AN129: B | AO129: PED Art 4.3 | AP129: 122,2 | AQ129: 0,45 | AR129: 2291,5/1031,5 | AS129: 10,82 | AT129: 3,24 | AU129: 1,85 | AV129: 0,21 | AW129: 0,40 | AX129: FALSE | AY129: 0 | AZ129: 0
A130: 0 | B130: 1 | C130: 0 | D130: 0 | E130: 1 | F130: 1 | G130: 1 | H130: XB37 | I130: L | J130: 4 | N130: 6 | P130: Woda | T130: Woda | X130: 110 | Y130: 75 | AC130: 70 | AD130: 90 | AK130: 0 | AL130: XB37L-1-10 G 1 (20mm) | AM130: 1*4L/1*5L | AN130: B | AO130: PED Art 4.3 | AP130: 110,4 | AQ130: 0,45 | AR130: 2604,3/1237,8 | AS130: 10,82 | AT130: 3,24 | AU130: 1,85 | AV130: 0,29 | AW130: 0,56 | AX130: FALSE | AY130: 0 | AZ130: 0
A131: 0 | B131: 1 | C131: 0 | D131: 0 | E131: 1 | F131: 1 | G131: 1 | H131: XB37 | I131: L | J131: 4 | N131: 7 | P131: Woda | T131: Woda | X131: 110 | Y131: 75 | AC131: 70 | AD131: 90 | AK131: 0 | AL131: XB37L-1-10 G 1 (20mm) | AM131: 1*4L/1*5L | AN131: B | AO131: PED Art 4.3 | AP131: 100,9 | AQ131: 0,45 | AR131: 2901,5/1444,1 | AS131: 10,82 | AT131: 3,24 | AU131: 1,85 | AV131: 0,39 | AW131: 0,74 | AX131: FALSE | AY131: 0 | AZ131: 0
A132: 0 | B132: 1 | C132: 0 | D132: 0 | E132: 1 | F132: 1 | G132: 1 | H132: XB37 | I132: L | J132: 4 | N132: 8 | P132: Woda | T132: Woda | X132: 110 | Y132: 75 | AC132: 70 | AD132: 90 | AK132: 0 | AL132: XB37L-1-10 G 1 (20mm) | AM132: 1*4L/1*5L | AN132: B | AO132: PED Art 4.3 | AP132: 93,0 | AQ132: 0,45 | AR132: 3185,8/1650,4 | AS132: 10,82 | AT132: 3,24 | AU132: 1,85 | AV132: 0,49 | AW132: 0,94 | AX132: FALSE | AY132: 0 | AZ132: 0
A133: 0 | B133: 1 | C133: 0 | D133: 0 | E133: 1 | F133: 1 | G133: 1 | H133: XB37 | I133: L | J133: 4 | N133: 9 | P133: Woda | T133: Woda | X133: 110 | Y133: 75 | AC133: 70 | AD133: 90 | AK133: 0 | AL133: XB37L-1-10 G 1 (20mm) | AM133: 1*4L/1*5L | AN133: B | AO133: PED Art 4.3 | AP133: 86,3 | AQ133: 0,45 | AR133: 3459,2/1856,6 | AS133: 10,82 | AT133: 3,24 | AU133: 1,85 | AV133: 0,61 | AW133: 1,17 | AX133: FALSE | AY133: 0 | AZ133: 0
A134: 0 | B134: 1 | C134: 0 | D134: 0 | E134: 1 | F134: 1 | G134: 1 | H134: XB37 | I134: L | J134: 4 | N134: 10 | P134: Woda | T134: Woda | X134: 110 | Y134: 75 | AC134: 70 | AD134: 90 | AK134: 0 | AL134: XB37L-1-10 G 1 (20mm) | AM134: 1*4L/1*5L | AN134: B | AO134: PED Art 4.3 | AP134: 80,5 | AQ134: 0,45 | AR134: 3723,3/2062,9 | AS134: 10,82 | AT134: 3,24 | AU134: 1,85 | AV134: 0,74 | AW134: 1,42 | AX134: =AND(N134=$AZ$4,X134=$BA$4,AD134=$BB$4) -> FALSE | AY134: =AX134*AV134 -> 0 | AZ134: =AX134*AW134 -> 0
A135: 0 | B135: 1 | C135: 0 | D135: 0 | E135: 1 | F135: 1 | G135: 1 | H135: XB37 | I135: L | J135: 4 | N135: 11 | P135: Woda | T135: Woda | X135: 110 | Y135: 75 | AC135: 70 | AD135: 90 | AK135: 0 | AL135: XB37L-1-10 G 1 (20mm) | AM135: 1*4L/1*5L | AN135: B | AO135: PED Art 4.3 | AP135: 75,4 | AQ135: 0,45 | AR135: 3979,2/2269,2 | AS135: 10,82 | AT135: 3,24 | AU135: 1,85 | AV135: 0,88 | AW135: 1,69 | AX135: FALSE | AY135: 0 | AZ135: 0
A136: 0 | B136: 1 | C136: 0 | D136: 0 | E136: 1 | F136: 1 | G136: 1 | H136: XB37 | I136: L | J136: 4 | N136: 12 | P136: Woda | T136: Woda | X136: 110 | Y136: 75 | AC136: 70 | AD136: 90 | AK136: 0 | AL136: XB37L-1-10 G 1 (20mm) | AM136: 1*4L/1*5L | AN136: B | AO136: PED Art 4.3 | AP136: 70,8 | AQ136: 0,45 | AR136: 4227,8/2475,5 | AS136: 10,82 | AT136: 3,24 | AU136: 1,85 | AV136: 1,03 | AW136: 1,98 | AX136: FALSE | AY136: 0 | AZ136: 0
A137: 0 | B137: 1 | C137: 0 | D137: 0 | E137: 1 | F137: 1 | G137: 1 | H137: XB37 | I137: L | J137: 4 | N137: 13 | P137: Woda | T137: Woda | X137: 110 | Y137: 75 | AC137: 70 | AD137: 90 | AK137: 0 | AL137: XB37L-1-10 G 1 (20mm) | AM137: 1*4L/1*5L | AN137: B | AO137: PED Art 4.3 | AP137: 66,7 | AQ137: 0,45 | AR137: 4469,9/2681,8 | AS137: 10,82 | AT137: 3,24 | AU137: 1,85 | AV137: 1,20 | AW137: 2,30 | AX137: FALSE | AY137: 0 | AZ137: 0
A138: 0 | B138: 1 | C138: 0 | D138: 0 | E138: 1 | F138: 1 | G138: 1 | H138: XB37 | I138: L | J138: 4 | N138: 14 | P138: Woda | T138: Woda | X138: 110 | Y138: 75 | AC138: 70 | AD138: 90 | AK138: 0 | AL138: XB37L-1-10 G 1 (20mm) | AM138: 1*4L/1*5L | AN138: B | AO138: PED Art 4.3 | AP138: 63,0 | AQ138: 0,45 | AR138: 4708,0/2888,1 | AS138: 10,82 | AT138: 3,24 | AU138: 1,85 | AV138: 1,37 | AW138: 2,63 | AX138: FALSE | AY138: 0 | AZ138: 0
A139: 0 | B139: 1 | C139: 0 | D139: 0 | E139: 1 | F139: 1 | G139: 1 | H139: XB37 | I139: L | J139: 4 | N139: 15 | P139: Woda | T139: Woda | X139: 110 | Y139: 75 | AC139: 70 | AD139: 90 | AK139: 0 | AL139: XB37L-1-10 G 1 (20mm) | AM139: 1*4L/1*5L | AN139: B | AO139: PED Art 4.3 | AP139: 59,8 | AQ139: 0,45 | AR139: 4943,7/3094,4 | AS139: 10,82 | AT139: 3,24 | AU139: 1,85 | AV139: 1,55 | AW139: 2,98 | AX139: FALSE | AY139: 0 | AZ139: 0
A140: 0 | B140: 1 | C140: 0 | D140: 0 | E140: 1 | F140: 1 | G140: 1 | H140: XB37 | I140: L | J140: 4 | N140: 16 | P140: Woda | T140: Woda | X140: 110 | Y140: 75 | AC140: 70 | AD140: 90 | AK140: 0 | AL140: XB37L-1-10 G 1 (20mm) | AM140: 1*4L/1*5L | AN140: B | AO140: PED Art 4.3 | AP140: 56,9 | AQ140: 0,45 | AR140: 5179,6/3300,7 | AS140: 10,82 | AT140: 3,24 | AU140: 1,85 | AV140: 1,75 | AW140: 3,36 | AX140: FALSE | AY140: 0 | AZ140: 0
A141: 0 | B141: 1 | C141: 0 | D141: 0 | E141: 1 | F141: 1 | G141: 1 | H141: XB37 | I141: L | J141: 4 | N141: 17 | P141: Woda | T141: Woda | X141: 110 | Y141: 75 | AC141: 70 | AD141: 90 | AK141: 0 | AL141: XB37L-1-10 G 1 (20mm) | AM141: 1*4L/1*5L | AN141: B | AO141: PED Art 4.3 | AP141: 54,5 | AQ141: 0,45 | AR141: 5417,0/3507,0 | AS141: 10,82 | AT141: 3,24 | AU141: 1,85 | AV141: 1,95 | AW141: 3,66 | AX141: FALSE | AY141: 0 | AZ141: 0
A142: 0 | B142: 1 | C142: 0 | D142: 0 | E142: 1 | F142: 1 | G142: 1 | H142: XB37 | I142: L | J142: 4 | N142: 18 | P142: Woda | T142: Woda | X142: 110 | Y142: 75 | AC142: 70 | AD142: 90 | AK142: 0 | AL142: XB37L-1-10 G 1 (20mm) | AM142: 1*4L/1*5L | AN142: B | AO142: PED Art 4.3 | AP142: 51,8 | AQ142: 0,45 | AR142: 5638,0/3713,3 | AS142: 10,82 | AT142: 3,24 | AU142: 1,85 | AV142: 2,17 | AW142: 4,09 | AX142: FALSE | AY142: 0 | AZ142: 0
A143: 0 | B143: 1 | C143: 0 | D143: 0 | E143: 1 | F143: 1 | G143: 1 | H143: XB37 | I143: L | J143: 4 | N143: 19 | P143: Woda | T143: Woda | X143: 110 | Y143: 75 | AC143: 70 | AD143: 90 | AK143: 0 | AL143: XB37L-1-10 G 1 (20mm) | AM143: 1*4L/1*5L | AN143: B | AO143: PED Art 4.3 | AP143: 49,4 | AQ143: 0,45 | AR143: 5855,9/3919,6 | AS143: 10,82 | AT143: 3,24 | AU143: 1,85 | AV143: 2,39 | AW143: 4,54 | AX143: FALSE | AY143: 0 | AZ143: 0
A144: 0 | B144: 1 | C144: 0 | D144: 0 | E144: 1 | F144: 1 | G144: 1 | H144: XB37 | I144: L | J144: 4 | N144: 20 | P144: Woda | T144: Woda | X144: 110 | Y144: 75 | AC144: 70 | AD144: 90 | AK144: 0 | AL144: XB37L-1-10 G 1 (20mm) | AM144: 1*4L/1*5L | AN144: B | AO144: PED Art 4.3 | AP144: 47,2 | AQ144: 0,45 | AR144: 6071,3/4125,9 | AS144: 10,82 | AT144: 3,24 | AU144: 1,85 | AV144: 2,63 | AW144: 5,01 | AX144: FALSE | AY144: 0 | AZ144: 0
A145: 0 | B145: 1 | C145: 0 | D145: 0 | E145: 1 | F145: 1 | G145: 1 | H145: XB37 | I145: L | J145: 4 | N145: 21 | P145: Woda | T145: Woda | X145: 110 | Y145: 75 | AC145: 70 | AD145: 90 | AK145: 0 | AL145: XB37L-1-10 G 1 (20mm) | AM145: 1*4L/1*5L | AN145: B | AO145: PED Art 4.3 | AP145: 45,1 | AQ145: 0,45 | AR145: 6285,2/4332,2 | AS145: 10,82 | AT145: 3,24 | AU145: 1,85 | AV145: 2,81 | AW145: 5,51 | AX145: FALSE | AY145: 0 | AZ145: 0
A146: 0 | B146: 1 | C146: 0 | D146: 0 | E146: 1 | F146: 1 | G146: 1 | H146: XB37 | I146: L | J146: 4 | N146: 22 | P146: Woda | T146: Woda | X146: 110 | Y146: 75 | AC146: 70 | AD146: 90 | AK146: 0 | AL146: XB37L-1-10 G 1 (20mm) | AM146: 1*4L/1*5L | AN146: B | AO146: PED Art 4.3 | AP146: 43,2 | AQ146: 0,45 | AR146: 6499,2/4538,5 | AS146: 10,82 | AT146: 3,24 | AU146: 1,85 | AV146: 3,07 | AW146: 6,02 | AX146: FALSE | AY146: 0 | AZ146: 0
A147: 0 | B147: 1 | C147: 0 | D147: 0 | E147: 1 | F147: 1 | G147: 1 | H147: XB37 | I147: L | J147: 4 | N147: 23 | P147: Woda | T147: Woda | X147: 110 | Y147: 75 | AC147: 70 | AD147: 90 | AK147: 0 | AL147: XB37L-1-10 G 1 (20mm) | AM147: 1*4L/1*5L | AN147: B | AO147: PED Art 4.3 | AP147: 41,2 | AQ147: 0,45 | AR147: 6699,0/4744,8 | AS147: 10,82 | AT147: 3,24 | AU147: 1,85 | AV147: 3,35 | AW147: 6,56 | AX147: FALSE | AY147: 0 | AZ147: 0
A148: 0 | B148: 1 | C148: 0 | D148: 0 | E148: 1 | F148: 1 | G148: 1 | H148: XB37 | I148: L | J148: 4 | N148: 24 | P148: Woda | T148: Woda | X148: 110 | Y148: 75 | AC148: 70 | AD148: 90 | AK148: 0 | AL148: XB37L-1-10 G 1 (20mm) | AM148: 1*4L/1*5L | AN148: B | AO148: PED Art 4.3 | AP148: 39,3 | AQ148: 0,45 | AR148: 6895,9/4951,1 | AS148: 10,82 | AT148: 3,24 | AU148: 1,85 | AV148: 3,64 | AW148: 7,13 | AX148: FALSE | AY148: 0 | AZ148: 0
A149: 0 | B149: 1 | C149: 0 | D149: 0 | E149: 1 | F149: 1 | G149: 1 | H149: XB37 | I149: L | J149: 4 | N149: 25 | P149: Woda | T149: Woda | X149: 110 | Y149: 75 | AC149: 70 | AD149: 90 | AK149: 0 | AL149: XB37L-1-10 G 1 (20mm) | AM149: 1*4L/1*5L | AN149: B | AO149: PED Art 4.3 | AP149: 37,5 | AQ149: 0,45 | AR149: 7090,0/5157,3 | AS149: 10,82 | AT149: 3,24 | AU149: 1,85 | AV149: 3,93 | AW149: 7,71 | AX149: FALSE | AY149: 0 | AZ149: 0
A150: 0 | B150: 1 | C150: 0 | D150: 0 | E150: 1 | F150: 1 | G150: 1 | H150: XB37 | I150: L | J150: 4 | N150: 26 | P150: Woda | T150: Woda | X150: 110 | Y150: 75 | AC150: 70 | AD150: 90 | AK150: 0 | AL150: XB37L-1-10 G 1 (20mm) | AM150: 1*4L/1*5L | AN150: B | AO150: PED Art 4.3 | AP150: 35,8 | AQ150: 0,45 | AR150: 7281,4/5363,6 | AS150: 10,82 | AT150: 3,24 | AU150: 1,85 | AV150: 4,24 | AW150: 8,32 | AX150: FALSE | AY150: 0 | AZ150: 0
A151: 0 | B151: 1 | C151: 0 | D151: 0 | E151: 1 | F151: 1 | G151: 1 | H151: XB37 | I151: L | J151: 4 | N151: 27 | P151: Woda | T151: Woda | X151: 110 | Y151: 75 | AC151: 70 | AD151: 90 | AK151: 0 | AL151: XB37L-1-10 G 1 (20mm) | AM151: 1*4L/1*5L | AN151: B | AO151: PED Art 4.3 | AP151: 34,1 | AQ151: 0,45 | AR151: 7470,4/5569,9 | AS151: 10,82 | AT151: 3,24 | AU151: 1,85 | AV151: 4,56 | AW151: 8,95 | AX151: FALSE | AY151: 0 | AZ151: 0
A152: 0 | B152: 1 | C152: 0 | D152: 0 | E152: 1 | F152: 1 | G152: 1 | H152: XB37 | I152: L | J152: 4 | N152: 28 | P152: Woda | T152: Woda | X152: 110 | Y152: 75 | AC152: 70 | AD152: 90 | AK152: 0 | AL152: XB37L-1-10 G 1 (20mm) | AM152: 1*4L/1*5L | AN152: B | AO152: PED Art 4.3 | AP152: 32,6 | AQ152: 0,45 | AR152: 7656,9/5776,2 | AS152: 10,82 | AT152: 3,24 | AU152: 1,85 | AV152: 4,89 | AW152: 9,60 | AX152: FALSE | AY152: 0 | AZ152: 0
A153: 0 | B153: 1 | C153: 0 | D153: 0 | E153: 1 | F153: 1 | G153: 1 | H153: XB37 | I153: L | J153: 4 | N153: 29 | P153: Woda | T153: Woda | X153: 110 | Y153: 75 | AC153: 70 | AD153: 90 | AK153: 0 | AL153: XB37L-1-10 G 1 (20mm) | AM153: 1*4L/1*5L | AN153: B | AO153: PED Art 4.3 | AP153: 31,1 | AQ153: 0,45 | AR153: 7841,1/5982,5 | AS153: 10,82 | AT153: 3,24 | AU153: 1,85 | AV153: 5,24 | AW153: 10,27 | AX153: FALSE | AY153: 0 | AZ153: 0
A154: 0 | B154: 1 | C154: 0 | D154: 0 | E154: 1 | F154: 1 | G154: 1 | H154: XB37 | I154: L | J154: 4 | N154: 30 | P154: Woda | T154: Woda | X154: 110 | Y154: 75 | AC154: 70 | AD154: 90 | AK154: 0 | AL154: XB37L-1-10 G 1 (20mm) | AM154: 1*4L/1*5L | AN154: B | AO154: PED Art 4.3 | AP154: 29,6 | AQ154: 0,45 | AR154: 8023,2/6188,8 | AS154: 10,82 | AT154: 3,24 | AU154: 1,85 | AV154: 5,59 | AW154: 10,96 | AX154: FALSE | AY154: 0 | AZ154: 0
A155: 0 | B155: 1 | C155: 0 | D155: 0 | E155: 1 | F155: 1 | G155: 1 | H155: XB37 | I155: L | J155: 4 | N155: 1 | P155: Woda | T155: Woda | X155: 105 | Y155: 75 | AC155: 70 | AD155: 90 | AK155: 0 | AL155: XB37L-1-10 G 1 (20mm) | AM155: 1*4L/1*5L | AN155: B | AO155: PED Art 4.3 | AP155: 221,3 | AQ155: 0,45 | AR155: 788,0/245,2 | AS155: 9,10 | AT155: 3,30 | AU155: 2,20 | AV155: 0,01 | AW155: 0,02 | AX155: FALSE | AY155: 0 | AZ155: 0
A156: 0 | B156: 1 | C156: 0 | D156: 0 | E156: 1 | F156: 1 | G156: 1 | H156: XB37 | I156: L | J156: 4 | N156: 2 | P156: Woda | T156: Woda | X156: 105 | Y156: 75 | AC156: 70 | AD156: 90 | AK156: 0 | AL156: XB37L-1-10 G 1 (20mm) | AM156: 1*4L/1*5L | AN156: B | AO156: PED Art 4.3 | AP156: 162,2 | AQ156: 0,45 | AR156: 1286,1/490,5 | AS156: 9,10 | AT156: 3,30 | AU156: 2,20 | AV156: 0,05 | AW156: 0,07 | AX156: FALSE | AY156: 0 | AZ156: 0
A157: 0 | B157: 1 | C157: 0 | D157: 0 | E157: 1 | F157: 1 | G157: 1 | H157: XB37 | I157: L | J157: 4 | N157: 3 | P157: Woda | T157: Woda | X157: 105 | Y157: 75 | AC157: 70 | AD157: 90 | AK157: 0 | AL157: XB37L-1-10 G 1 (20mm) | AM157: 1*4L/1*5L | AN157: B | AO157: PED Art 4.3 | AP157: 132,8 | AQ157: 0,45 | AR157: 1713,0/735,7 | AS157: 9,10 | AT157: 3,30 | AU157: 2,20 | AV157: 0,11 | AW157: 0,16 | AX157: FALSE | AY157: 0 | AZ157: 0
A158: 0 | B158: 1 | C158: 0 | D158: 0 | E158: 1 | F158: 1 | G158: 1 | H158: XB37 | I158: L | J158: 4 | N158: 4 | P158: Woda | T158: Woda | X158: 105 | Y158: 75 | AC158: 70 | AD158: 90 | AK158: 0 | AL158: XB37L-1-10 G 1 (20mm) | AM158: 1*4L/1*5L | AN158: B | AO158: PED Art 4.3 | AP158: 114,0 | AQ158: 0,45 | AR158: 2099,0/980,9 | AS158: 9,10 | AT158: 3,30 | AU158: 2,20 | AV158: 0,19 | AW158: 0,27 | AX158: FALSE | AY158: 0 | AZ158: 0
A159: 0 | B159: 1 | C159: 0 | D159: 0 | E159: 1 | F159: 1 | G159: 1 | H159: XB37 | I159: L | J159: 4 | N159: 5 | P159: Woda | T159: Woda | X159: 105 | Y159: 75 | AC159: 70 | AD159: 90 | AK159: 0 | AL159: XB37L-1-10 G 1 (20mm) | AM159: 1*4L/1*5L | AN159: B | AO159: PED Art 4.3 | AP159: 100,4 | AQ159: 0,45 | AR159: 2456,9/1226,1 | AS159: 9,10 | AT159: 3,30 | AU159: 2,20 | AV159: 0,28 | AW159: 0,40 | AX159: FALSE | AY159: 0 | AZ159: 0
A160: 0 | B160: 1 | C160: 0 | D160: 0 | E160: 1 | F160: 1 | G160: 1 | H160: XB37 | I160: L | J160: 4 | N160: 6 | P160: Woda | T160: Woda | X160: 105 | Y160: 75 | AC160: 70 | AD160: 90 | AK160: 0 | AL160: XB37L-1-10 G 1 (20mm) | AM160: 1*4L/1*5L | AN160: B | AO160: PED Art 4.3 | AP160: 89,9 | AQ160: 0,45 | AR160: 2793,9/1471,4 | AS160: 9,10 | AT160: 3,30 | AU160: 2,20 | AV160: 0,39 | AW160: 0,56 | AX160: FALSE | AY160: 0 | AZ160: 0
A161: 0 | B161: 1 | C161: 0 | D161: 0 | E161: 1 | F161: 1 | G161: 1 | H161: XB37 | I161: L | J161: 4 | N161: 7 | P161: Woda | T161: Woda | X161: 105 | Y161: 75 | AC161: 70 | AD161: 90 | AK161: 0 | AL161: XB37L-1-10 G 1 (20mm) | AM161: 1*4L/1*5L | AN161: B | AO161: PED Art 4.3 | AP161: 81,4 | AQ161: 0,45 | AR161: 3114,3/1716,6 | AS161: 9,10 | AT161: 3,30 | AU161: 2,20 | AV161: 0,51 | AW161: 0,74 | AX161: FALSE | AY161: 0 | AZ161: 0
A162: 0 | B162: 1 | C162: 0 | D162: 0 | E162: 1 | F162: 1 | G162: 1 | H162: XB37 | I162: L | J162: 4 | N162: 8 | P162: Woda | T162: Woda | X162: 105 | Y162: 75 | AC162: 70 | AD162: 90 | AK162: 0 | AL162: XB37L-1-10 G 1 (20mm) | AM162: 1*4L/1*5L | AN162: B | AO162: PED Art 4.3 | AP162: 74,4 | AQ162: 0,45 | AR162: 3421,0/1961,8 | AS162: 9,10 | AT162: 3,30 | AU162: 2,20 | AV162: 0,66 | AW162: 0,94 | AX162: FALSE | AY162: 0 | AZ162: 0
A163: 0 | B163: 1 | C163: 0 | D163: 0 | E163: 1 | F163: 1 | G163: 1 | H163: XB37 | I163: L | J163: 4 | N163: 9 | P163: Woda | T163: Woda | X163: 105 | Y163: 75 | AC163: 70 | AD163: 90 | AK163: 0 | AL163: XB37L-1-10 G 1 (20mm) | AM163: 1*4L/1*5L | AN163: B | AO163: PED Art 4.3 | AP163: 68,4 | AQ163: 0,45 | AR163: 3716,1/2207,0 | AS163: 9,10 | AT163: 3,30 | AU163: 2,20 | AV163: 0,81 | AW163: 1,17 | AX163: FALSE | AY163: 0 | AZ163: 0
A164: 0 | B164: 1 | C164: 0 | D164: 0 | E164: 1 | F164: 1 | G164: 1 | H164: XB37 | I164: L | J164: 4 | N164: 10 | P164: Woda | T164: Woda | X164: 105 | Y164: 75 | AC164: 70 | AD164: 90 | AK164: 0 | AL164: XB37L-1-10 G 1 (20mm) | AM164: 1*4L/1*5L | AN164: B | AO164: PED Art 4.3 | AP164: 63,2 | AQ164: 0,45 | AR164: 4001,3/2452,3 | AS164: 9,10 | AT164: 3,30 | AU164: 2,20 | AV164: 0,99 | AW164: 1,42 | AX164: FALSE | AY164: 0 | AZ164: 0
A165: 0 | B165: 1 | C165: 0 | D165: 0 | E165: 1 | F165: 1 | G165: 1 | H165: XB37 | I165: L | J165: 4 | N165: 11 | P165: Woda | T165: Woda | X165: 105 | Y165: 75 | AC165: 70 | AD165: 90 | AK165: 0 | AL165: XB37L-1-10 G 1 (20mm) | AM165: 1*4L/1*5L | AN165: B | AO165: PED Art 4.3 | AP165: 58,6 | AQ165: 0,45 | AR165: 4277,8/2697,5 | AS165: 9,10 | AT165: 3,30 | AU165: 2,20 | AV165: 1,17 | AW165: 1,69 | AX165: FALSE | AY165: 0 | AZ165: 0
A166: 0 | B166: 1 | C166: 0 | D166: 0 | E166: 1 | F166: 1 | G166: 1 | H166: XB37 | I166: L | J166: 4 | N166: 12 | P166: Woda | T166: Woda | X166: 105 | Y166: 75 | AC166: 70 | AD166: 90 | AK166: 0 | AL166: XB37L-1-10 G 1 (20mm) | AM166: 1*4L/1*5L | AN166: B | AO166: PED Art 4.3 | AP166: 54,5 | AQ166: 0,45 | AR166: 4546,5/2942,7 | AS166: 9,10 | AT166: 3,30 | AU166: 2,20 | AV166: 1,38 | AW166: 1,98 | AX166: FALSE | AY166: 0 | AZ166: 0
A167: 0 | B167: 1 | C167: 0 | D167: 0 | E167: 1 | F167: 1 | G167: 1 | H167: XB37 | I167: L | J167: 4 | N167: 13 | P167: Woda | T167: Woda | X167: 105 | Y167: 75 | AC167: 70 | AD167: 90 | AK167: 0 | AL167: XB37L-1-10 G 1 (20mm) | AM167: 1*4L/1*5L | AN167: B | AO167: PED Art 4.3 | AP167: 50,8 | AQ167: 0,45 | AR167: 4808,3/3187,9 | AS167: 9,10 | AT167: 3,30 | AU167: 2,20 | AV167: 1,59 | AW167: 2,30 | AX167: FALSE | AY167: 0 | AZ167: 0
A168: 0 | B168: 1 | C168: 0 | D168: 0 | E168: 1 | F168: 1 | G168: 1 | H168: XB37 | I168: L | J168: 4 | N168: 14 | P168: Woda | T168: Woda | X168: 105 | Y168: 75 | AC168: 70 | AD168: 90 | AK168: 0 | AL168: XB37L-1-10 G 1 (20mm) | AM168: 1*4L/1*5L | AN168: B | AO168: PED Art 4.3 | AP168: 47,6 | AQ168: 0,45 | AR168: 5066,7/3433,2 | AS168: 9,10 | AT168: 3,30 | AU168: 2,20 | AV168: 1,82 | AW168: 2,63 | AX168: FALSE | AY168: 0 | AZ168: 0
A169: 0 | B169: 1 | C169: 0 | D169: 0 | E169: 1 | F169: 1 | G169: 1 | H169: XB37 | I169: L | J169: 4 | N169: 15 | P169: Woda | T169: Woda | X169: 105 | Y169: 75 | AC169: 70 | AD169: 90 | AK169: 0 | AL169: XB37L-1-10 G 1 (20mm) | AM169: 1*4L/1*5L | AN169: B | AO169: PED Art 4.3 | AP169: 44,9 | AQ169: 0,45 | AR169: 5331,0/3678,4 | AS169: 9,10 | AT169: 3,30 | AU169: 2,20 | AV169: 2,07 | AW169: 2,98 | AX169: FALSE | AY169: 0 | AZ169: 0
A170: 0 | B170: 1 | C170: 0 | D170: 0 | E170: 1 | F170: 1 | G170: 1 | H170: XB37 | I170: L | J170: 4 | N170: 16 | P170: Woda | T170: Woda | X170: 105 | Y170: 75 | AC170: 70 | AD170: 90 | AK170: 0 | AL170: XB37L-1-10 G 1 (20mm) | AM170: 1*4L/1*5L | AN170: B | AO170: PED Art 4.3 | AP170: 42,4 | AQ170: 0,45 | AR170: 5585,3/3923,6 | AS170: 9,10 | AT170: 3,30 | AU170: 2,20 | AV170: 2,33 | AW170: 3,36 | AX170: FALSE | AY170: 0 | AZ170: 0
A171: 0 | B171: 1 | C171: 0 | D171: 0 | E171: 1 | F171: 1 | G171: 1 | H171: XB37 | I171: L | J171: 4 | N171: 17 | P171: Woda | T171: Woda | X171: 105 | Y171: 75 | AC171: 70 | AD171: 90 | AK171: 0 | AL171: XB37L-1-10 G 1 (20mm) | AM171: 1*4L/1*5L | AN171: B | AO171: PED Art 4.3 | AP171: 40,2 | AQ171: 0,45 | AR171: 5846,0/4168,8 | AS171: 9,10 | AT171: 3,30 | AU171: 2,20 | AV171: 2,60 | AW171: 3,66 | AX171: FALSE | AY171: 0 | AZ171: 0
A172: 0 | B172: 1 | C172: 0 | D172: 0 | E172: 1 | F172: 1 | G172: 1 | H172: XB37 | I172: L | J172: 4 | N172: 18 | P172: Woda | T172: Woda | X172: 105 | Y172: 75 | AC172: 70 | AD172: 90 | AK172: 0 | AL172: XB37L-1-10 G 1 (20mm) | AM172: 1*4L/1*5L | AN172: B | AO172: PED Art 4.3 | AP172: 37,9 | AQ172: 0,45 | AR172: 6089,0/4414,1 | AS172: 9,10 | AT172: 3,30 | AU172: 2,20 | AV172: 2,81 | AW172: 4,09 | AX172: FALSE | AY172: 0 | AZ172: 0
A173: 0 | B173: 1 | C173: 0 | D173: 0 | E173: 1 | F173: 1 | G173: 1 | H173: XB37 | I173: L | J173: 4 | N173: 19 | P173: Woda | T173: Woda | X173: 105 | Y173: 75 | AC173: 70 | AD173: 90 | AK173: 0 | AL173: XB37L-1-10 G 1 (20mm) | AM173: 1*4L/1*5L | AN173: B | AO173: PED Art 4.3 | AP173: 35,9 | AQ173: 0,45 | AR173: 6330,5/4659,3 | AS173: 9,10 | AT173: 3,30 | AU173: 2,20 | AV173: 3,12 | AW173: 4,54 | AX173: FALSE | AY173: 0 | AZ173: 0
A174: 0 | B174: 1 | C174: 0 | D174: 0 | E174: 1 | F174: 1 | G174: 1 | H174: XB37 | I174: L | J174: 4 | N174: 20 | P174: Woda | T174: Woda | X174: 105 | Y174: 75 | AC174: 70 | AD174: 90 | AK174: 0 | AL174: XB37L-1-10 G 1 (20mm) | AM174: 1*4L/1*5L | AN174: B | AO174: PED Art 4.3 | AP174: 33,7 | AQ174: 0,45 | AR174: 6557,8/4904,5 | AS174: 9,10 | AT174: 3,30 | AU174: 2,20 | AV174: 3,45 | AW174: 5,01 | AX174: FALSE | AY174: 0 | AZ174: 0
A175: 0 | B175: 1 | C175: 0 | D175: 0 | E175: 1 | F175: 1 | G175: 1 | H175: XB37 | I175: L | J175: 4 | N175: 21 | P175: Woda | T175: Woda | X175: 105 | Y175: 75 | AC175: 70 | AD175: 90 | AK175: 0 | AL175: XB37L-1-10 G 1 (20mm) | AM175: 1*4L/1*5L | AN175: B | AO175: PED Art 4.3 | AP175: 31,7 | AQ175: 0,45 | AR175: 6781,3/5149,7 | AS175: 9,10 | AT175: 3,30 | AU175: 2,20 | AV175: 3,79 | AW175: 5,51 | AX175: FALSE | AY175: 0 | AZ175: 0
A176: 0 | B176: 1 | C176: 0 | D176: 0 | E176: 1 | F176: 1 | G176: 1 | H176: XB37 | I176: L | J176: 4 | N176: 22 | P176: Woda | T176: Woda | X176: 105 | Y176: 75 | AC176: 70 | AD176: 90 | AK176: 0 | AL176: XB37L-1-10 G 1 (20mm) | AM176: 1*4L/1*5L | AN176: B | AO176: PED Art 4.3 | AP176: 29,8 | AQ176: 0,45 | AR176: 7001,4/5395,0 | AS176: 9,10 | AT176: 3,30 | AU176: 2,20 | AV176: 4,15 | AW176: 6,02 | AX176: FALSE | AY176: 0 | AZ176: 0
A177: 0 | B177: 1 | C177: 0 | D177: 0 | E177: 1 | F177: 1 | G177: 1 | H177: XB37 | I177: L | J177: 4 | N177: 23 | P177: Woda | T177: Woda | X177: 105 | Y177: 75 | AC177: 70 | AD177: 90 | AK177: 0 | AL177: XB37L-1-10 G 1 (20mm) | AM177: 1*4L/1*5L | AN177: B | AO177: PED Art 4.3 | AP177: 28,0 | AQ177: 0,45 | AR177: 7218,1/5640,2 | AS177: 9,10 | AT177: 3,30 | AU177: 2,20 | AV177: 4,52 | AW177: 6,56 | AX177: FALSE | AY177: 0 | AZ177: 0
A178: 0 | B178: 1 | C178: 0 | D178: 0 | E178: 1 | F178: 1 | G178: 1 | H178: XB37 | I178: L | J178: 4 | N178: 24 | P178: Woda | T178: Woda | X178: 105 | Y178: 75 | AC178: 70 | AD178: 90 | AK178: 0 | AL178: XB37L-1-10 G 1 (20mm) | AM178: 1*4L/1*5L | AN178: B | AO178: PED Art 4.3 | AP178: 26,3 | AQ178: 0,45 | AR178: 7431,7/5885,4 | AS178: 9,10 | AT178: 3,30 | AU178: 2,20 | AV178: 4,90 | AW178: 7,13 | AX178: FALSE | AY178: 0 | AZ178: 0
A179: 0 | B179: 1 | C179: 0 | D179: 0 | E179: 1 | F179: 1 | G179: 1 | H179: XB37 | I179: L | J179: 4 | N179: 25 | P179: Woda | T179: Woda | X179: 105 | Y179: 75 | AC179: 70 | AD179: 90 | AK179: 0 | AL179: XB37L-1-10 G 1 (20mm) | AM179: 1*4L/1*5L | AN179: B | AO179: PED Art 4.3 | AP179: 24,7 | AQ179: 0,45 | AR179: 7642,4/6130,6 | AS179: 9,10 | AT179: 3,30 | AU179: 2,20 | AV179: 5,31 | AW179: 7,71 | AX179: FALSE | AY179: 0 | AZ179: 0
A180: 0 | B180: 1 | C180: 0 | D180: 0 | E180: 1 | F180: 1 | G180: 1 | H180: XB37 | I180: L | J180: 4 | N180: 26 | P180: Woda | T180: Woda | X180: 105 | Y180: 75 | AC180: 70 | AD180: 90 | AK180: 0 | AL180: XB37L-1-10 G 1 (20mm) | AM180: 1*4L/1*5L | AN180: B | AO180: PED Art 4.3 | AP180: 23,1 | AQ180: 0,45 | AR180: 7850,3/6375,9 | AS180: 9,10 | AT180: 3,30 | AU180: 2,20 | AV180: 5,72 | AW180: 8,32 | AX180: FALSE | AY180: 0 | AZ180: 0
A181: 0 | B181: 1 | C181: 0 | D181: 0 | E181: 1 | F181: 1 | G181: 1 | H181: XB37 | I181: L | J181: 4 | N181: 27 | P181: Woda | T181: Woda | X181: 105 | Y181: 75 | AC181: 70 | AD181: 90 | AK181: 0 | AL181: XB37L-1-10 G 1 (20mm) | AM181: 1*4L/1*5L | AN181: B | AO181: PED Art 4.3 | AP181: 21,7 | AQ181: 0,45 | AR181: 8055,5/6621,1 | AS181: 9,10 | AT181: 3,30 | AU181: 2,20 | AV181: 6,16 | AW181: 8,95 | AX181: FALSE | AY181: 0 | AZ181: 0
A182: 0 | B182: 1 | C182: 0 | D182: 0 | E182: 1 | F182: 1 | G182: 1 | H182: XB37 | I182: L | J182: 4 | N182: 28 | P182: Woda | T182: Woda | X182: 105 | Y182: 75 | AC182: 70 | AD182: 90 | AK182: 0 | AL182: XB37L-1-10 G 1 (20mm) | AM182: 1*4L/1*5L | AN182: B | AO182: PED Art 4.3 | AP182: 20,3 | AQ182: 0,45 | AR182: 8258,1/6866,3 | AS182: 9,10 | AT182: 3,30 | AU182: 2,20 | AV182: 6,60 | AW182: 9,60 | AX182: FALSE | AY182: 0 | AZ182: 0
A183: 0 | B183: 1 | C183: 0 | D183: 0 | E183: 1 | F183: 1 | G183: 1 | H183: XB37 | I183: L | J183: 4 | N183: 29 | P183: Woda | T183: Woda | X183: 105 | Y183: 75 | AC183: 70 | AD183: 90 | AK183: 0 | AL183: XB37L-1-10 G 1 (20mm) | AM183: 1*4L/1*5L | AN183: B | AO183: PED Art 4.3 | AP183: 18,9 | AQ183: 0,45 | AR183: 8458,3/7111,6 | AS183: 9,10 | AT183: 3,30 | AU183: 2,20 | AV183: 7,07 | AW183: 10,27 | AX183: FALSE | AY183: 0 | AZ183: 0
A184: 0 | B184: 1 | C184: 0 | D184: 0 | E184: 1 | F184: 1 | G184: 1 | H184: XB37 | I184: L | J184: 4 | N184: 30 | P184: Woda | T184: Woda | X184: 105 | Y184: 75 | AC184: 70 | AD184: 90 | AK184: 0 | AL184: XB37L-1-10 G 1 (20mm) | AM184: 1*4L/1*5L | AN184: B | AO184: PED Art 4.3 | AP184: 17,7 | AQ184: 0,45 | AR184: 8656,2/7356,8 | AS184: 9,10 | AT184: 3,30 | AU184: 2,20 | AV184: 7,54 | AW184: 10,96 | AX184: FALSE | AY184: 0 | AZ184: 0
A185: 0 | B185: 1 | C185: 0 | D185: 0 | E185: 1 | F185: 1 | G185: 1 | H185: XB37 | I185: L | J185: 4 | N185: 1 | P185: Woda | T185: Woda | X185: 100 | Y185: 75 | AC185: 70 | AD185: 90 | AK185: 0 | AL185: XB37L-1-10 G 1 (20mm) | AM185: 1*4L/1*5L | AN185: B | AO185: PED Art 4.3 | AP185: 175,4 | AQ185: 0,45 | AR185: 852,3/309,4 | AS185: 7,21 | AT185: 3,47 | AU185: 2,77 | AV185: 0,02 | AW185: 0,02 | AX185: FALSE | AY185: 0 | AZ185: 0
A186: 0 | B186: 1 | C186: 0 | D186: 0 | E186: 1 | F186: 1 | G186: 1 | H186: XB37 | I186: L | J186: 4 | N186: 2 | P186: Woda | T186: Woda | X186: 100 | Y186: 75 | AC186: 70 | AD186: 90 | AK186: 0 | AL186: XB37L-1-10 G 1 (20mm) | AM186: 1*4L/1*5L | AN186: B | AO186: PED Art 4.3 | AP186: 125,4 | AQ186: 0,45 | AR186: 1395,0/618,9 | AS186: 7,21 | AT186: 3,47 | AU186: 2,77 | AV186: 0,07 | AW186: 0,07 | AX186: FALSE | AY186: 0 | AZ186: 0
A187: 0 | B187: 1 | C187: 0 | D187: 0 | E187: 1 | F187: 1 | G187: 1 | H187: XB37 | I187: L | J187: 4 | N187: 3 | P187: Woda | T187: Woda | X187: 100 | Y187: 75 | AC187: 70 | AD187: 90 | AK187: 0 | AL187: XB37L-1-10 G 1 (20mm) | AM187: 1*4L/1*5L | AN187: B | AO187: PED Art 4.3 | AP187: 100,5 | AQ187: 0,45 | AR187: 1861,5/928,3 | AS187: 7,21 | AT187: 3,47 | AU187: 2,77 | AV187: 0,15 | AW187: 0,16 | AX187: FALSE | AY187: 0 | AZ187: 0
A188: 0 | B188: 1 | C188: 0 | D188: 0 | E188: 1 | F188: 1 | G188: 1 | H188: XB37 | I188: L | J188: 4 | N188: 4 | P188: Woda | T188: Woda | X188: 100 | Y188: 75 | AC188: 70 | AD188: 90 | AK188: 0 | AL188: XB37L-1-10 G 1 (20mm) | AM188: 1*4L/1*5L | AN188: B | AO188: PED Art 4.3 | AP188: 84,5 | AQ188: 0,45 | AR188: 2284,2/1237,8 | AS188: 7,21 | AT188: 3,47 | AU188: 2,77 | AV188: 0,26 | AW188: 0,27 | AX188: FALSE | AY188: 0 | AZ188: 0
A189: 0 | B189: 1 | C189: 0 | D189: 0 | E189: 1 | F189: 1 | G189: 1 | H189: XB37 | I189: L | J189: 4 | N189: 5 | P189: Woda | T189: Woda | X189: 100 | Y189: 75 | AC189: 70 | AD189: 90 | AK189: 0 | AL189: XB37L-1-10 G 1 (20mm) | AM189: 1*4L/1*5L | AN189: B | AO189: PED Art 4.3 | AP189: 73,0 | AQ189: 0,45 | AR189: 2677,0/1547,2 | AS189: 7,21 | AT189: 3,47 | AU189: 2,77 | AV189: 0,39 | AW189: 0,40 | AX189: FALSE | AY189: 0 | AZ189: 0
A190: 0 | B190: 1 | C190: 0 | D190: 0 | E190: 1 | F190: 1 | G190: 1 | H190: XB37 | I190: L | J190: 4 | N190: 6 | P190: Woda | T190: Woda | X190: 100 | Y190: 75 | AC190: 70 | AD190: 90 | AK190: 0 | AL190: XB37L-1-10 G 1 (20mm) | AM190: 1*4L/1*5L | AN190: B | AO190: PED Art 4.3 | AP190: 64,1 | AQ190: 0,45 | AR190: 3047,2/1856,6 | AS190: 7,21 | AT190: 3,47 | AU190: 2,77 | AV190: 0,54 | AW190: 0,56 | AX190: FALSE | AY190: 0 | AZ190: 0
A191: 0 | B191: 1 | C191: 0 | D191: 0 | E191: 1 | F191: 1 | G191: 1 | H191: XB37 | I191: L | J191: 4 | N191: 7 | P191: Woda | T191: Woda | X191: 100 | Y191: 75 | AC191: 70 | AD191: 90 | AK191: 0 | AL191: XB37L-1-10 G 1 (20mm) | AM191: 1*4L/1*5L | AN191: B | AO191: PED Art 4.3 | AP191: 57,0 | AQ191: 0,45 | AR191: 3399,7/2166,1 | AS191: 7,21 | AT191: 3,47 | AU191: 2,77 | AV191: 0,72 | AW191: 0,74 | AX191: FALSE | AY191: 0 | AZ191: 0
A192: 0 | B192: 1 | C192: 0 | D192: 0 | E192: 1 | F192: 1 | G192: 1 | H192: XB37 | I192: L | J192: 4 | N192: 8 | P192: Woda | T192: Woda | X192: 100 | Y192: 75 | AC192: 70 | AD192: 90 | AK192: 0 | AL192: XB37L-1-10 G 1 (20mm) | AM192: 1*4L/1*5L | AN192: B | AO192: PED Art 4.3 | AP192: 51,0 | AQ192: 0,45 | AR192: 3737,5/2475,5 | AS192: 7,21 | AT192: 3,47 | AU192: 2,77 | AV192: 0,92 | AW192: 0,94 | AX192: FALSE | AY192: 0 | AZ192: 0
A193: 0 | B193: 1 | C193: 0 | D193: 0 | E193: 1 | F193: 1 | G193: 1 | H193: XB37 | I193: L | J193: 4 | N193: 9 | P193: Woda | T193: Woda | X193: 100 | Y193: 75 | AC193: 70 | AD193: 90 | AK193: 0 | AL193: XB37L-1-10 G 1 (20mm) | AM193: 1*4L/1*5L | AN193: B | AO193: PED Art 4.3 | AP193: 45,9 | AQ193: 0,45 | AR193: 4062,9/2785,0 | AS193: 7,21 | AT193: 3,47 | AU193: 2,77 | AV193: 1,14 | AW193: 1,17 | AX193: FALSE | AY193: 0 | AZ193: 0
A194: 0 | B194: 1 | C194: 0 | D194: 0 | E194: 1 | F194: 1 | G194: 1 | H194: XB37 | I194: L | J194: 4 | N194: 10 | P194: Woda | T194: Woda | X194: 100 | Y194: 75 | AC194: 70 | AD194: 90 | AK194: 0 | AL194: XB37L-1-10 G 1 (20mm) | AM194: 1*4L/1*5L | AN194: B | AO194: PED Art 4.3 | AP194: 41,5 | AQ194: 0,45 | AR194: 4377,7/3094,4 | AS194: 7,21 | AT194: 3,47 | AU194: 2,77 | AV194: 1,38 | AW194: 1,42 | AX194: FALSE | AY194: 0 | AZ194: 0
A195: 0 | B195: 1 | C195: 0 | D195: 0 | E195: 1 | F195: 1 | G195: 1 | H195: XB37 | I195: L | J195: 4 | N195: 11 | P195: Woda | T195: Woda | X195: 100 | Y195: 75 | AC195: 70 | AD195: 90 | AK195: 0 | AL195: XB37L-1-10 G 1 (20mm) | AM195: 1*4L/1*5L | AN195: B | AO195: PED Art 4.3 | AP195: 37,6 | AQ195: 0,45 | AR195: 4683,1/3403,8 | AS195: 7,21 | AT195: 3,47 | AU195: 2,77 | AV195: 1,65 | AW195: 1,69 | AX195: FALSE | AY195: 0 | AZ195: 0
A196: 0 | B196: 1 | C196: 0 | D196: 0 | E196: 1 | F196: 1 | G196: 1 | H196: XB37 | I196: L | J196: 4 | N196: 12 | P196: Woda | T196: Woda | X196: 100 | Y196: 75 | AC196: 70 | AD196: 90 | AK196: 0 | AL196: XB37L-1-10 G 1 (20mm) | AM196: 1*4L/1*5L | AN196: B | AO196: PED Art 4.3 | AP196: 34,1 | AQ196: 0,45 | AR196: 4980,3/3713,3 | AS196: 7,21 | AT196: 3,47 | AU196: 2,77 | AV196: 1,93 | AW196: 1,98 | AX196: FALSE | AY196: 0 | AZ196: 0
A197: 0 | B197: 1 | C197: 0 | D197: 0 | E197: 1 | F197: 1 | G197: 1 | H197: XB37 | I197: L | J197: 4 | N197: 13 | P197: Woda | T197: Woda | X197: 100 | Y197: 75 | AC197: 70 | AD197: 90 | AK197: 0 | AL197: XB37L-1-10 G 1 (20mm) | AM197: 1*4L/1*5L | AN197: B | AO197: PED Art 4.3 | AP197: 31,1 | AQ197: 0,45 | AR197: 5274,3/4022,7 | AS197: 7,21 | AT197: 3,47 | AU197: 2,77 | AV197: 2,23 | AW197: 2,30 | AX197: FALSE | AY197: 0 | AZ197: 0
A198: 0 | B198: 1 | C198: 0 | D198: 0 | E198: 1 | F198: 1 | G198: 1 | H198: XB37 | I198: L | J198: 4 | N198: 14 | P198: Woda | T198: Woda | X198: 100 | Y198: 75 | AC198: 70 | AD198: 90 | AK198: 0 | AL198: XB37L-1-10 G 1 (20mm) | AM198: 1*4L/1*5L | AN198: B | AO198: PED Art 4.3 | AP198: 28,6 | AQ198: 0,45 | AR198: 5572,8/4332,2 | AS198: 7,21 | AT198: 3,47 | AU198: 2,77 | AV198: 2,56 | AW198: 2,63 | AX198: =AND(N198=$AZ$4,X198=$BA$4,AD198=$BB$4) -> FALSE | AY198: =AX198*AV198 -> 0 | AZ198: =AX198*AW198 -> 0
A199: 0 | B199: 1 | C199: 0 | D199: 0 | E199: 1 | F199: 1 | G199: 1 | H199: XB37 | I199: L | J199: 4 | N199: 15 | P199: Woda | T199: Woda | X199: 100 | Y199: 75 | AC199: 70 | AD199: 90 | AK199: 0 | AL199: XB37L-1-10 G 1 (20mm) | AM199: 1*4L/1*5L | AN199: B | AO199: PED Art 4.3 | AP199: 26,3 | AQ199: 0,45 | AR199: 5862,5/4641,6 | AS199: 7,21 | AT199: 3,47 | AU199: 2,77 | AV199: 2,90 | AW199: 2,98 | AX199: FALSE | AY199: 0 | AZ199: 0
A200: 0 | B200: 1 | C200: 0 | D200: 0 | E200: 1 | F200: 1 | G200: 1 | H200: XB37 | I200: L | J200: 4 | N200: 16 | P200: Woda | T200: Woda | X200: 100 | Y200: 75 | AC200: 70 | AD200: 90 | AK200: 0 | AL200: XB37L-1-10 G 1 (20mm) | AM200: 1*4L/1*5L | AN200: B | AO200: PED Art 4.3 | AP200: 24,4 | AQ200: 0,45 | AR200: 6157,3/4951,1 | AS200: 7,21 | AT200: 3,47 | AU200: 2,77 | AV200: 3,19 | AW200: 3,36 | AX200: FALSE | AY200: 0 | AZ200: 0
... 854 more rows

Sheet HEX (hidden)
B1: A | D1: ???
A2: Typ wymiennika | B2: Pole max. przekroju pojedyńczego kanału przepływowego - mm2 | C2: Pole max. przekroju pojedyńczego kanału przepływowego - m2 | D2: pojemność wodna na płytę | E2: max liczba płyt
A3: XB04 | B3: 34 | C3: =B3*0.000001 -> 3.4e-05 | D3: 0.06 | E3: 70
A4: XB05M | B4: 6 | C4: 6e-06 | D4: 0.06 | E4: 70
A5: XB06H+ | B5: 3 | C5: 3e-06 | D5: 0.017 | E5: 70
A6: XB06H | B6: 5 | C6: 5e-06 | D6: 0.017 | E6: 70
A7: XB06L | B7: 9 | C7: 9e-06 | D7: 0.025 | E7: 70
A8: XB10 | B8: 41 | C8: 4.1e-05 | D8: 0.05 | E8: 70
A9: XB12H | B9: 4 | C9: 4e-06 | D9: 0.05 | E9: 70
A10: XB12M | B10: 6 | C10: 6e-06 | D10: 0.05 | E10: 70
A11: XB12L | B11: 9 | C11: 9e-06 | D11: 0.05 | E11: 70
A12: XB20 | B12: 41 | C12: 4.1e-05 | D12: 0.06 | E12: 70
A13: XB24 | B13: 35 | C13: =B13*0.000001 -> 3.5e-05 | D13: 0.1 | E13: 70
A14: XB30 | B14: 41 | C14: 4.1e-05 | D14: 0.075 | E14: 100
A15: XB37L | B15: 16 | C15: 1.6e-05 | D15: 0.102 | E15: 120
A16: XB37M | B16: 11 | C16: 1.1e-05 | D16: 0.07 | E16: 120
A17: XB37H | B17: 7 | C17: 7e-06 | D17: 0.057 | E17: 120
A18: XB51L | B18: 20 | C18: 2e-05 | D18: 0.21 | E18: 120
A19: XB51H | B19: 41 | C19: 4.1e-05 | D19: 0.21 | E19: 120
A20: XB52M | B20: 10 | C20: 1e-05 | D20: 0.21 | E20: 120
A21: XB59 | B21: 100 | C21: =B21*0.000001 -> 0.0001 | D21: 0.21 | E21: 140
A22: XB59M | B22: 9 | C22: =B22*0.000001 -> 9e-06 | D22: 0.21 | E22: 200
A23: XB60 | B23: 41 | C23: 4.1e-05 | D23: 0.26 | E23: 160
A24: XB61H | B24: 6 | C24: 6e-06 | D24: 0.153 | E24: 200
A25: XB61L | B25: 16 | C25: 1.6e-05 | D25: 0.255 | E25: 200
A26: XB61M | B26: 11 | C26: 1.1e-05 | D26: 0.191 | E26: 200
A27: XB66L | B27: 18 | C27: 1.8e-05 | D27: 0.153 | E27: 200
A28: XB66H | B28: 7 | C28: 7e-06 | D28: 0.255 | E28: 200
A29: XB70L | B29: 29 | C29: 2.9e-05 | D29: 0.7 | E29: 200
A30: XB70M | B30: 38 | C30: 3.8e-05 | D30: 0.7 | E30: 200
A31: XB70H | B31: 47 | C31: 4.7e-05 | D31: 0.7 | E31: 200
A32: XG10 | B32: 41 | C32: 4.1e-05 | D32: 0.045 | E32: 140
A33: XG14H | B33: 28 | C33: 2.8e-05 | D33: 0.095 | E33: 150
A34: XG18H | B34: 28 | C34: 2.8e-05 | D34: 0.13 | E34: 150
A35: XGM032H | B35: 4 | C35: 4e-06 | D35: 0.13 | E35: 150
A36: XGM032M | B36: 18 | C36: 1.8e-05 | D36: 0.13 | E36: 150
A37: XGM032L | B37: 14 | C37: 1.4e-05 | D37: 0.13 | E37: 150
A38: XG20L | B38: 39 | C38: 3.9e-05 | D38: 0.48 | E38: 140
A39: XG20H | B39: 66 | C39: 6.6e-05 | D39: 0.48 | E39: 140
A40: XG31L | B40: 23 | C40: 2.3e-05 | D40: 0.37 | E40: 140
A41: XG31H | B41: 49 | C41: 4.9e-05 | D41: 0.37 | E41: 140
A42: XG30 | B42: 66 | C42: 6.6e-05 | D42: 1.37 | E42: 270
A43: XG40 | B43: 119 | C43: 0.000119 | D43: 1.37 | E43: 270
A44: XG50 | B44: 119 | C44: 0.000119 | D44: 1.71 | E44: 220
A45: XGF100-34H | B45: 38 | C45: 3.8e-05 | D45: 1.71 | E45: 220
A46: XGF100-34M | B46: 28 | C46: 2.8e-05 | D46: 1.71 | E46: 220
A47: XGF100-34L | B47: 18 | C47: 1.8e-05 | D47: 1.71 | E47: 220
A48: XGF100-35H | B48: 78 | C48: 7.8e-05 | D48: 1.71 | E48: 220
A49: XGF100-35M | B49: 63 | C49: 6.3e-05 | D49: 1.71 | E49: 220
A50: XGF100-35L | B50: 48 | C50: 4.8e-05 | D50: 1.71 | E50: 220
A51: XGF100-50H | B51: 38 | C51: 3.8e-05 | D51: 1.71 | E51: 220
A52: XGF100-50M | B52: 28 | C52: 2.8e-05 | D52: 1.71 | E52: 220
A53: XGF100-50L | B53: 18 | C53: 1.8e-05 | D53: 1.71 | E53: 220
A54: XGF100-66H | B54: 38 | C54: 3.8e-05 | D54: 1.71 | E54: 220
A55: XGF100-66M | B55: 28 | C55: 2.8e-05 | D55: 1.71 | E55: 220
A56: XGF100-66L | B56: 18 | C56: 1.8e-05 | D56: 1.71 | E56: 220
A57: JAD 3.18 | B57: 50.24 | C57: 5.024e-05 | D57: 0.05 | E57: 120
A58: JAD 5.36 | B58: 50.24 | C58: 5.024e-05 | D58: 0.06 | E58: 120
A59: JAD 6.50 | B59: 50.24 | C59: =B59*0.000001 -> 5.024e-05 | D59: 0.06 | E59: 120
A60: JAD 14.163 | B60: 50.24 | C60: 5.024e-05 | D60: 0.075 | E60: 120
A61: JAD 14.163.10 | B61: 78.5 | C61: 7.85e-05 | D61: 0.102 | E61: 120
A62: JAD K 3.18 | B62: 50.24 | C62: 5.024e-05 | D62: 0.07 | E62: 120
A63: JAD K 5.36 | B63: 50.24 | C63: 5.024e-05 | D63: 0.057 | E63: 120
A64: JAD K 6.50 | B64: 50.24 | C64: 5.024e-05 | D64: 0.12 | E64: 120
A65: JAD K 6.50.10 | B65: 78.5 | C65: =B65*0.000001 -> 7.85e-05 | D65: 0.12 | E65: 120
A66: JAD K 14.163 | B66: 50.24 | C66: 5.024e-05 | D66: 0.21 | E66: 140
A67: JAD K 14.163.10 | B67: 78.5 | C67: =B67*0.000001 -> 7.85e-05 | D67: 0.21 | E67: 140
A68: JAD X 2.11 | B68: 50.24 | C68: 5.024e-05 | D68: 0.26 | E68: 140
A69: JAD X 2.11.08.68 | B69: 50.24 | C69: 5.024e-05 | D69: 0.7 | E69: 200
A70: JAD X 3.18 | B70: 50.24 | C70: 5.024e-05 | D70: 0.7 | E70: 200
A71: JAD X 3.18.08.71 | B71: 50.24 | C71: 5.024e-05 | D71: 0.7 | E71: 200
A72: JAD X 5.38 | B72: 50.24 | C72: 5.024e-05 | D72: 0.045 | E72: 140
A73: JAD 5.38.08.71 | B73: 50.24 | C73: 5.024e-05 | D73: 0.095 | E73: 150
A74: JAD X 6.50 | B74: 50.24 | C74: 5.024e-05 | D74: 0.13 | E74: 150
A75: JAD X 6.50.10 | B75: 78.5 | C75: 7.85e-05 | D75: 0.48 | E75: 140
A76: JAD X 9.88 | B76: 50.24 | C76: 5.024e-05 | D76: 0.48 | E76: 140
A77: JAD X 9.88.10 | B77: 78.5 | C77: 7.85e-05 | D77: 0.37 | E77: 140
A78: JAD X 12.114 | B78: 50.24 | C78: 5.024e-05 | D78: 0.37 | E78: 140
A79: JAD X 12.114.10 | B79: 78.5 | C79: 7.85e-05 | D79: 1.37 | E79: 270
A80: JAD XK 2.11 | B80: 50.24 | C80: 5.024e-05 | D80: 1.71 | E80: 220
A81: JAD XK 2.11.08.68 | B81: 50.24 | C81: =B81*0.000001 -> 5.024e-05 | D81: 0.05 | E81: 120
A82: JAD XK 3.18 | B82: 50.24 | C82: =B82*0.000001 -> 5.024e-05 | D82: 0.06 | E82: 120
A83: JAD XK 3.18.08.75 | B83: 50.24 | C83: =B83*0.000001 -> 5.024e-05 | D83: 0.06 | E83: 120
A84: JAD XK 5.38 | B84: 50.24 | C84: =B84*0.000001 -> 5.024e-05 | D84: 0.075 | E84: 120
A85: JAD XK 5.38.08.71 | B85: 50.24 | C85: 5.024e-05 | D85: 0.102 | E85: 120
A86: JAD XK 6.50 | B86: 50.24 | C86: 5.024e-05 | D86: 0.07 | E86: 120
A87: JAD XK 6.50.10 | B87: 78.5 | C87: 7.85e-05 | D87: 0.057 | E87: 120
A88: JAD XK 6.50.08.72 | B88: 50.24 | C88: 5.024e-05 | D88: 0.12 | E88: 120
A89: JAD XK 9.88 | B89: 50.24 | C89: 5.024e-05 | D89: 0.21 | E89: 140
A90: JAD XK 9.88.10 | B90: 78.5 | C90: 7.85e-05 | D90: 0.21 | E90: 140
A91: JAD XK 9.88.08.65 | B91: 50.24 | C91: 5.024e-05 | D91: 0.26 | E91: 140
A92: JAD XK 9.88.08.85 | B92: 50.24 | C92: 5.024e-05 | D92: 0.7 | E92: 200
A93: JAD XK 12.114 | B93: 50.24 | C93: 5.024e-05 | D93: 0.7 | E93: 200
A94: JAD XK 12.114.10 | B94: 78.5 | C94: 7.85e-05 | D94: 0.7 | E94: 200
A95: JAD XK 12.114.08.50 | B95: 50.24 | C95: 5.024e-05 | D95: 0.045 | E95: 140
A96: JAD XK 12.114.08.60 | B96: 50.24 | C96: 5.024e-05 | D96: 0.095 | E96: 150
A97: JAD XK 12.114.08.75 | B97: 50.24 | C97: 5.024e-05 | D97: 0.13 | E97: 150
A98: JAD XK 17.217 | B98: 50.24 | C98: 5.024e-05 | D98: 0.48 | E98: 140
A99: JAD XK 17.217.10 | B99: 78.5 | C99: 7.85e-05 | D99: 0.48 | E99: 140
A100: LA12LN | B100: 42.6 | C100: 4.26e-05 | D100: 0.48 | E100: 140
A101: LA14LN | B101: 26.7 | C101: 2.67e-05 | D101: 0.48 | E101: 140
A102: LA22LN | B102: 26.7 | C102: 2.67e-05 | D102: 0.48 | E102: 140
A103: LA34LN | B103: 26.7 | C103: 2.67e-05 | D103: 0.48 | E103: 140
A104: LB31LN | B104: 26 | C104: 2.6e-05 | D104: 0.48 | E104: 140
A105: LB47LN | B105: 26 | C105: 2.6e-05 | D105: 0.48 | E105: 140
A106: LA60LN | B106: 26 | C106: 2.6e-05 | D106: 0.48 | E106: 140
A107: LC110LN | B107: 25.5 | C107: 2.55e-05 | D107: 0.48 | E107: 140
A108: LC170LN | B108: 25.5 | C108: 2.55e-05 | D108: 0.48 | E108: 140
A109: LD235LN | B109: 24.5 | C109: 2.45e-05 | D109: 0.48 | E109: 140
A111: 2.5
A112: 3
A113: 3.5
A114: 4
A115: 4.5
A116: 5
A118: XB 04 | B118: XB 04
A119: XB 05M | B119: XB 05M
A120: XB 06H+ | B120: XB 06H+
A121: XB 06H | B121: XB 06H
A122: XB 06L | B122: XB 06L
A123: XB 10 | B123: XB 10
A124: XB 12H | B124: XB 12H
A125: XB 12M | B125: XB 12M
A126: XB 12L | B126: XB 12L
A127: XB 20 | B127: XB 20
A128: XB 24 | B128: XB 24
A129: XB 30 | B129: XB 30
A130: XB 37L | B130: XB 37L
A131: XB 37M | B131: XB 37M
A132: XB 37H | B132: XB 37H
A133: XB 51L | B133: XB 51L
A134: XB 51H | B134: XB 51H
A135: XB 52M | B135: XB 52M
A136: XB 59 | B136: XB 59
A137: XB 59M | B137: XB 59M
A138: XB 60 | B138: XB 60
A139: XB 61H | B139: XB 61H
A140: XB 61L | B140: XB 61L
A141: XB 61M | B141: XB 61M
A142: XB 66L | B142: XB 66L
A143: XB 66H | B143: XB 66H
A144: XB 70L | B144: XB 70L
A145: XB 70M | B145: XB 70M
A146: XB 70H | B146: XB 70H
A147: XG 10 | B147: XG 10
A148: XG 14H | B148: XG 14H
A149: XG 18H | B149: XG 18H
A150: XGM 032H | B150: XGM 032H
A151: XGM 032M | B151: XGM 032M
A152: XGM 032L | B152: XGM 032L
A153: XG 20L | B153: XG 20L
A154: XG 20H | B154: XG 20H
A155: XG 31L | B155: XG 31L
A156: XG 31H | B156: XG 31H
A157: XG 30 | B157: XG 30
A158: XG 40 | B158: XG 40
A159: XG 50 | B159: XG 50
A160: XGF 100-34H | B160: XGF 100-34H
A161: XGF 100-34M | B161: XGF 100-34M
A162: XGF 100-34L | B162: XGF 100-34L
A163: XGF 100-35H | B163: XGF 100-35H
A164: XGF 100-35M | B164: XGF 100-35M
A165: XGF 100-35L | B165: XGF 100-35L
A166: XGF 100-50H | B166: XGF 100-50H
A167: XGF 100-50M | B167: XGF 100-50M
A168: XGF 100-50L | B168: XGF 100-50L
A169: XGF 100-66H | B169: XGF 100-66H
A170: XGF 100-66M | B170: XGF 100-66M
A171: XGF 100-66L | B171: XGF 100-66L
A172: JAD 3.18 | B172: JAD 3.18
A173: JAD 5.36 | B173: JAD 5.36
A174: JAD 6.50 | B174: JAD 6.50
A175: JAD 14.163 | B175: JAD 14.163
A176: JAD 14.163.10 | B176: JAD 14.163.10
A177: JAD K 3.18 | B177: JAD K 3.18
A178: JAD K 5.36 | B178: JAD K 5.36
A179: JAD K 6.50 | B179: JAD K 6.50
A180: JAD K 6.50.10 | B180: JAD K 6.50
A181: JAD K 14.163 | B181: JAD K 14.163
A182: JAD K 14.163.10 | B182: JAD K 14.163.10
A183: JAD X 2.11 | B183: JAD X 2.11
A184: JAD X 2.11.08.68 | B184: JAD X 2.11.08.68
A185: JAD X 3.18 | B185: JAD X 3.18
A186: JAD X 3.18.08.71 | B186: JAD X 3.18.08.71
A187: JAD X 5.38 | B187: JAD X 5.38
A188: JAD 5.38.08.71 | B188: JAD 5.38.08.71
A189: JAD X 6.50 | B189: JAD X 6.50
A190: JAD X 6.50.10 | B190: JAD X 6.50.10
A191: JAD X 9.88 | B191: JAD X 9.88
A192: JAD X 9.88.10 | B192: JAD X 9.88.10
A193: JAD X 12.114 | B193: JAD X 12.114
A194: JAD X 12.114.10 | B194: JAD X 12.114.10
A195: JAD XK 2.11 | B195: JAD XK 2.11
A196: JAD XK 2.11.08.68 | B196: JAD XK 2.11.08.68
A197: JAD XK 3.18 | B197: JAD XK 3.18
A198: JAD XK 3.18.08.75 | B198: JAD XK 3.18.08.75
A199: JAD XK 5.38 | B199: JAD XK 5.38
A200: JAD XK 5.38.08.71 | B200: JAD XK 5.38.08.71
A201: JAD XK 6.50 | B201: JAD XK 6.50
A202: JAD XK 6.50.10 | B202: JAD XK 6.50.10
... 242 more rows

Sheet ZB (hidden)
D2: zawory bezpieczeństwa | E2: HUSTY SYR | F2: HUSTY SYR | G2: cisnienia c.o. | H2: cisnienia c.w.u.
E3: FLAMCO | F3: ARMAK | G3: 2.5 | H3: 4
E4: ARMAK | G4: 3 | H4: 4.5
G5: 3.5 | H5: 5
G6: 4 | H6: 6
G7: 4.5 | H7: 7
G8: 5 | H8: 8
G9: 5.5 | H9: 10
G10: 6
A15: zawory na c.o.
D18: DN króćca wlotowego | E18: do | F18: p otw | G18: wsp wypł alfa c | I18: złaczone teksty
A19: =CONCATENATE(B19," dn",D19," ",F19,"bar") -> husty syr dn25 2,5bar | B19: husty syr | C19: 1915 | D19: 25 | E19: 20 | F19: 2.5 | G19: 0.41
A20: husty syr dn32 2,5bar | B20: husty syr | C20: 1915 | D20: 32 | E20: 27 | F20: 2.5 | G20: 0.35
A21: husty syr dn40 2,5bar | B21: husty syr | C21: 1915 | D21: 40 | E21: 35 | F21: 2.5 | G21: 0.45
A22: husty syr dn50 2,5bar | B22: husty syr | C22: 1915 | D22: 50 | E22: 42 | F22: 2.5 | G22: 0.28
A23: husty syr dn25 3bar | B23: husty syr | C23: 1915 | D23: 25 | E23: 20 | F23: 3 | G23: 0.4
A24: husty syr dn32 3bar | B24: husty syr | C24: 1915 | D24: 32 | E24: 27 | F24: 3 | G24: 0.36
A25: husty syr dn40 3bar | B25: husty syr | C25: 1915 | D25: 40 | E25: 35 | F25: 3 | G25: 0.51
A26: husty syr dn50 3bar | B26: husty syr | C26: 1915 | D26: 50 | E26: 42 | F26: 3 | G26: 0.21
A27: husty syr dn25 3,5bar | B27: husty syr | C27: 1915 | D27: 25 | E27: 20 | F27: 3.5 | G27: 0.3
A28: husty syr dn32 3,5bar | B28: husty syr | C28: 1915 | D28: 32 | E28: 27 | F28: 3.5 | G28: 0.25
A29: husty syr dn40 3,5bar | B29: husty syr | C29: 1915 | D29: 40 | E29: 35 | F29: 3.5 | G29: 0.2
A30: husty syr dn50 3,5bar | B30: husty syr | C30: 1915 | D30: 50 | E30: 42 | F30: 3.5 | G30: 0.2
A31: husty syr dn25 4bar | B31: husty syr | C31: 1915 | D31: 25 | E31: 20 | F31: 4 | G31: 0.3
A32: husty syr dn32 4bar | B32: husty syr | C32: 1915 | D32: 32 | E32: 27 | F32: 4 | G32: 0.25
A33: husty syr dn40 4bar | B33: husty syr | C33: 1915 | D33: 40 | E33: 35 | F33: 4 | G33: 0.2
A34: husty syr dn50 4bar | B34: husty syr | C34: 1915 | D34: 50 | E34: 42 | F34: 4 | G34: 0.21
A35: husty syr dn25 4,5bar | B35: husty syr | C35: 1915 | D35: 25 | E35: 20 | F35: 4.5 | G35: 0.3
A36: husty syr dn32 4,5bar | B36: husty syr | C36: 1915 | D36: 32 | E36: 27 | F36: 4.5 | G36: 0.25
A37: husty syr dn40 4,5bar | B37: husty syr | C37: 1915 | D37: 40 | E37: 35 | F37: 4.5 | G37: 0.2
A38: husty syr dn50 4,5bar | B38: husty syr | C38: 1915 | D38: 50 | E38: 42 | F38: 4.5 | G38: 0.28
A39: husty syr dn25 5bar | B39: husty syr | C39: 1915 | D39: 25 | E39: 20 | F39: 5 | G39: 0.41
A40: husty syr dn32 5bar | B40: husty syr | C40: 1915 | D40: 32 | E40: 27 | F40: 5 | G40: 0.36
A41: husty syr dn40 5bar | B41: husty syr | C41: 1915 | D41: 40 | E41: 35 | F41: 5 | G41: 0.26
A42: husty syr dn50 5bar | B42: husty syr | C42: 1915 | D42: 50 | E42: 42 | F42: 5 | G42: 0.28
A43: husty syr dn25 5,5bar | B43: husty syr | C43: 1915 | D43: 25 | E43: 20 | F43: 5.5 | G43: 0.4
A44: husty syr dn32 5,5bar | B44: husty syr | C44: 1915 | D44: 32 | E44: 27 | F44: 5.5 | G44: 0.32
A45: husty syr dn40 5,5bar | B45: husty syr | C45: 1915 | D45: 40 | E45: 35 | F45: 5.5 | G45: 0.2
A46: husty syr dn50 5,5bar | B46: husty syr | C46: 1915 | D46: 50 | E46: 42 | F46: 5.5 | G46: 0.3
A47: husty syr dn25 6bar | B47: husty syr | C47: 1915 | D47: 25 | E47: 20 | F47: 6 | G47: 0.43
A48: husty syr dn32 6bar | B48: husty syr | C48: 1915 | D48: 32 | E48: 27 | F48: 6 | G48: 0.3
A49: husty syr dn40 6bar | B49: husty syr | C49: 1915 | D49: 40 | E49: 35 | F49: 6 | G49: 0.35
A50: husty syr dn50 6bar | B50: husty syr | C50: 1915 | D50: 50 | E50: 42 | F50: 6 | G50: 0.3
A51: flamco dn25 2,5bar | B51: flamco | C51: Prescor | D51: 25 | E51: 20 | F51: 2.5 | G51: 0.56
A52: flamco dn32 2,5bar | B52: flamco | C52: Prescor | D52: 32 | E52: 25 | F52: 2.5 | G52: 0.33
A53: flamco dn40 2,5bar | B53: flamco | C53: Prescor B | D53: 40 | E53: 36 | F53: 2.5 | G53: 0.4
A54: flamco dn50 2,5bar | B54: flamco | C54: Prescor B | D54: 50 | E54: 44 | F54: 2.5 | G54: 0.4
A55: flamco dn25 3bar | B55: flamco | C55: Prescor | D55: 25 | E55: 20 | F55: 3 | G55: 0.46
A56: flamco dn32 3bar | B56: flamco | C56: Prescor | D56: 32 | E56: 25 | F56: 3 | G56: 0.5
A57: flamco dn40 3bar | B57: flamco | C57: Prescor B | D57: 40 | E57: 36 | F57: 3 | G57: 0.43
A58: flamco dn50 3bar | B58: flamco | C58: Prescor B | D58: 50 | E58: 44 | F58: 3 | G58: 0.32
A59: flamco dn25 3,5bar | B59: flamco | C59: niestandardowe p1 | D59: 25 | E59: 20 | F59: 3.5 | G59: niestandardowe p1
A60: flamco dn32 3,5bar | B60: flamco | C60: niestandardowe p1 | D60: 32 | E60: 25 | F60: 3.5 | G60: niestandardowe p1
A61: flamco dn40 3,5bar | B61: flamco | C61: niestandardowe p1 | D61: 40 | E61: 36 | F61: 3.5 | G61: niestandardowe p1
A62: flamco dn50 3,5bar | B62: flamco | C62: niestandardowe p1 | D62: 50 | E62: 44 | F62: 3.5 | G62: niestandardowe p1
A63: flamco dn25 4bar | B63: flamco | C63: niestandardowe p1 | D63: 25 | E63: 20 | F63: 4 | G63: niestandardowe p1
A64: flamco dn32 4bar | B64: flamco | C64: niestandardowe p1 | D64: 32 | E64: 25 | F64: 4 | G64: niestandardowe p1
A65: flamco dn40 4bar | B65: flamco | C65: niestandardowe p1 | D65: 40 | E65: 36 | F65: 4 | G65: niestandardowe p1
A66: flamco dn50 4bar | B66: flamco | C66: niestandardowe p1 | D66: 50 | E66: 44 | F66: 4 | G66: niestandardowe p1
A67: flamco dn25 4,5bar | B67: flamco | C67: niestandardowe p1 | D67: 25 | E67: 20 | F67: 4.5 | G67: niestandardowe p1
A68: flamco dn32 4,5bar | B68: flamco | C68: niestandardowe p1 | D68: 32 | E68: 25 | F68: 4.5 | G68: niestandardowe p1
A69: flamco dn40 4,5bar | B69: flamco | C69: niestandardowe p1 | D69: 40 | E69: 36 | F69: 4.5 | G69: niestandardowe p1
A70: flamco dn50 4,5bar | B70: flamco | C70: niestandardowe p1 | D70: 50 | E70: 44 | F70: 4.5 | G70: niestandardowe p1
A71: flamco dn25 5bar | B71: flamco | C71: niestandardowe p1 | D71: 25 | E71: 20 | F71: 5 | G71: niestandardowe p1
A72: flamco dn32 5bar | B72: flamco | C72: niestandardowe p1 | D72: 32 | E72: 25 | F72: 5 | G72: niestandardowe p1
A73: flamco dn40 5bar | B73: flamco | C73: niestandardowe p1 | D73: 40 | E73: 36 | F73: 5 | G73: niestandardowe p1
A74: flamco dn50 5bar | B74: flamco | C74: niestandardowe p1 | D74: 50 | E74: 44 | F74: 5 | G74: niestandardowe p1
A75: flamco dn25 5,5bar | B75: flamco | C75: niestandardowe p1 | D75: 25 | E75: 20 | F75: 5.5 | G75: niestandardowe p1
A76: flamco dn32 5,5bar | B76: flamco | C76: niestandardowe p1 | D76: 32 | E76: 25 | F76: 5.5 | G76: niestandardowe p1
A77: flamco dn40 5,5bar | B77: flamco | C77: niestandardowe p1 | D77: 40 | E77: 36 | F77: 5.5 | G77: niestandardowe p1
A78: flamco dn50 5,5bar | B78: flamco | C78: niestandardowe p1 | D78: 50 | E78: 44 | F78: 5.5 | G78: niestandardowe p1
A79: flamco dn25 6bar | B79: flamco | C79: niestandardowe p1 | D79: 25 | E79: 20 | F79: 6 | G79: niestandardowe p1
A80: flamco dn32 6bar | B80: flamco | C80: niestandardowe p1 | D80: 32 | E80: 25 | F80: 6 | G80: niestandardowe p1
A81: flamco dn40 6bar | B81: flamco | C81: niestandardowe p1 | D81: 40 | E81: 36 | F81: 6 | G81: niestandardowe p1
A82: flamco dn50 6bar | B82: flamco | C82: niestandardowe p1 | D82: 50 | E82: 44 | F82: 6 | G82: niestandardowe p1
A83: armak dn20x32 2,5bar | B83: armak | C83: Si 6301 | D83: 20x32 | E83: 16 | F83: 2.5 | G83: 0.5
A84: armak dn25x40 2,5bar | B84: armak | C84: Si 6301 | D84: 25x40 | E84: 20 | F84: 2.5 | G84: 0.5
A85: armak dn32x50 2,5bar | B85: armak | C85: Si 6301 | D85: 32x50 | E85: 25 | F85: 2.5 | G85: 0.5
A86: armak dn40x65 2,5bar | B86: armak | C86: Si 6301 | D86: 40x65 | E86: 32 | F86: 2.5 | G86: 0.5
A87: armak dn50x80 2,5bar | B87: armak | C87: Si 6301 | D87: 50x80 | E87: 40 | F87: 2.5 | G87: 0.5
A88: armak dn20x32 3bar | B88: armak | C88: Si 6301 | D88: 20x32 | E88: 16 | F88: 3 | G88: 0.5
A89: armak dn25x40 3bar | B89: armak | C89: Si 6301 | D89: 25x40 | E89: 20 | F89: 3 | G89: 0.5
A90: armak dn32x50 3bar | B90: armak | C90: Si 6301 | D90: 32x50 | E90: 25 | F90: 3 | G90: 0.5
A91: armak dn40x65 3bar | B91: armak | C91: Si 6301 | D91: 40x65 | E91: 32 | F91: 3 | G91: 0.5
A92: armak dn50x80 3bar | B92: armak | C92: Si 6301 | D92: 50x80 | E92: 40 | F92: 3 | G92: 0.5
A93: armak dn20x32 3,5bar | B93: armak | C93: Si 6301 | D93: 20x32 | E93: 16 | F93: 3.5 | G93: 0.5
A94: armak dn25x40 3,5bar | B94: armak | C94: Si 6301 | D94: 25x40 | E94: 20 | F94: 3.5 | G94: 0.5
A95: armak dn32x50 3,5bar | B95: armak | C95: Si 6301 | D95: 32x50 | E95: 25 | F95: 3.5 | G95: 0.5
A96: armak dn40x65 3,5bar | B96: armak | C96: Si 6301 | D96: 40x65 | E96: 32 | F96: 3.5 | G96: 0.5
A97: armak dn50x80 3,5bar | B97: armak | C97: Si 6301 | D97: 50x80 | E97: 40 | F97: 3.5 | G97: 0.5
A98: armak dn20x32 4bar | B98: armak | C98: Si 6301 | D98: 20x32 | E98: 16 | F98: 4 | G98: 0.5
A99: armak dn25x40 4bar | B99: armak | C99: Si 6301 | D99: 25x40 | E99: 20 | F99: 4 | G99: 0.5
A100: armak dn32x50 4bar | B100: armak | C100: Si 6301 | D100: 32x50 | E100: 25 | F100: 4 | G100: 0.5
A101: armak dn40x65 4bar | B101: armak | C101: Si 6301 | D101: 40x65 | E101: 32 | F101: 4 | G101: 0.5
A102: armak dn50x80 4bar | B102: armak | C102: Si 6301 | D102: 50x80 | E102: 40 | F102: 4 | G102: 0.5
A103: =CONCATENATE(B103," dn",D103," ",F103,"bar") -> armak dn20x32 4,5bar | B103: armak | C103: Si 6301 | D103: 20x32 | E103: 16 | F103: 4.5 | G103: 0.5
A104: armak dn25x40 4,5bar | B104: armak | C104: Si 6301 | D104: 25x40 | E104: 20 | F104: 4.5 | G104: 0.5
A105: armak dn32x50 4,5bar | B105: armak | C105: Si 6301 | D105: 32x50 | E105: 25 | F105: 4.5 | G105: 0.5
A106: armak dn40x65 4,5bar | B106: armak | C106: Si 6301 | D106: 40x65 | E106: 32 | F106: 4.5 | G106: 0.5
A107: armak dn50x80 4,5bar | B107: armak | C107: Si 6301 | D107: 50x80 | E107: 40 | F107: 4.5 | G107: 0.5
A108: armak dn20x32 5bar | B108: armak | C108: Si 6301 | D108: 20x32 | E108: 16 | F108: 5 | G108: 0.5
A109: armak dn25x40 5bar | B109: armak | C109: Si 6301 | D109: 25x40 | E109: 20 | F109: 5 | G109: 0.5
A110: armak dn32x50 5bar | B110: armak | C110: Si 6301 | D110: 32x50 | E110: 25 | F110: 5 | G110: 0.5
A111: armak dn40x65 5bar | B111: armak | C111: Si 6301 | D111: 40x65 | E111: 32 | F111: 5 | G111: 0.5
A112: armak dn50x80 5bar | B112: armak | C112: Si 6301 | D112: 50x80 | E112: 40 | F112: 5 | G112: 0.5
A113: armak dn20x32 5,5bar | B113: armak | C113: niestandardowe p1 | D113: 20x32 | E113: 16 | F113: 5.5 | G113: niestandardowe p1
A114: armak dn25x40 5,5bar | B114: armak | C114: niestandardowe p1 | D114: 25x40 | E114: 20 | F114: 5.5 | G114: niestandardowe p1
A115: armak dn32x50 5,5bar | B115: armak | C115: niestandardowe p1 | D115: 32x50 | E115: 25 | F115: 5.5 | G115: niestandardowe p1
A116: armak dn40x65 5,5bar | B116: armak | C116: niestandardowe p1 | D116: 40x65 | E116: 32 | F116: 5.5 | G116: niestandardowe p1
A117: armak dn50x80 5,5bar | B117: armak | C117: niestandardowe p1 | D117: 50x80 | E117: 40 | F117: 5.5 | G117: niestandardowe p1
A118: armak dn20x32 6bar | B118: armak | C118: niestandardowe p1 | D118: 20x32 | E118: 16 | F118: 6 | G118: niestandardowe p1
A119: armak dn25x40 6bar | B119: armak | C119: niestandardowe p1 | D119: 25x40 | E119: 20 | F119: 6 | G119: niestandardowe p1
A120: armak dn32x50 6bar | B120: armak | C120: niestandardowe p1 | D120: 32x50 | E120: 25 | F120: 6 | G120: niestandardowe p1
A121: armak dn40x65 6bar | B121: armak | C121: niestandardowe p1 | D121: 40x65 | E121: 32 | F121: 6 | G121: niestandardowe p1
A122: armak dn50x80 6bar | B122: armak | C122: niestandardowe p1 | D122: 50x80 | E122: 40 | F122: 6 | G122: niestandardowe p1
A133: zawory na c.w.u.
D134: DN króćca wlotowego | E134: do | F134: p otw | G134: wsp wypł alfa c
A135: =CONCATENATE(B135," dn",D135," ",F135,"bar") -> husty syr dn20 4bar | B135: husty syr | C135: 2115 | D135: 20 | E135: 14 | F135: 4 | G135: 0.55
A136: husty syr dn25 4bar | B136: husty syr | C136: 2115 | D136: 25 | E136: 20 | F136: 4 | G136: 0.54
A137: husty syr dn32 4bar | B137: husty syr | C137: 2115 | D137: 32 | E137: 27 | F137: 4 | G137: 0.48
A138: husty syr dn40 4bar | B138: husty syr | C138: 2115 | D138: 40 | E138: 35 | F138: 4 | G138: 0.53
A139: husty syr dn50 4bar | B139: husty syr | C139: 2115 | D139: 50 | E139: 42 | F139: 4 | G139: 0.55
A140: husty syr dn20 4,5bar | B140: husty syr | C140: 2115 | D140: 20 | E140: 14 | F140: 4.5 | G140: 0.55
A141: husty syr dn25 4,5bar | B141: husty syr | C141: 2115 | D141: 25 | E141: 20 | F141: 4.5 | G141: 0.54
A142: husty syr dn32 4,5bar | B142: husty syr | C142: 2115 | D142: 32 | E142: 27 | F142: 4.5 | G142: 0.48
A143: husty syr dn40 4,5bar | B143: husty syr | C143: 2115 | D143: 40 | E143: 35 | F143: 4.5 | G143: 0.53
A144: husty syr dn50 4,5bar | B144: husty syr | C144: 2115 | D144: 50 | E144: 42 | F144: 4.5 | G144: 0.55
A145: husty syr dn20 5bar | B145: husty syr | C145: 2115 | D145: 20 | E145: 14 | F145: 5 | G145: 0.55
A146: husty syr dn25 5bar | B146: husty syr | C146: 2115 | D146: 25 | E146: 20 | F146: 5 | G146: 0.54
A147: husty syr dn32 5bar | B147: husty syr | C147: 2115 | D147: 32 | E147: 27 | F147: 5 | G147: 0.48
A148: husty syr dn40 5bar | B148: husty syr | C148: 2115 | D148: 40 | E148: 35 | F148: 5 | G148: 0.53
A149: husty syr dn50 5bar | B149: husty syr | C149: 2115 | D149: 50 | E149: 42 | F149: 5 | G149: 0.55
A150: husty syr dn20 6bar | B150: husty syr | C150: 2115 | D150: 20 | E150: 14 | F150: 6 | G150: 0.55
A151: husty syr dn25 6bar | B151: husty syr | C151: 2115 | D151: 25 | E151: 20 | F151: 6 | G151: 0.54
A152: husty syr dn32 6bar | B152: husty syr | C152: 2115 | D152: 32 | E152: 27 | F152: 6 | G152: 0.48
A153: husty syr dn40 6bar | B153: husty syr | C153: 2115 | D153: 40 | E153: 35 | F153: 6 | G153: 0.53
A154: husty syr dn50 6bar | B154: husty syr | C154: 2115 | D154: 50 | E154: 42 | F154: 6 | G154: 0.55
A155: husty syr dn20 7bar | B155: husty syr | C155: 2115 | D155: 20 | E155: 14 | F155: 7 | G155: 0.55
A156: husty syr dn25 7bar | B156: husty syr | C156: 2115 | D156: 25 | E156: 20 | F156: 7 | G156: 0.54
A157: husty syr dn32 7bar | B157: husty syr | C157: 2115 | D157: 32 | E157: 27 | F157: 7 | G157: 0.48
A158: husty syr dn40 7bar | B158: husty syr | C158: 2115 | D158: 40 | E158: 35 | F158: 7 | G158: 0.53
A159: husty syr dn50 7bar | B159: husty syr | C159: 2115 | D159: 50 | E159: 42 | F159: 7 | G159: 0.55
A160: husty syr dn20 8bar | B160: husty syr | C160: 2115 | D160: 20 | E160: 14 | F160: 8 | G160: 0.55
A161: husty syr dn25 8bar | B161: husty syr | C161: 2115 | D161: 25 | E161: 20 | F161: 8 | G161: 0.54
A162: husty syr dn32 8bar | B162: husty syr | C162: 2115 | D162: 32 | E162: 27 | F162: 8 | G162: 0.48
A163: husty syr dn40 8bar | B163: husty syr | C163: 2115 | D163: 40 | E163: 35 | F163: 8 | G163: 0.53
A164: husty syr dn50 8bar | B164: husty syr | C164: 2115 | D164: 50 | E164: 42 | F164: 8 | G164: 0.55
A165: husty syr dn20 10bar | B165: husty syr | C165: 2115 | D165: 20 | E165: 14 | F165: 10 | G165: 0.55
A166: husty syr dn25 10bar | B166: husty syr | C166: 2115 | D166: 25 | E166: 20 | F166: 10 | G166: 0.54
A167: husty syr dn32 10bar | B167: husty syr | C167: 2115 | D167: 32 | E167: 27 | F167: 10 | G167: 0.48
A168: husty syr dn40 10bar | B168: husty syr | C168: 2115 | D168: 40 | E168: 35 | F168: 10 | G168: 0.53
A169: husty syr dn50 10bar | B169: husty syr | C169: 2115 | D169: 50 | E169: 42 | F169: 10 | G169: 0.55
A170: armak dn20x32 4bar | B170: armak | C170: 775 | D170: 20x32 | E170: 16 | F170: 4 | G170: 0.78
A171: armak dn25x40 4bar | B171: armak | C171: 775 | D171: 25x40 | E171: 20 | F171: 4 | G171: 0.78
A172: armak dn32x50 4bar | B172: armak | C172: 775 | D172: 32x50 | E172: 25 | F172: 4 | G172: 0.78
A173: armak dn20x32 4,5bar | B173: armak | C173: 775 | D173: 20x32 | E173: 16 | F173: 4.5 | G173: 0.78
A174: armak dn25x40 4,5bar | B174: armak | C174: 775 | D174: 25x40 | E174: 20 | F174: 4.5 | G174: 0.78
A175: armak dn32x50 4,5bar | B175: armak | C175: 775 | D175: 32x50 | E175: 25 | F175: 4.5 | G175: 0.78
A176: armak dn20x32 5bar | B176: armak | C176: 775 | D176: 20x32 | E176: 16 | F176: 5 | G176: 0.78
A177: armak dn25x40 5bar | B177: armak | C177: 775 | D177: 25x40 | E177: 20 | F177: 5 | G177: 0.78
A178: armak dn32x50 5bar | B178: armak | C178: 775 | D178: 32x50 | E178: 25 | F178: 5 | G178: 0.78
A179: armak dn20x32 6bar | B179: armak | C179: 775 | D179: 20x32 | E179: 16 | F179: 6 | G179: 0.78
A180: armak dn25x40 6bar | B180: armak | C180: 775 | D180: 25x40 | E180: 20 | F180: 6 | G180: 0.78
A181: armak dn32x50 6bar | B181: armak | C181: 775 | D181: 32x50 | E181: 25 | F181: 6 | G181: 0.78
A182: armak dn20x32 7bar | B182: armak | C182: 775 | D182: 20x32 | E182: 16 | F182: 7 | G182: 0.78
A183: armak dn25x40 7bar | B183: armak | C183: 775 | D183: 25x40 | E183: 20 | F183: 7 | G183: 0.78
A184: armak dn32x50 7bar | B184: armak | C184: 775 | D184: 32x50 | E184: 25 | F184: 7 | G184: 0.78
A185: armak dn20x32 8bar | B185: armak | C185: 775 | D185: 20x32 | E185: 16 | F185: 8 | G185: 0.78
A186: armak dn25x40 8bar | B186: armak | C186: 775 | D186: 25x40 | E186: 20 | F186: 8 | G186: 0.78
A187: armak dn32x50 8bar | B187: armak | C187: 775 | D187: 32x50 | E187: 25 | F187: 8 | G187: 0.78
A188: armak dn20x32 10bar | B188: armak | C188: 775 | D188: 20x32 | E188: 16 | F188: 10 | G188: 0.78
A189: armak dn25x40 10bar | B189: armak | C189: 775 | D189: 25x40 | E189: 20 | F189: 10 | G189: 0.78
A190: armak dn32x50 10bar | B190: armak | C190: 775 | D190: 32x50 | E190: 25 | F190: 10 | G190: 0.78
D299: LSL0/LSK0 | E299: 70
D300: LSL1/LSK1 | E300: 180
D301: LSL2/LSK2 | E301: 176
D302: LSL3/LSK3 | E302: 142
D303: LSL4/LSK4 | E303: 198
D304: LSL5/LSK5 | E304: 172

Sheet NWP (hidden)
B4: Producenci | D4: REFLEX | G4: Tz | H4: gęstość wody | I4: tz-t1 | J4: dV
D5: FLAMCO typ C | G5: C | H5: kg/m3 | I5: K | J5: dm3/kg
D6: FLAMCO typ K | G6: 100 | H6: 958.3 | I6: =G6-10 -> 90 | J6: 0.0432
D7: CIMM | G7: 95 | H7: 961.9 | I7: =G7-10 -> 85 | J7: 0.0393
D8: VAREM | G8: 90 | H8: 965.3 | I8: 80 | J8: 0.0356
D9: FERRO | G9: 85 | H9: 968.6 | I9: 75 | J9: 0.0321
G10: 80 | H10: 971.8 | I10: 70 | J10: 0.0287
G11: 75 | H11: 974.8 | I11: 65 | J11: 0.0256
G12: 70 | H12: 977.8 | I12: 60 | J12: 0.0224
G13: 65 | H13: 980.5 | I13: 55 | J13: 0.0196
G14: 60 | H14: 983.2 | I14: 50 | J14: 0.0168
G15: 55 | H15: 985.73 | I15: 45 | J15: =1.42*10^(-2) -> 0.0142
G16: 50 | H16: 988.1 | I16: 40 | J16: =1.18*10^(-2) -> 0.0118
G17: 10 | H17: 999.7 | I17: 0
M22: Vn bez rezerwy | Q22: Vn z rezerwa
M23: ='PN-NWP'!E43 ->  | Q23: 197.71548
O26: pojemność naczynia
B27: producent | C27: typ | D27: pojemność | E27: wysokość | F27: średnica | G27: cisnienie robocze | H27: średnica podłaczenia | J27: cisnienie wstepne
A28: =CONCATENATE(B28,D28) -> REFLEX12 | B28: REFLEX | C28: NG | D28: 12 | E28: 315 | F28: 272 | G28: 3 | H28: 20 | J28: 1.5 | M28: =D28-M$23 ->  | N28: =IF(M28>=0,D28,IF(M29>=0,D29,IF(M30>=0,D30,IF(M31>=0,D31,IF(M32>=0,D32,IF(M33>=0,D33,IF(M34>=0,D34,IF(M35>=0,D35,"-")))))))) ->  | O28: =IF(N$28 = "-",N36,N28) ->  | Q28: =D28-Q$23 -> -185.71548 | R28: =IF(Q28>=0,D28,IF(Q29>=0,D29,IF(Q30>=0,D30,IF(Q31>=0,D31,IF(Q32>=0,D32,IF(Q33>=0,D33,IF(Q34>=0,D34,IF(Q35>=0,D35,"-")))))))) -> - | S28: =IF(R$28 = "-",R36,R28) -> 200
A29: =CONCATENATE(B29,D29) -> REFLEX18 | B29: REFLEX | C29: NG | D29: 18 | E29: 360 | F29: 308 | G29: 3 | H29: 20 | J29: 1.5 | Q29: =D29-Q$23 -> -179.71548
A30: REFLEX25 | B30: REFLEX | C30: NG | D30: 25 | E30: 480 | F30: 308 | G30: 3 | H30: 20 | J30: 1.5 | Q30: -172.71548
A31: REFLEX35 | B31: REFLEX | C31: NG | D31: 35 | E31: 465 | F31: 375 | G31: 3 | H31: 20 | J31: 1.5 | Q31: -162.71548
A32: REFLEX50 | B32: REFLEX | C32: NG | D32: 50 | E32: 495 | F32: 441 | G32: 6 | H32: 20 | J32: 1.5 | Q32: -147.71548
A33: REFLEX80 | B33: REFLEX | C33: NG | D33: 80 | E33: 570 | F33: 512 | G33: 6 | H33: 25 | J33: 1.5 | Q33: -117.71548
A34: REFLEX100 | B34: REFLEX | C34: NG | D34: 100 | E34: 680 | F34: 512 | G34: 6 | H34: 25 | J34: 1.5 | Q34: -97.71548001
A35: REFLEX140 | B35: REFLEX | C35: NG | D35: 140 | E35: 890 | F35: 512 | G35: 6 | H35: 25 | J35: 1.5 | Q35: -57.71548001
A36: REFLEX200 | B36: REFLEX | C36: N | D36: 200 | E36: 785 | F36: 634 | G36: 6 | H36: 25 | J36: 1.5 | N36: =IF(M36>=0,D36,IF(M37>=0,D37,IF(M38>=0,D38,IF(M39>=0,D39,IF(M40>=0,D40,IF(M41>=0,D41,IF(M42>=0,D42,IF(M43>=0,D43,"-")))))))) ->  | Q36: 2.284519988 | R36: =IF(Q36>=0,D36,IF(Q37>=0,D37,IF(Q38>=0,D38,IF(Q39>=0,D39,IF(Q40>=0,D40,IF(Q41>=0,D41,IF(Q42>=0,D42,IF(Q43>=0,D43,"-")))))))) -> 200
A37: REFLEX250 | B37: REFLEX | C37: N | D37: 250 | E37: 915 | F37: 634 | G37: 6 | H37: 25 | J37: 1.5 | Q37: 52.28451999
A38: REFLEX300 | B38: REFLEX | C38: N | D38: 300 | E38: 1085 | F38: 634 | G38: 6 | H38: 25 | J38: 1.5 | Q38: 102.28452
A39: REFLEX400 | B39: REFLEX | C39: N | D39: 400 | E39: 1075 | F39: 740 | G39: 6 | H39: 25 | J39: 1.5 | Q39: 202.28452
A40: REFLEX500 | B40: REFLEX | C40: N | D40: 500 | E40: 1295 | F40: 740 | G40: 6 | H40: 25 | J40: 1.5 | Q40: 302.28452
A41: REFLEX600 | B41: REFLEX | C41: N | D41: 600 | E41: 1530 | F41: 740 | G41: 6 | H41: 25 | J41: 1.5 | Q41: 402.28452
A42: REFLEX800 | B42: REFLEX | C42: N | D42: 800 | E42: 1990 | F42: 740 | G42: 6 | H42: 25 | J42: 1.5 | Q42: 602.28452
A43: REFLEX1000 | B43: REFLEX | C43: N | D43: 1000 | E43: 2430 | F43: 740 | G43: 6 | H43: 25 | J43: 1.5 | Q43: 802.28452
A44: =CONCATENATE(B44," typ C",D44) -> FLAMCO typ C12 | B44: FLAMCO | C44: Flexcon C | D44: 12 | E44: 330 | F44: 286 | G44: 3 | H44: 20 | J44: 1.5 | N44: =IF(M44>=0,D44,IF(M45>=0,D45,IF(M46>=0,D46,IF(M47>=0,D47,IF(M48>=0,D48,IF(M49>=0,D49,IF(M50>=0,D50,IF(M51>=0,D51,"-")))))))) ->  | O44: =IF(N$44 = "-",N52,N44) ->  | Q44: -185.71548 | R44: =IF(Q44>=0,D44,IF(Q45>=0,D45,IF(Q46>=0,D46,IF(Q47>=0,D47,IF(Q48>=0,D48,IF(Q49>=0,D49,IF(Q50>=0,D50,IF(Q51>=0,D51,"-")))))))) -> - | S44: =IF(R$44 = "-",R52,R44) -> 200
A45: =CONCATENATE(B45," typ C",D45) -> FLAMCO typ C18 | B45: FLAMCO | C45: Flexcon C | D45: 18 | E45: 325 | F45: 328 | G45: 3 | H45: 20 | J45: 1.5 | Q45: -179.71548
A46: FLAMCO typ C25 | B46: FLAMCO | C46: Flexcon C | D46: 25 | E46: 375 | F46: 358 | G46: 3 | H46: 20 | J46: 1.5 | Q46: -172.71548
A47: FLAMCO typ C35 | B47: FLAMCO | C47: Flexcon C | D47: 35 | E47: 426 | F47: 396 | G47: 3 | H47: 20 | J47: 1.5 | Q47: -162.71548
A48: FLAMCO typ C50 | B48: FLAMCO | C48: Flexcon C | D48: 50 | E48: 488 | F48: 437 | G48: 3 | H48: 20 | J48: 1.5 | Q48: -147.71548
A49: FLAMCO typ C80 | B49: FLAMCO | C49: Flexcon C | D49: 80 | E49: 555 | F49: 519 | G49: 3 | H49: 25 | J49: 1.5 | Q49: -117.71548
A50: FLAMCO typ C110 | B50: FLAMCO | C50: Flexcon C | D50: 110 | E50: 696 | F50: 519 | G50: 6 | H50: 25 | J50: 1.5 | Q50: -87.71548001
A51: FLAMCO typ C140 | B51: FLAMCO | C51: Flexcon C | D51: 140 | E51: 950 | F51: 519 | G51: 6 | H51: 25 | J51: 1.5 | Q51: -57.71548001
A52: FLAMCO typ C200 | B52: FLAMCO | C52: Flexcon C | D52: 200 | E52: 1294 | F52: 484 | G52: 6 | H52: 25 | J52: 1.5 | N52: =IF(M52>=0,D52,IF(M53>=0,D53,IF(M54>=0,D54,IF(M55>=0,D55,IF(M56>=0,D56,IF(M57>=0,D57,"-")))))) ->  | Q52: 2.284519988 | R52: =IF(Q52>=0,D52,IF(Q53>=0,D53,IF(Q54>=0,D54,IF(Q55>=0,D55,IF(Q56>=0,D56,IF(Q57>=0,D57,"-")))))) -> 200
A53: FLAMCO typ C300 | B53: FLAMCO | C53: Flexcon C | D53: 300 | E53: 1328 | F53: 600 | G53: 6 | H53: 25 | J53: 1.5 | Q53: 102.28452
A54: FLAMCO typ C425 | B54: FLAMCO | C54: Flexcon C | D54: 425 | E54: 1178 | F54: 790 | G54: 6 | H54: 25 | J54: 1.5 | Q54: 227.28452
A55: FLAMCO typ C600 | B55: FLAMCO | C55: Flexcon C | D55: 600 | E55: 1538 | F55: 790 | G55: 6 | H55: 25 | J55: 1.5 | Q55: 402.28452
A56: FLAMCO typ C800 | B56: FLAMCO | C56: Flexcon C | D56: 800 | E56: 1888 | F56: 790 | G56: 6 | H56: 25 | J56: 1 | Q56: 602.28452
A57: FLAMCO typ C1000 | B57: FLAMCO | C57: Flexcon C | D57: 1000 | E57: 2268 | F57: 790 | G57: 6 | H57: 25 | J57: 1.5 | Q57: 802.28452
A58: =CONCATENATE(B58," typ K",D58) -> FLAMCO typ K110 | B58: FLAMCO | C58: Flexcon K | D58: 110 | E58: 784 | F58: 484 | G58: 6 | H58: 25 | J58: 3 | N58: =IF(M58>=0,D58,IF(M59>=0,D59,IF(M60>=0,D60,IF(M61>=0,D61,IF(M62>=0,D62,IF(M63>=0,D63,IF(M64>=0,D64,IF(M65>=0,D65,"-")))))))) ->  | O58: =N58 ->  | Q58: -87.71548001 | R58: =IF(Q58>=0,D58,IF(Q59>=0,D59,IF(Q60>=0,D60,IF(Q61>=0,D61,IF(Q62>=0,D62,IF(Q63>=0,D63,IF(Q64>=0,D64,IF(Q65>=0,D65,"-")))))))) -> 200 | S58: =R58 -> 200
A59: =CONCATENATE(B59," typ K",D59) -> FLAMCO typ K140 | B59: FLAMCO | C59: Flexcon K | D59: 140 | E59: 950 | F59: 484 | G59: 6 | H59: 25 | J59: 3 | Q59: -57.71548001
A60: FLAMCO typ K200 | B60: FLAMCO | C60: Flexcon K | D60: 200 | E60: 960 | F60: 600 | G60: 6 | H60: 25 | J60: 3 | Q60: 2.284519988
A61: FLAMCO typ K300 | B61: FLAMCO | C61: Flexcon K | D61: 300 | E61: 1330 | F61: 600 | G61: 6 | H61: 25 | J61: 3 | Q61: 102.28452
A62: FLAMCO typ K425 | B62: FLAMCO | C62: Flexcon K | D62: 425 | E62: 1180 | F62: 790 | G62: 6 | H62: 25 | J62: 3 | Q62: 227.28452
A63: FLAMCO typ K600 | B63: FLAMCO | C63: Flexcon K | D63: 600 | E63: 1540 | F63: 790 | G63: 6 | H63: 25 | J63: 3 | Q63: 402.28452
A64: FLAMCO typ K800 | B64: FLAMCO | C64: Flexcon K | D64: 800 | E64: 1890 | F64: 790 | G64: 6 | H64: 25 | J64: 3 | Q64: 602.28452
A65: FLAMCO typ K1000 | B65: FLAMCO | C65: Flexcon K | D65: 1000 | E65: 2270 | F65: 790 | G65: 6 | H65: 25 | J65: 3 | Q65: 802.28452
A66: CIMM6 | B66: CIMM | C66: ER | D66: 6 | E66: 245 | F66: 245 | G66: 5 | H66: 20 | J66: 1.5 | N66: =IF(M66>=0,D66,IF(M67>=0,D67,IF(M68>=0,D68,IF(M69>=0,D69,IF(M70>=0,D70,IF(M71>=0,D71,IF(M72>=0,D72,IF(M73>=0,D73,"-")))))))) ->  | O66: =IF(N66="-",IF(N74="-",N82,N74),N66) ->  | Q66: -191.71548 | R66: =IF(Q66>=0,D66,IF(Q67>=0,D67,IF(Q68>=0,D68,IF(Q69>=0,D69,IF(Q70>=0,D70,IF(Q71>=0,D71,IF(Q72>=0,D72,IF(Q73>=0,D73,"-")))))))) -> - | S66: =IF(R66="-",IF(R74="-",R82,R74),R66) -> 200
A67: CIMM8 | B67: CIMM | C67: ER | D67: 8 | E67: 275 | F67: 245 | G67: 5 | H67: 20 | J67: 1.5 | Q67: -189.71548
A68: CIMM10 | B68: CIMM | C68: ER | D68: 10 | E68: 325 | F68: 245 | G68: 5 | H68: 20 | J68: 1.5 | Q68: -187.71548
A69: =CONCATENATE(B69,D69) -> CIMM12 | B69: CIMM | C69: ER | D69: 12 | E69: 320 | F69: 285 | G69: 5 | H69: 20 | J69: 1.5 | Q69: -185.71548
A70: CIMM14 | B70: CIMM | C70: ER | D70: 14 | E70: 345 | F70: 285 | G70: 5 | H70: 20 | J70: 1.5 | Q70: -183.71548
A71: CIMM18 | B71: CIMM | C71: ER | D71: 18 | E71: 385 | F71: 285 | G71: 5 | H71: 20 | J71: 1.5 | Q71: -179.71548
A72: CIMM24 | B72: CIMM | C72: ER | D72: 24 | E72: 420 | F72: 325 | G72: 5 | H72: 20 | J72: 1.5 | Q72: -173.71548
A73: CIMM35 | B73: CIMM | C73: ERE | D73: 35 | E73: 475 | F73: 380 | G73: 6 | H73: 25 | J73: 1.5 | Q73: -162.71548
A74: CIMM50 | B74: CIMM | C74: ERE | D74: 50 | E74: 595 | F74: 380 | G74: 6 | H74: 25 | J74: 1.5 | N74: =IF(M74>=0,D74,IF(M75>=0,D75,IF(M76>=0,D76,IF(M77>=0,D77,IF(M78>=0,D78,IF(M79>=0,D79,IF(M80>=0,D80,IF(M81>=0,D81,"-")))))))) ->  | Q74: -147.71548 | R74: =IF(Q74>=0,D74,IF(Q75>=0,D75,IF(Q76>=0,D76,IF(Q77>=0,D77,IF(Q78>=0,D78,IF(Q79>=0,D79,IF(Q80>=0,D80,IF(Q81>=0,D81,"-")))))))) -> 200
A75: CIMM80 | B75: CIMM | C75: ERE | D75: 80 | E75: 620 | F75: 460 | G75: 6 | H75: 25 | J75: 1.5 | Q75: -117.71548
A76: CIMM100 | B76: CIMM | C76: ERE | D76: 100 | E76: 810 | F76: 460 | G76: 6 | H76: 25 | J76: 1.5 | Q76: -97.71548001
A77: CIMM150 | B77: CIMM | C77: ERE | D77: 150 | E77: 970 | F77: 510 | G77: 6 | H77: 25 | J77: 1.5 | Q77: -47.71548001
A78: CIMM200 | B78: CIMM | C78: ERE | D78: 200 | E78: 1000 | F78: 590 | G78: 6 | H78: 25 | J78: 1.5 | Q78: 2.284519988
A79: CIMM250 | B79: CIMM | C79: ERE | D79: 250 | E79: 1230 | F79: 590 | G79: 6 | H79: 25 | J79: 1.5 | Q79: 52.28451999
A80: CIMM300 | B80: CIMM | C80: ERE | D80: 300 | E80: 1220 | F80: 650 | G80: 6 | H80: 25 | J80: 1.5 | Q80: 102.28452
A81: CIMM400 | B81: CIMM | C81: ERE | D81: 400 | E81: 1250 | F81: 750 | G81: 6 | H81: 25 | J81: 1.5 | Q81: 202.28452
A82: CIMM500 | B82: CIMM | C82: ERE | D82: 500 | E82: 1480 | F82: 750 | G82: 6 | H82: 25 | J82: 1.5 | N82: =IF(M82>=0,D82,IF(M83>=0,D83,IF(M84>=0,D84,IF(M85>=0,D85,IF(M86>=0,D86,"-"))))) ->  | Q82: 302.28452 | R82: =IF(Q82>=0,D82,IF(Q83>=0,D83,IF(Q84>=0,D84,IF(Q85>=0,D85,IF(Q86>=0,D86,"-"))))) -> 500
A83: CIMM600 | B83: CIMM | C83: ERE | D83: 600 | E83: 1640 | F83: 750 | G83: 6 | H83: 25 | J83: 1.5 | Q83: 402.28452
A84: CIMM750 | B84: CIMM | C84: ERE | D84: 750 | E84: 1820 | F84: 800 | G84: 8 | H84: 50 | J84: 2.5 | Q84: 552.28452
A85: CIMM1000 | B85: CIMM | C85: ERE | D85: 1000 | E85: 2130 | F85: 800 | G85: 8 | H85: 65 | J85: 2.5 | Q85: 802.28452
A86: CIMM1500 | B86: CIMM | C86: ERE | D86: 1500 | E86: 2130 | F86: 1000 | G86: 8 | H86: 65 | J86: 2.5 | Q86: 1302.28452
A87: VAREM25 | B87: VAREM | C87: Extravarem LR | D87: 25 | E87: 500 | F87: 290 | G87: 5 | H87: 20 | J87: 1 | N87: =IF(M87>=0,D87,IF(M88>=0,D88,IF(M89>=0,D89,IF(M90>=0,D90,IF(M91>=0,D91,IF(M92>=0,D92,IF(M93>=0,D93,IF(M94>=0,D94,"-")))))))) ->  | O87: =N87 ->  | Q87: -172.71548 | R87: =IF(Q87>=0,D87,IF(Q88>=0,D88,IF(Q89>=0,D89,IF(Q90>=0,D90,IF(Q91>=0,D91,IF(Q92>=0,D92,IF(Q93>=0,D93,IF(Q94>=0,D94,"-")))))))) -> 200 | S87: =R87 -> 200
A88: VAREM40 | B88: VAREM | C88: Extravarem LR | D88: 40 | E88: 610 | F88: 320 | G88: 5 | H88: 20 | J88: 1.5 | Q88: -157.71548
A89: VAREM80 | B89: VAREM | C89: Maxivarem LR | D89: 80 | E89: 695 | F89: 450 | G89: 4.9 | H89: 20 | J89: 2 | Q89: -117.71548
A90: VAREM100 | B90: VAREM | C90: Maxivarem LR | D90: 100 | E90: 760 | F90: 450 | G90: 4.9 | H90: 25 | J90: 2 | Q90: -97.71548001
A91: VAREM150 | B91: VAREM | C91: Maxivarem LR | D91: 150 | E91: 785 | F91: 550 | G91: 4.9 | H91: 25 | J91: 2 | Q91: -47.71548001
A92: VAREM200 | B92: VAREM | C92: Maxivarem LR | D92: 200 | E92: 1000 | F92: 550 | G92: 4.9 | H92: 32 | J92: 2 | M92: =D92-M$23 ->  | Q92: 2.284519988
A93: =CONCATENATE(B93,D93) -> VAREM250 | B93: VAREM | C93: Maxivarem LR | D93: 250 | E93: 1000 | F93: 630 | G93: 6 | H93: 32 | J93: 2.5 | Q93: =D93-Q$23 -> 52.28451999
A94: =CONCATENATE(B94,D94) -> VAREM300 | B94: VAREM | C94: Maxivarem LR | D94: 300 | E94: 1180 | F94: 630 | G94: 6 | H94: 32 | J94: 2.5 | Q94: =D94-Q$23 -> 102.28452
A95: =CONCATENATE(B95,D95) -> FERRO5 | B95: FERRO | C95: CO5W | D95: 5 | E95: 304 | F95: 160 | G95: 8 | H95: 20 | J95: 1.5 | N95: =IF(M95>=0,D95,IF(M96>=0,D96,IF(M97>=0,D97,IF(M98>=0,D98,IF(M99>=0,D99,IF(M100>=0,D100,IF(M101>=0,D101,IF(M102>=0,D102,"-")))))))) ->  | O95: =IF(N$95 = "-",N103,N95) ->  | Q95: =D95-Q$23 -> -192.71548 | R95: =IF(Q95>=0,D95,IF(Q96>=0,D96,IF(Q97>=0,D97,IF(Q98>=0,D98,IF(Q99>=0,D99,IF(Q100>=0,D100,IF(Q101>=0,D101,IF(Q102>=0,D102,"-")))))))) -> - | S95: =IF(R$95 = "-",R103,R95) -> 200
A96: =CONCATENATE(B96,D96) -> FERRO8 | B96: FERRO | C96: CO8W | D96: 8 | E96: 316 | F96: 200 | G96: 8 | H96: 20 | J96: 1.5 | Q96: -189.71548
A97: FERRO12 | B97: FERRO | C97: CO12W | D97: 12 | E97: 295 | F97: 280 | G97: 8 | H97: 20 | J97: 1.5 | Q97: -185.71548
A98: FERRO18 | B98: FERRO | C98: CO18W | D98: 18 | E98: 456 | F98: 280 | G98: 8 | H98: 25 | J98: 1.5 | Q98: -179.71548
A99: FERRO24 | B99: FERRO | C99: CO24W | D99: 24 | E99: 489 | F99: 280 | G99: 8 | H99: 25 | J99: 1.5 | Q99: -173.71548
A100: FERRO35 | B100: FERRO | C100: CO35S | D100: 35 | E100: 450 | F100: 365 | G100: 8 | H100: 25 | J100: 1.5 | Q100: -162.71548
A101: FERRO35 | B101: FERRO | C101: CO35W | D101: 35 | E101: 440 | F101: 365 | G101: 8 | H101: 25 | J101: 1.5 | Q101: -162.71548
A102: FERRO50 | B102: FERRO | C102: CO50S | D102: 50 | E102: 564 | F102: 365 | G102: 8 | H102: 25 | J102: 1.5 | Q102: -147.71548
A103: FERRO50 | B103: FERRO | C103: CO50W | D103: 50 | E103: 545 | F103: 365 | G103: 8 | H103: 25 | J103: 1.5 | N103: =IF(M103>=0,D103,IF(M104>=0,D104,IF(M105>=0,D105,IF(M106>=0,D106,IF(M107>=0,D107,IF(M108>=0,D108,IF(M109>=0,D109,IF(M110>=0,D110,"-")))))))) ->  | Q103: -147.71548 | R103: =IF(Q103>=0,D103,IF(Q104>=0,D104,IF(Q105>=0,D105,IF(Q106>=0,D106,IF(Q107>=0,D107,IF(Q108>=0,D108,IF(Q109>=0,D109,IF(Q110>=0,D110,"-")))))))) -> 200
A104: FERRO60 | B104: FERRO | C104: CO60S | D104: 60 | E104: 668 | F104: 365 | G104: 8 | H104: 20 | J104: 1.5 | Q104: -137.71548
A105: FERRO80 | B105: FERRO | C105: CO80S | D105: 80 | E105: 687 | F105: 410 | G105: 8 | H105: 20 | J105: 1.5 | Q105: -117.71548
A106: FERRO100 | B106: FERRO | C106: CO100S | D106: 100 | E106: 663 | F106: 495 | G106: 8 | H106: 20 | J106: 1.5 | Q106: -97.71548001
A107: FERRO150 | B107: FERRO | C107: CO150S | D107: 150 | E107: 795 | F107: 550 | G107: 8 | H107: 20 | J107: 1.5 | Q107: -47.71548001
A108: FERRO200 | B108: FERRO | C108: CO200S | D108: 200 | E108: 1085 | F108: 600 | G108: 8 | H108: 20 | J108: 1.5 | Q108: 2.284519988
A109: FERRO250 | B109: FERRO | C109: CO250S | D109: 250 | E109: 1051 | F109: 650 | G109: 8 | H109: 20 | J109: 1.5 | Q109: 52.28451999
A110: FERRO300 | B110: FERRO | C110: CO300S | D110: 300 | E110: 1212 | F110: 650 | G110: 8 | H110: 20 | J110: 1.5 | Q110: 102.28452

Sheet gestosc wody (hidden)
B2: ciepło właściwe wody | C2: 4.19 | D2: kJ/K*kg
B3: przyśpieszenie ziemskie | C3: 9.81 | D3: m/s2
B4: Gęstość wody dla:
B5: 30 | C5: 995.67 | D5: kg/m3
B6: 35 | C6: 994.06 | D6: kg/m3
B7: 40 | C7: 992.24 | D7: kg/m3
B8: 45 | C8: 990.25 | D8: kg/m3
B9: 50 | C9: 988.07 | D9: kg/m3
B10: 55 | C10: 985.73 | D10: kg/m3
B11: 60 | C11: 983.24 | D11: kg/m3
B12: 65 | C12: 980.59 | D12: kg/m3
B13: 70 | C13: 977.81 | D13: kg/m3
B14: 75 | C14: 974.89 | D14: kg/m3
B15: 80 | C15: 971.83 | D15: kg/m3
B16: 85 | C16: 968.65 | D16: kg/m3
B17: 90 | C17: 965.34 | D17: kg/m3
B18: 95 | C18: 961.92 | D18: kg/m3
B19: 100 | C19: 958.38 | D19: kg/m3
